Department Family,Entity,Date,Expense Type,Expense area,Supplier,Transaction Number,Amount
Department of Health,Salisbury NHS Foundation Trust,07-Apr-17,RATES,Corporate - ETS,WILTSHIRE COUNCIL,Apr-17,114000
Department of Health,Salisbury NHS Foundation Trust,07-Apr-17,RATES,Corporate - ETS,WILTSHIRE COUNCIL,Apr-17,360.6
Department of Health,Salisbury NHS Foundation Trust,07-Apr-17,HEALTHCARE - NHS TRUSTS,Clinical Support,GREAT WESTERN HOSPITALS NHS FT,16969274,77466.59
Department of Health,Salisbury NHS Foundation Trust,07-Apr-17,ENERGY WATER - GAS MAINS,Corporate - ETS,CORONA ENERGY,11852168,10722.26
Department of Health,Salisbury NHS Foundation Trust,07-Apr-17,ENERGY WATER - GAS MAINS,Corporate - ETS,CORONA ENERGY,11852168,92843.92
Department of Health,Salisbury NHS Foundation Trust,07-Apr-17,ENERGY WATER - GAS MAINS,Corporate - ETS,CORONA ENERGY,11852168,536.11
Department of Health,Salisbury NHS Foundation Trust,07-Apr-17,ENERGY WATER - GAS MAINS,Corporate - ETS,CORONA ENERGY,11852168,18568.78
Department of Health,Salisbury NHS Foundation Trust,07-Apr-17,HEALTHCARE - NHS TRUSTS,Clinical Support,UNIVERSITY HOSPITAL SOUTHAMPTON NHS FOUNDATION TRUST,7279659,34697.96
Department of Health,Salisbury NHS Foundation Trust,20-Apr-17,COMPUTER MAINTENANCE x,Corporate - Informatics,365 ITMS LTD,2002380,30967.08
Department of Health,Salisbury NHS Foundation Trust,20-Apr-17,COMPUTER MAINTENANCE x,Corporate - Informatics,365 ITMS LTD,2002380,6193.42
Department of Health,Salisbury NHS Foundation Trust,18-Apr-17,MEDICAL EQUIPMENT 10 YEARS,Capital Projects,CARL ZEISS LTD,5140367022,99441.02
Department of Health,Salisbury NHS Foundation Trust,18-Apr-17,MEDICAL EQUIPMENT 10 YEARS,Capital Projects,CARL ZEISS LTD,5140367022,19848.24
Department of Health,Salisbury NHS Foundation Trust,18-Apr-17,MEDICAL EQUIPMENT 10 YEARS,Capital Projects,CARL ZEISS LTD,5140367022,99241.18
Department of Health,Salisbury NHS Foundation Trust,20-Apr-17,OTH ENGINEERING PLANT&EQUIP,Capital Projects,STANNAH LIFT SERVICES LIMITED,I030001475,47545
Department of Health,Salisbury NHS Foundation Trust,18-Apr-17,MEDICAL EQUIPMENT 10 YEARS,Capital Projects,PHILIPS MEDICAL SYSTEMS,7300252859,101000
Department of Health,Salisbury NHS Foundation Trust,18-Apr-17,MEDICAL EQUIPMENT 10 YEARS,Capital Projects,PHILIPS MEDICAL SYSTEMS,7300252859,20200
Department of Health,Salisbury NHS Foundation Trust,20-Apr-17,BLDGS ENGINEERING INSTALL,Capital Projects,NETWORK SECURITY & FIRE SPECIALISTS,138418,27304
Department of Health,Salisbury NHS Foundation Trust,20-Apr-17,BLDGS ENGINEERING INSTALL,Capital Projects,NETWORK SECURITY & FIRE SPECIALISTS,138418,5460.8
Department of Health,Salisbury NHS Foundation Trust,18-Apr-17,COMPUTER MAINTENANCE x,Clinical Support,ABBOTT INFORMATICS EUROPE LTD,1649,25262
Department of Health,Salisbury NHS Foundation Trust,18-Apr-17,COMPUTER MAINTENANCE x,Clinical Support,ABBOTT INFORMATICS EUROPE LTD,1649,5052.4
Department of Health,Salisbury NHS Foundation Trust,18-Apr-17,COMPUTER MAINTENANCE x,Clinical Support,ABBOTT INFORMATICS EUROPE LTD,1649,25262
Department of Health,Salisbury NHS Foundation Trust,07-Apr-17,LAB EQUIP-ANALYSERS,Clinical Support,BECKMAN COULTER,1374930,44039.11
Department of Health,Salisbury NHS Foundation Trust,07-Apr-17,MEDICAL EQUIPMENT 5 YEARS,Capital Projects,KARL STORZ ENDOSCOPY (UK) LTD,309257,26872
Department of Health,Salisbury NHS Foundation Trust,07-Apr-17,MEDICAL EQUIPMENT 5 YEARS,Capital Projects,KARL STORZ ENDOSCOPY (UK) LTD,309257,5374.4
Department of Health,Salisbury NHS Foundation Trust,07-Apr-17,LAB REAGENTS-BUFFERS COMPUND SOLNS,Clinical Support,OXFORD GENE TECHNOLOGY,SIN004963,51216
Department of Health,Salisbury NHS Foundation Trust,07-Apr-17,LAB REAGENTS-BUFFERS COMPUND SOLNS,Clinical Support,OXFORD GENE TECHNOLOGY,SIN004963,10243.2
Department of Health,Salisbury NHS Foundation Trust,28-Apr-17,MEDSURGCONS - OTHER,Surgery,NHS LOGISTICS,1018012227,215.05
Department of Health,Salisbury NHS Foundation Trust,28-Apr-17,MED SURG EQUIP REP MAINT CLEANING,Musculo-Skeletal,NHS LOGISTICS,1018012227,42.77
Department of Health,Salisbury NHS Foundation Trust,28-Apr-17,BEVERAGES & AMBIENT FOOD,Medicine,NHS LOGISTICS,1018012227,1.7
Department of Health,Salisbury NHS Foundation Trust,28-Apr-17,MEDSURGCONS - OTHER,Medicine,NHS LOGISTICS,1018012227,2204.1
Department of Health,Salisbury NHS Foundation Trust,28-Apr-17,MEDSURGCONS - OTHER,Medicine,NHS LOGISTICS,1018012227,6612.3
Department of Health,Salisbury NHS Foundation Trust,28-Apr-17,MEDSURGCONS - OTHER,Medicine,NHS LOGISTICS,1018012227,2204.1
Department of Health,Salisbury NHS Foundation Trust,28-Apr-17,MEDSURGCONS - OTHER,Medicine,NHS LOGISTICS,1018012227,6612.3
Department of Health,Salisbury NHS Foundation Trust,28-Apr-17,PATIENT APPLIANCES,Surgery,NHS LOGISTICS,1018012227,16.58
Department of Health,Salisbury NHS Foundation Trust,28-Apr-17,MEDSURGCONS - OTHER,Surgery,NHS LOGISTICS,1018012227,215.05
Department of Health,Salisbury NHS Foundation Trust,28-Apr-17,PAPER ITEMS GENERAL STATIONERY SUNDRIES,Clinical Support,NHS LOGISTICS,1018012227,17.11
Department of Health,Salisbury NHS Foundation Trust,28-Apr-17,SURGICAL INSTRUMENTS: GENERAL,Medicine,NHS LOGISTICS,1018012227,103.42
Department of Health,Salisbury NHS Foundation Trust,28-Apr-17,PATIENT APPLIANCES,Medicine,NHS LOGISTICS,1018012227,21.9
Department of Health,Salisbury NHS Foundation Trust,28-Apr-17,PATIENT APPLIANCES,Medicine,NHS LOGISTICS,1018012227,21.9
Department of Health,Salisbury NHS Foundation Trust,28-Apr-17,PATIENT APPLIANCES,Medicine,NHS LOGISTICS,1018012227,21.9
Department of Health,Salisbury NHS Foundation Trust,28-Apr-17,DRESSINGS - PRE STERILE,Corporate - Finance & Procurement,NHS LOGISTICS,1018012227,58.2
Department of Health,Salisbury NHS Foundation Trust,28-Apr-17,MED SURG EQUIP REP MAINT CLEANING,Medicine,NHS LOGISTICS,1018012227,42.69
Department of Health,Salisbury NHS Foundation Trust,28-Apr-17,MED SURG EQUIP REP MAINT CLEANING,Medicine,NHS LOGISTICS,1018012227,42.77
Department of Health,Salisbury NHS Foundation Trust,28-Apr-17,MED SURG EQUIP REP MAINT CLEANING,Surgery,NHS LOGISTICS,1018012227,42.77
Department of Health,Salisbury NHS Foundation Trust,28-Apr-17,DRESSINGS - PRE STERILE,Musculo-Skeletal,NHS LOGISTICS,1018012227,22.61
Department of Health,Salisbury NHS Foundation Trust,28-Apr-17,OTHER MEDICAL SUPPLIES,Surgery,NHS LOGISTICS,1018012227,9.01
Department of Health,Salisbury NHS Foundation Trust,28-Apr-17,MEDSURGCONS - OTHER,Surgery,NHS LOGISTICS,1018012227,10.22
Department of Health,Salisbury NHS Foundation Trust,28-Apr-17,OTHER MEDICAL SUPPLIES,Surgery,NHS LOGISTICS,1018012227,64.52
Department of Health,Salisbury NHS Foundation Trust,28-Apr-17,OTHER MEDICAL SUPPLIES,Surgery,NHS LOGISTICS,1018012227,64.52
Department of Health,Salisbury NHS Foundation Trust,28-Apr-17,OTHER MEDICAL SUPPLIES,Surgery,NHS LOGISTICS,1018012227,64.52
Department of Health,Salisbury NHS Foundation Trust,28-Apr-17,M & S EQUIPELECTEQUIPINST - OTHER,Surgery,NHS LOGISTICS,1018012227,114.58
Department of Health,Salisbury NHS Foundation Trust,28-Apr-17,M & S EQUIPELECTEQUIPINST - OTHER,Surgery,NHS LOGISTICS,1018012227,114.58
Department of Health,Salisbury NHS Foundation Trust,28-Apr-17,SURGICAL INSTRUMENTS: GENERAL,Surgery,NHS LOGISTICS,1018012227,85.91
Department of Health,Salisbury NHS Foundation Trust,28-Apr-17,SURGICAL INSTRUMENTS: GENERAL,Surgery,NHS LOGISTICS,1018012227,62.78
Department of Health,Salisbury NHS Foundation Trust,28-Apr-17,MEDSURGCONS-LAPAROSCOPIC EQUIPMENT,Surgery,NHS LOGISTICS,1018012227,268.05
Department of Health,Salisbury NHS Foundation Trust,28-Apr-17,ADULTS HEARING AIDS,Surgery,NHS LOGISTICS,1018012227,3737.42
Department of Health,Salisbury NHS Foundation Trust,28-Apr-17,ADULTS HEARING AIDS,Surgery,NHS LOGISTICS,1018012227,1601.75
Department of Health,Salisbury NHS Foundation Trust,28-Apr-17,MED SURG EQUIP REP MAINT CLEANING,Medicine,NHS LOGISTICS,1018012227,42.69
Department of Health,Salisbury NHS Foundation Trust,28-Apr-17,MED SURG EQUIP REP MAINT CLEANING,Medicine,NHS LOGISTICS,1018012227,42.77
Department of Health,Salisbury NHS Foundation Trust,28-Apr-17,LAB REAGENTS-BUFFERS COMPUND SOLNS,Clinical Support,NHS LOGISTICS,1018012227,108.73
Department of Health,Salisbury NHS Foundation Trust,28-Apr-17,ANAESTHETIC EQUIPMENT ACCESSORIES,Surgery,NHS LOGISTICS,1018012227,279.57
Department of Health,Salisbury NHS Foundation Trust,28-Apr-17,DRESSINGS - PRE STERILE,Musculo-Skeletal,NHS LOGISTICS,1018012227,47.6
Department of Health,Salisbury NHS Foundation Trust,28-Apr-17,DRESSINGS - PRE STERILE,Musculo-Skeletal,NHS LOGISTICS,1018012227,50.3
Department of Health,Salisbury NHS Foundation Trust,28-Apr-17,DRESSINGS - PRE STERILE,Musculo-Skeletal,NHS LOGISTICS,1018012227,29.07
Department of Health,Salisbury NHS Foundation Trust,28-Apr-17,ANAESTHETIC EQUIPMENT ACCESSORIES,Surgery,NHS LOGISTICS,1018012227,192.9
Department of Health,Salisbury NHS Foundation Trust,28-Apr-17,OTHER MEDICAL SUPPLIES,Clinical Support,NHS LOGISTICS,1018012227,406.25
Department of Health,Salisbury NHS Foundation Trust,28-Apr-17,MEDSURGCONS - OTHER,Surgery,NHS LOGISTICS,1018012227,7.2
Department of Health,Salisbury NHS Foundation Trust,28-Apr-17,OTHER MEDICAL SUPPLIES,Surgery,NHS LOGISTICS,1018012227,64.52
Department of Health,Salisbury NHS Foundation Trust,28-Apr-17,PAPER ITEMS GENERAL STATIONERY SUNDRIES,Clinical Support,NHS LOGISTICS,1018012227,66.17
Department of Health,Salisbury NHS Foundation Trust,28-Apr-17,DRESSINGS - PRE STERILE,Medicine,NHS LOGISTICS,1018012227,15.28
Department of Health,Salisbury NHS Foundation Trust,28-Apr-17,TISSUES HAND TOWELS & TOILET PAPER,Medicine,NHS LOGISTICS,1018012227,1.24
Department of Health,Salisbury NHS Foundation Trust,28-Apr-17,OTHER MEDICAL SUPPLIES,Medicine,NHS LOGISTICS,1018012227,4.65
Department of Health,Salisbury NHS Foundation Trust,28-Apr-17,PATIENT APPLIANCES,Medicine,NHS LOGISTICS,1018012227,3.35
Department of Health,Salisbury NHS Foundation Trust,28-Apr-17,PATIENT APPLIANCES,Medicine,NHS LOGISTICS,1018012227,3.35
Department of Health,Salisbury NHS Foundation Trust,28-Apr-17,TISSUES HAND TOWELS & TOILET PAPER,Medicine,NHS LOGISTICS,1018012227,0.35
Department of Health,Salisbury NHS Foundation Trust,28-Apr-17,DRESSINGS - PRE STERILE,Surgery,NHS LOGISTICS,1018012227,2.05
Department of Health,Salisbury NHS Foundation Trust,28-Apr-17,TISSUES HAND TOWELS & TOILET PAPER,Surgery,NHS LOGISTICS,1018012227,3.7
Department of Health,Salisbury NHS Foundation Trust,28-Apr-17,TISSUES HAND TOWELS & TOILET PAPER,Surgery,NHS LOGISTICS,1018012227,7.45
Department of Health,Salisbury NHS Foundation Trust,28-Apr-17,BAGS SACKS - OTHER,Medicine,NHS LOGISTICS,1018012227,10.13
Department of Health,Salisbury NHS Foundation Trust,28-Apr-17,TISSUES HAND TOWELS & TOILET PAPER,Medicine,NHS LOGISTICS,1018012227,1.24
Department of Health,Salisbury NHS Foundation Trust,28-Apr-17,TISSUES HAND TOWELS & TOILET PAPER,Medicine,NHS LOGISTICS,1018012227,0.78
Department of Health,Salisbury NHS Foundation Trust,28-Apr-17,M & S EQUIPELECTEQUIPINST - OTHER,Medicine,NHS LOGISTICS,1018012227,3.08
Department of Health,Salisbury NHS Foundation Trust,28-Apr-17,PATIENT APPLIANCES,Medicine,NHS LOGISTICS,1018012227,4.39
Department of Health,Salisbury NHS Foundation Trust,28-Apr-17,TISSUES HAND TOWELS & TOILET PAPER,Musculo-Skeletal,NHS LOGISTICS,1018012227,1.24
Department of Health,Salisbury NHS Foundation Trust,28-Apr-17,PATIENT APPLIANCES,Musculo-Skeletal,NHS LOGISTICS,1018012227,10.68
Department of Health,Salisbury NHS Foundation Trust,28-Apr-17,DISPOSABLE THEATRE DRAPES WIPES,Musculo-Skeletal,NHS LOGISTICS,1018012227,6.48
Department of Health,Salisbury NHS Foundation Trust,28-Apr-17,MEDSURGCONS - OTHER,Clinical Support,NHS LOGISTICS,1018012227,3.83
Department of Health,Salisbury NHS Foundation Trust,28-Apr-17,TISSUES HAND TOWELS & TOILET PAPER,Corporate - HR/Education,NHS LOGISTICS,1018012227,3.92
Department of Health,Salisbury NHS Foundation Trust,28-Apr-17,SURGICAL INSTRUMENTS: DISPOSABLE,Clinical Support,NHS LOGISTICS,1018012227,41.58
Department of Health,Salisbury NHS Foundation Trust,28-Apr-17,PATIENT APPLIANCES,Clinical Support,NHS LOGISTICS,1018012227,40.87
Department of Health,Salisbury NHS Foundation Trust,28-Apr-17,PATIENT APPLIANCES,Clinical Support,NHS LOGISTICS,1018012227,83.7
Department of Health,Salisbury NHS Foundation Trust,28-Apr-17,TISSUES HAND TOWELS & TOILET PAPER,Clinical Support,NHS LOGISTICS,1018012227,3.72
Department of Health,Salisbury NHS Foundation Trust,28-Apr-17,OTHER MEDICAL SUPPLIES,Clinical Support,NHS LOGISTICS,1018012227,4.69
Department of Health,Salisbury NHS Foundation Trust,28-Apr-17,PATIENT APPLIANCES,Clinical Support,NHS LOGISTICS,1018012227,43.25
Department of Health,Salisbury NHS Foundation Trust,28-Apr-17,DISPOSABLE THEATRE DRAPES WIPES,Clinical Support,NHS LOGISTICS,1018012227,3.24
Department of Health,Salisbury NHS Foundation Trust,28-Apr-17,CLEANING MATERIALS PRODUCTS SUNDRIES,Clinical Support,NHS LOGISTICS,1018012227,3.72
Department of Health,Salisbury NHS Foundation Trust,28-Apr-17,DRESSINGS - PRE STERILE,Medicine,NHS LOGISTICS,1018012227,8.2
Department of Health,Salisbury NHS Foundation Trust,28-Apr-17,SURGICAL INSTRUMENTS: DISPOSABLE,Medicine,NHS LOGISTICS,1018012227,12
Department of Health,Salisbury NHS Foundation Trust,28-Apr-17,TISSUES HAND TOWELS & TOILET PAPER,Surgery,NHS LOGISTICS,1018012227,7.45
Department of Health,Salisbury NHS Foundation Trust,28-Apr-17,DRESSINGS - PRE STERILE,Surgery,NHS LOGISTICS,1018012227,1.11
Department of Health,Salisbury NHS Foundation Trust,28-Apr-17,OTHER MEDICAL SUPPLIES,Surgery,NHS LOGISTICS,1018012227,34.3
Department of Health,Salisbury NHS Foundation Trust,28-Apr-17,DRESSINGS - PRE STERILE,Musculo-Skeletal,NHS LOGISTICS,1018012227,30.49
Department of Health,Salisbury NHS Foundation Trust,28-Apr-17,TISSUES HAND TOWELS & TOILET PAPER,Musculo-Skeletal,NHS LOGISTICS,1018012227,2.48
Department of Health,Salisbury NHS Foundation Trust,28-Apr-17,DRESSINGS - PRE STERILE,Musculo-Skeletal,NHS LOGISTICS,1018012227,20.23
Department of Health,Salisbury NHS Foundation Trust,28-Apr-17,DISPOSABLE THEATRE DRAPES WIPES,Surgery,NHS LOGISTICS,1018012227,3.24
Department of Health,Salisbury NHS Foundation Trust,28-Apr-17,TISSUES HAND TOWELS & TOILET PAPER,Clinical Support,NHS LOGISTICS,1018012227,4.97
Department of Health,Salisbury NHS Foundation Trust,28-Apr-17,TISSUES HAND TOWELS & TOILET PAPER,Clinical Support,NHS LOGISTICS,1018012227,0.78
Department of Health,Salisbury NHS Foundation Trust,28-Apr-17,OTHER MEDICAL SUPPLIES,Musculo-Skeletal,NHS LOGISTICS,1018012227,2.33
Department of Health,Salisbury NHS Foundation Trust,28-Apr-17,OTHER MEDICAL SUPPLIES,Musculo-Skeletal,NHS LOGISTICS,1018012227,2.33
Department of Health,Salisbury NHS Foundation Trust,28-Apr-17,MEDSURGCONS - OTHER,Musculo-Skeletal,NHS LOGISTICS,1018012227,5.89
Department of Health,Salisbury NHS Foundation Trust,28-Apr-17,MEDSURGCONS - OTHER,Musculo-Skeletal,NHS LOGISTICS,1018012227,3.91
Department of Health,Salisbury NHS Foundation Trust,28-Apr-17,MEDSURGCONS - OTHER,Musculo-Skeletal,NHS LOGISTICS,1018012227,6.82
Department of Health,Salisbury NHS Foundation Trust,28-Apr-17,TISSUES HAND TOWELS & TOILET PAPER,Surgery,NHS LOGISTICS,1018012227,4.97
Department of Health,Salisbury NHS Foundation Trust,28-Apr-17,SURGICAL INSTRUMENTS: DISPOSABLE,Surgery,NHS LOGISTICS,1018012227,28.23
Department of Health,Salisbury NHS Foundation Trust,28-Apr-17,M & S EQUIPELECTEQUIPINST - OTHER,Surgery,NHS LOGISTICS,1018012227,44.44
Department of Health,Salisbury NHS Foundation Trust,28-Apr-17,DRESSINGS - PRE STERILE,Surgery,NHS LOGISTICS,1018012227,2.22
Department of Health,Salisbury NHS Foundation Trust,28-Apr-17,BEVERAGES & AMBIENT FOOD,Surgery,NHS LOGISTICS,1018012227,28.68
Department of Health,Salisbury NHS Foundation Trust,28-Apr-17,BEVERAGES & AMBIENT FOOD,Surgery,NHS LOGISTICS,1018012227,1.44
Department of Health,Salisbury NHS Foundation Trust,28-Apr-17,BEVERAGES & AMBIENT FOOD,Surgery,NHS LOGISTICS,1018012227,2.78
Department of Health,Salisbury NHS Foundation Trust,28-Apr-17,M & S EQUIPELECTEQUIPINST - OTHER,Surgery,NHS LOGISTICS,1018012227,275.51
Department of Health,Salisbury NHS Foundation Trust,28-Apr-17,ELECTRICAL EQUIPMENT x,Surgery,NHS LOGISTICS,1018012227,1.67
Department of Health,Salisbury NHS Foundation Trust,28-Apr-17,OTHER MEDICAL SUPPLIES,Surgery,NHS LOGISTICS,1018012227,15.63
Department of Health,Salisbury NHS Foundation Trust,28-Apr-17,OTHER MEDICAL SUPPLIES,Surgery,NHS LOGISTICS,1018012227,15.63
Department of Health,Salisbury NHS Foundation Trust,28-Apr-17,TISSUES HAND TOWELS & TOILET PAPER,Surgery,NHS LOGISTICS,1018012227,1.24
Department of Health,Salisbury NHS Foundation Trust,28-Apr-17,MEDSURGCONS - OTHER,Surgery,NHS LOGISTICS,1018012227,60.85
Department of Health,Salisbury NHS Foundation Trust,28-Apr-17,MEDSURGCONS - OTHER,Surgery,NHS LOGISTICS,1018012227,60.85
Department of Health,Salisbury NHS Foundation Trust,28-Apr-17,MEDSURGCONS - OTHER,Surgery,NHS LOGISTICS,1018012227,203.6
Department of Health,Salisbury NHS Foundation Trust,28-Apr-17,OTHER MEDICAL SUPPLIES,Surgery,NHS LOGISTICS,1018012227,13.95
Department of Health,Salisbury NHS Foundation Trust,28-Apr-17,MEDSURGCONS - OTHER,Surgery,NHS LOGISTICS,1018012227,13.57
Department of Health,Salisbury NHS Foundation Trust,28-Apr-17,MEDSURGCONS - OTHER,Surgery,NHS LOGISTICS,1018012227,47.83
Department of Health,Salisbury NHS Foundation Trust,28-Apr-17,MEDSURGCONS - OTHER,Surgery,NHS LOGISTICS,1018012227,6.82
Department of Health,Salisbury NHS Foundation Trust,28-Apr-17,TOILETRIES PERSONAL HYGIENE PRODUCTS,Surgery,NHS LOGISTICS,1018012227,4.13
Department of Health,Salisbury NHS Foundation Trust,28-Apr-17,M & S EQUIPELECTEQUIPINST - OTHER,Surgery,NHS LOGISTICS,1018012227,1.47
Department of Health,Salisbury NHS Foundation Trust,28-Apr-17,MED SURG EQUIP REP MAINT CLEANING,Surgery,NHS LOGISTICS,1018012227,10.97
Department of Health,Salisbury NHS Foundation Trust,28-Apr-17,DISPOSABLE THEATRE DRAPES WIPES,Surgery,NHS LOGISTICS,1018012227,16.21
Department of Health,Salisbury NHS Foundation Trust,28-Apr-17,MEDSURGCONS - OTHER,Surgery,NHS LOGISTICS,1018012227,16.02
Department of Health,Salisbury NHS Foundation Trust,28-Apr-17,BEVERAGES & AMBIENT FOOD,Facilities,NHS LOGISTICS,1018012227,16.94
Department of Health,Salisbury NHS Foundation Trust,28-Apr-17,BEVERAGES & AMBIENT FOOD,Facilities,NHS LOGISTICS,1018012227,94.4
Department of Health,Salisbury NHS Foundation Trust,28-Apr-17,BEVERAGES & AMBIENT FOOD,Facilities,NHS LOGISTICS,1018012227,6.18
Department of Health,Salisbury NHS Foundation Trust,28-Apr-17,BEVERAGES & AMBIENT FOOD,Facilities,NHS LOGISTICS,1018012227,12.12
Department of Health,Salisbury NHS Foundation Trust,28-Apr-17,FRUIT & VEGETABLES,Facilities,NHS LOGISTICS,1018012227,1.68
Department of Health,Salisbury NHS Foundation Trust,28-Apr-17,FRUIT & VEGETABLES,Facilities,NHS LOGISTICS,1018012227,42.48
Department of Health,Salisbury NHS Foundation Trust,28-Apr-17,FRUIT & VEGETABLES,Facilities,NHS LOGISTICS,1018012227,11.7
Department of Health,Salisbury NHS Foundation Trust,28-Apr-17,FRUIT & VEGETABLES,Facilities,NHS LOGISTICS,1018012227,10.74
Department of Health,Salisbury NHS Foundation Trust,28-Apr-17,FRUIT & VEGETABLES,Facilities,NHS LOGISTICS,1018012227,14.28
Department of Health,Salisbury NHS Foundation Trust,28-Apr-17,FRUIT & VEGETABLES,Facilities,NHS LOGISTICS,1018012227,13.74
Department of Health,Salisbury NHS Foundation Trust,28-Apr-17,FRUIT & VEGETABLES,Facilities,NHS LOGISTICS,1018012227,20.88
Department of Health,Salisbury NHS Foundation Trust,28-Apr-17,FRUIT & VEGETABLES,Facilities,NHS LOGISTICS,1018012227,51.6
Department of Health,Salisbury NHS Foundation Trust,28-Apr-17,BEVERAGES & AMBIENT FOOD,Facilities,NHS LOGISTICS,1018012227,4.58
Department of Health,Salisbury NHS Foundation Trust,28-Apr-17,BEVERAGES & AMBIENT FOOD,Facilities,NHS LOGISTICS,1018012227,87.9
Department of Health,Salisbury NHS Foundation Trust,28-Apr-17,LIQUID REFRESHMENTS,Facilities,NHS LOGISTICS,1018012227,14.54
Department of Health,Salisbury NHS Foundation Trust,28-Apr-17,LIQUID REFRESHMENTS,Facilities,NHS LOGISTICS,1018012227,19.75
Department of Health,Salisbury NHS Foundation Trust,28-Apr-17,LIQUID REFRESHMENTS,Facilities,NHS LOGISTICS,1018012227,2.53
Department of Health,Salisbury NHS Foundation Trust,28-Apr-17,LIQUID REFRESHMENTS,Facilities,NHS LOGISTICS,1018012227,15.5
Department of Health,Salisbury NHS Foundation Trust,28-Apr-17,LIQUID REFRESHMENTS,Facilities,NHS LOGISTICS,1018012227,2.53
Department of Health,Salisbury NHS Foundation Trust,28-Apr-17,LIQUID REFRESHMENTS,Facilities,NHS LOGISTICS,1018012227,9.17
Department of Health,Salisbury NHS Foundation Trust,28-Apr-17,LIQUID REFRESHMENTS,Facilities,NHS LOGISTICS,1018012227,13.25
Department of Health,Salisbury NHS Foundation Trust,28-Apr-17,LIQUID REFRESHMENTS,Facilities,NHS LOGISTICS,1018012227,17.35
Department of Health,Salisbury NHS Foundation Trust,28-Apr-17,BEVERAGES & AMBIENT FOOD,Facilities,NHS LOGISTICS,1018012227,53.7
Department of Health,Salisbury NHS Foundation Trust,28-Apr-17,EGGS MILK OTHER DAIRY PRODUCTS,Facilities,NHS LOGISTICS,1018012227,23.12
Department of Health,Salisbury NHS Foundation Trust,28-Apr-17,BEVERAGES & AMBIENT FOOD,Facilities,NHS LOGISTICS,1018012227,16.38
Department of Health,Salisbury NHS Foundation Trust,28-Apr-17,BEVERAGES & AMBIENT FOOD,Facilities,NHS LOGISTICS,1018012227,8.08
Department of Health,Salisbury NHS Foundation Trust,28-Apr-17,FLAVOURINGS HERBS SPICES,Facilities,NHS LOGISTICS,1018012227,1.67
Department of Health,Salisbury NHS Foundation Trust,28-Apr-17,FLAVOURINGS HERBS SPICES,Facilities,NHS LOGISTICS,1018012227,1.48
Department of Health,Salisbury NHS Foundation Trust,28-Apr-17,BEVERAGES & AMBIENT FOOD,Facilities,NHS LOGISTICS,1018012227,12.12
Department of Health,Salisbury NHS Foundation Trust,28-Apr-17,BEVERAGES & AMBIENT FOOD,Facilities,NHS LOGISTICS,1018012227,2.55
Department of Health,Salisbury NHS Foundation Trust,28-Apr-17,BEVERAGES & AMBIENT FOOD,Facilities,NHS LOGISTICS,1018012227,8.66
Department of Health,Salisbury NHS Foundation Trust,28-Apr-17,BEVERAGES & AMBIENT FOOD,Facilities,NHS LOGISTICS,1018012227,3.92
Department of Health,Salisbury NHS Foundation Trust,28-Apr-17,BEVERAGES & AMBIENT FOOD,Facilities,NHS LOGISTICS,1018012227,7.64
Department of Health,Salisbury NHS Foundation Trust,28-Apr-17,BEVERAGES & AMBIENT FOOD,Facilities,NHS LOGISTICS,1018012227,6.32
Department of Health,Salisbury NHS Foundation Trust,28-Apr-17,BEVERAGES & AMBIENT FOOD,Facilities,NHS LOGISTICS,1018012227,6.56
Department of Health,Salisbury NHS Foundation Trust,28-Apr-17,BEVERAGES & AMBIENT FOOD,Facilities,NHS LOGISTICS,1018012227,12.8
Department of Health,Salisbury NHS Foundation Trust,28-Apr-17,EGGS MILK OTHER DAIRY PRODUCTS,Facilities,NHS LOGISTICS,1018012227,64.58
Department of Health,Salisbury NHS Foundation Trust,28-Apr-17,EGGS MILK OTHER DAIRY PRODUCTS,Facilities,NHS LOGISTICS,1018012227,31.28
Department of Health,Salisbury NHS Foundation Trust,28-Apr-17,BEVERAGES & AMBIENT FOOD,Facilities,NHS LOGISTICS,1018012227,7.5
Department of Health,Salisbury NHS Foundation Trust,28-Apr-17,BEVERAGES & AMBIENT FOOD,Facilities,NHS LOGISTICS,1018012227,19.68
Department of Health,Salisbury NHS Foundation Trust,28-Apr-17,FLAVOURINGS HERBS SPICES,Facilities,NHS LOGISTICS,1018012227,8.07
Department of Health,Salisbury NHS Foundation Trust,28-Apr-17,BEVERAGES & AMBIENT FOOD,Facilities,NHS LOGISTICS,1018012227,5.94
Department of Health,Salisbury NHS Foundation Trust,28-Apr-17,BEVERAGES & AMBIENT FOOD,Facilities,NHS LOGISTICS,1018012227,8.86
Department of Health,Salisbury NHS Foundation Trust,28-Apr-17,BEVERAGES & AMBIENT FOOD,Facilities,NHS LOGISTICS,1018012227,33.36
Department of Health,Salisbury NHS Foundation Trust,28-Apr-17,BAGS SACKS - OTHER,Surgery,NHS LOGISTICS,1018012227,12.19
Department of Health,Salisbury NHS Foundation Trust,28-Apr-17,DRESSINGS - PRE STERILE,Surgery,NHS LOGISTICS,1018012227,25.18
Department of Health,Salisbury NHS Foundation Trust,28-Apr-17,DRESSINGS - PRE STERILE,Surgery,NHS LOGISTICS,1018012227,23.76
Department of Health,Salisbury NHS Foundation Trust,28-Apr-17,COOKING & KITCHEN UTENSILS,Surgery,NHS LOGISTICS,1018012227,17.01
Department of Health,Salisbury NHS Foundation Trust,28-Apr-17,DRUGS,Surgery,NHS LOGISTICS,1018012227,14.73
Department of Health,Salisbury NHS Foundation Trust,28-Apr-17,DRUGS,Surgery,NHS LOGISTICS,1018012227,57.6
Department of Health,Salisbury NHS Foundation Trust,28-Apr-17,DRUGS,Surgery,NHS LOGISTICS,1018012227,46.75
Department of Health,Salisbury NHS Foundation Trust,28-Apr-17,CLEANING MATERIALS PRODUCTS SUNDRIES,Surgery,NHS LOGISTICS,1018012227,2.3
Department of Health,Salisbury NHS Foundation Trust,28-Apr-17,MEDSURGCONS - OTHER,Surgery,NHS LOGISTICS,1018012227,24
Department of Health,Salisbury NHS Foundation Trust,28-Apr-17,OTHER MEDICAL SUPPLIES,Surgery,NHS LOGISTICS,1018012227,23.25
Department of Health,Salisbury NHS Foundation Trust,28-Apr-17,M & S EQUIPELECTEQUIPINST - OTHER,Clinical Support,NHS LOGISTICS,1018012227,152.63
Department of Health,Salisbury NHS Foundation Trust,28-Apr-17,M & S EQUIPELECTEQUIPINST - OTHER,Clinical Support,NHS LOGISTICS,1018012227,2.47
Department of Health,Salisbury NHS Foundation Trust,28-Apr-17,MEDSURGCONS - OTHER,Clinical Support,NHS LOGISTICS,1018012227,29.9
Department of Health,Salisbury NHS Foundation Trust,28-Apr-17,OTHER MEDICAL SUPPLIES,Surgery,NHS LOGISTICS,1018012227,34.3
Department of Health,Salisbury NHS Foundation Trust,28-Apr-17,MEDSURGCONS - OTHER,Medicine,NHS LOGISTICS,1018012227,14.28
Department of Health,Salisbury NHS Foundation Trust,28-Apr-17,MEDSURGCONS - OTHER,Medicine,NHS LOGISTICS,1018012227,138.42
Department of Health,Salisbury NHS Foundation Trust,28-Apr-17,MEDSURGCONS - OTHER,Medicine,NHS LOGISTICS,1018012227,83.05
Department of Health,Salisbury NHS Foundation Trust,28-Apr-17,MEDSURGCONS - OTHER,Medicine,NHS LOGISTICS,1018012227,411.25
Department of Health,Salisbury NHS Foundation Trust,28-Apr-17,MEDSURGCONS - OTHER,Medicine,NHS LOGISTICS,1018012227,41.13
Department of Health,Salisbury NHS Foundation Trust,28-Apr-17,MEDSURGCONS - OTHER,Medicine,NHS LOGISTICS,1018012227,27.68
Department of Health,Salisbury NHS Foundation Trust,28-Apr-17,MEDSURGCONS - OTHER,Medicine,NHS LOGISTICS,1018012227,71.18
Department of Health,Salisbury NHS Foundation Trust,28-Apr-17,MEDSURGCONS - OTHER,Medicine,NHS LOGISTICS,1018012227,163.27
Department of Health,Salisbury NHS Foundation Trust,28-Apr-17,MEDSURGCONS - OTHER,Medicine,NHS LOGISTICS,1018012227,653.07
Department of Health,Salisbury NHS Foundation Trust,28-Apr-17,MEDSURGCONS - OTHER,Medicine,NHS LOGISTICS,1018012227,653.07
Department of Health,Salisbury NHS Foundation Trust,28-Apr-17,MEDSURGCONS - OTHER,Medicine,NHS LOGISTICS,1018012227,408.17
Department of Health,Salisbury NHS Foundation Trust,28-Apr-17,TISSUES HAND TOWELS & TOILET PAPER,Musculo-Skeletal,NHS LOGISTICS,1018012227,7
Department of Health,Salisbury NHS Foundation Trust,28-Apr-17,NON DISPOSABLE BED LINEN,Musculo-Skeletal,NHS LOGISTICS,1018012227,15.06
Department of Health,Salisbury NHS Foundation Trust,28-Apr-17,DISPOSABLE THEATRE DRAPES WIPES,Musculo-Skeletal,NHS LOGISTICS,1018012227,9.73
Department of Health,Salisbury NHS Foundation Trust,28-Apr-17,TISSUES HAND TOWELS & TOILET PAPER,Surgery,NHS LOGISTICS,1018012227,0.62
Department of Health,Salisbury NHS Foundation Trust,28-Apr-17,TISSUES HAND TOWELS & TOILET PAPER,Surgery,NHS LOGISTICS,1018012227,2.48
Department of Health,Salisbury NHS Foundation Trust,28-Apr-17,TISSUES HAND TOWELS & TOILET PAPER,Surgery,NHS LOGISTICS,1018012227,0.78
Department of Health,Salisbury NHS Foundation Trust,28-Apr-17,DISPOSABLE THEATRE DRAPES WIPES,Surgery,NHS LOGISTICS,1018012227,2.08
Department of Health,Salisbury NHS Foundation Trust,28-Apr-17,TISSUES HAND TOWELS & TOILET PAPER,Medicine,NHS LOGISTICS,1018012227,1.24
Department of Health,Salisbury NHS Foundation Trust,28-Apr-17,DISPOSABLE THEATRE DRAPES WIPES,Medicine,NHS LOGISTICS,1018012227,3.24
Department of Health,Salisbury NHS Foundation Trust,28-Apr-17,TISSUES HAND TOWELS & TOILET PAPER,Clinical Support,NHS LOGISTICS,1018012227,1.17
Department of Health,Salisbury NHS Foundation Trust,28-Apr-17,OTHER MEDICAL SUPPLIES,Clinical Support,NHS LOGISTICS,1018012227,74.97
Department of Health,Salisbury NHS Foundation Trust,28-Apr-17,MEDSURGCONS - OTHER,Clinical Support,NHS LOGISTICS,1018012227,353.58
Department of Health,Salisbury NHS Foundation Trust,28-Apr-17,DRESSINGS - PRE STERILE,Clinical Support,NHS LOGISTICS,1018012227,0.75
Department of Health,Salisbury NHS Foundation Trust,28-Apr-17,TISSUES HAND TOWELS & TOILET PAPER,Clinical Support,NHS LOGISTICS,1018012227,2.48
Department of Health,Salisbury NHS Foundation Trust,28-Apr-17,CLEANING MATERIALS PRODUCTS SUNDRIES,Clinical Support,NHS LOGISTICS,1018012227,5.53
Department of Health,Salisbury NHS Foundation Trust,28-Apr-17,OTHER MEDICAL SUPPLIES,Clinical Support,NHS LOGISTICS,1018012227,6.98
Department of Health,Salisbury NHS Foundation Trust,28-Apr-17,OTHER MEDICAL SUPPLIES,Clinical Support,NHS LOGISTICS,1018012227,8.58
Department of Health,Salisbury NHS Foundation Trust,28-Apr-17,DRESSINGS - PRE STERILE,Clinical Support,NHS LOGISTICS,1018012227,0.35
Department of Health,Salisbury NHS Foundation Trust,28-Apr-17,MEDSURGCONS - OTHER,Clinical Support,NHS LOGISTICS,1018012227,13.29
Department of Health,Salisbury NHS Foundation Trust,28-Apr-17,MEDSURGCONS - OTHER,Clinical Support,NHS LOGISTICS,1018012227,3.91
Department of Health,Salisbury NHS Foundation Trust,28-Apr-17,MEDSURGCONS - OTHER,Clinical Support,NHS LOGISTICS,1018012227,6.82
Department of Health,Salisbury NHS Foundation Trust,28-Apr-17,DISPOSABLE THEATRE DRAPES WIPES,Clinical Support,NHS LOGISTICS,1018012227,6.48
Department of Health,Salisbury NHS Foundation Trust,28-Apr-17,DRESSINGS - PRE STERILE,Medicine,NHS LOGISTICS,1018012227,7.64
Department of Health,Salisbury NHS Foundation Trust,28-Apr-17,OTHER MEDICAL SUPPLIES,Medicine,NHS LOGISTICS,1018012227,2.33
Department of Health,Salisbury NHS Foundation Trust,28-Apr-17,PATIENT APPLIANCES,Medicine,NHS LOGISTICS,1018012227,3.35
Department of Health,Salisbury NHS Foundation Trust,28-Apr-17,PATIENT APPLIANCES,Medicine,NHS LOGISTICS,1018012227,3.35
Department of Health,Salisbury NHS Foundation Trust,28-Apr-17,PATIENT APPLIANCES,Medicine,NHS LOGISTICS,1018012227,3.35
Department of Health,Salisbury NHS Foundation Trust,28-Apr-17,TISSUES HAND TOWELS & TOILET PAPER,Medicine,NHS LOGISTICS,1018012227,0.7
Department of Health,Salisbury NHS Foundation Trust,28-Apr-17,TOILETRIES PERSONAL HYGIENE PRODUCTS,Medicine,NHS LOGISTICS,1018012227,4.13
Department of Health,Salisbury NHS Foundation Trust,28-Apr-17,LIQUID REFRESHMENTS,Facilities,NHS LOGISTICS,1018012227,68
Department of Health,Salisbury NHS Foundation Trust,28-Apr-17,BEVERAGES & AMBIENT FOOD,Facilities,NHS LOGISTICS,1018012227,9.9
Department of Health,Salisbury NHS Foundation Trust,28-Apr-17,BEVERAGES & AMBIENT FOOD,Facilities,NHS LOGISTICS,1018012227,17
Department of Health,Salisbury NHS Foundation Trust,28-Apr-17,FRUIT & VEGETABLES,Facilities,NHS LOGISTICS,1018012227,30.96
Department of Health,Salisbury NHS Foundation Trust,28-Apr-17,FRUIT & VEGETABLES,Facilities,NHS LOGISTICS,1018012227,14.76
Department of Health,Salisbury NHS Foundation Trust,28-Apr-17,LAB EQUIP-LABORATORY APPARATUS,Clinical Support,NHS LOGISTICS,1018012227,12.62
Department of Health,Salisbury NHS Foundation Trust,28-Apr-17,LAB EQUIP-LABORATORY APPARATUS,Clinical Support,NHS LOGISTICS,1018012227,296.67
Department of Health,Salisbury NHS Foundation Trust,28-Apr-17,LAB EQUIP-ANALYSERS,Clinical Support,NHS LOGISTICS,1018012227,38.1
Department of Health,Salisbury NHS Foundation Trust,28-Apr-17,LAB EQUIP-LABORATORY APPARATUS,Clinical Support,NHS LOGISTICS,1018012227,655.08
Department of Health,Salisbury NHS Foundation Trust,28-Apr-17,LAB EQUIP-LABORATORY APPARATUS,Clinical Support,NHS LOGISTICS,1018012227,19.25
Department of Health,Salisbury NHS Foundation Trust,28-Apr-17,LAB EQUIP-LABORATORY APPARATUS,Clinical Support,NHS LOGISTICS,1018012227,38.5
Department of Health,Salisbury NHS Foundation Trust,28-Apr-17,LAB EQUIP-ANALYSERS,Clinical Support,NHS LOGISTICS,1018012227,10.19
Department of Health,Salisbury NHS Foundation Trust,28-Apr-17,COOKING & KITCHEN UTENSILS,Clinical Support,NHS LOGISTICS,1018012227,4.9
Department of Health,Salisbury NHS Foundation Trust,28-Apr-17,LAB EQUIP-LABORATORY APPARATUS,Clinical Support,NHS LOGISTICS,1018012227,6.3
Department of Health,Salisbury NHS Foundation Trust,28-Apr-17,LAB EQUIP-LABORATORY APPARATUS,Clinical Support,NHS LOGISTICS,1018012227,85.4
Department of Health,Salisbury NHS Foundation Trust,28-Apr-17,OTHER MEDICAL SUPPLIES,Clinical Support,NHS LOGISTICS,1018012227,364
Department of Health,Salisbury NHS Foundation Trust,28-Apr-17,MEDSURGCONS - OTHER,Clinical Support,NHS LOGISTICS,1018012227,38.69
Department of Health,Salisbury NHS Foundation Trust,28-Apr-17,OTHER MEDICAL SUPPLIES,Clinical Support,NHS LOGISTICS,1018012227,2.33
Department of Health,Salisbury NHS Foundation Trust,28-Apr-17,BEVERAGES & AMBIENT FOOD,Surgery,NHS LOGISTICS,1018012227,14.34
Department of Health,Salisbury NHS Foundation Trust,28-Apr-17,BEVERAGES & AMBIENT FOOD,Surgery,NHS LOGISTICS,1018012227,1.44
Department of Health,Salisbury NHS Foundation Trust,28-Apr-17,BEVERAGES & AMBIENT FOOD,Surgery,NHS LOGISTICS,1018012227,1.39
Department of Health,Salisbury NHS Foundation Trust,28-Apr-17,DRESSINGS - PRE STERILE,Clinical Support,NHS LOGISTICS,1018012227,51.35
Department of Health,Salisbury NHS Foundation Trust,28-Apr-17,DRESSINGS - PRE STERILE,Clinical Support,NHS LOGISTICS,1018012227,28
Department of Health,Salisbury NHS Foundation Trust,28-Apr-17,DRESSINGS - PRE STERILE,Clinical Support,NHS LOGISTICS,1018012227,187.38
Department of Health,Salisbury NHS Foundation Trust,28-Apr-17,DRESSINGS - PRE STERILE,Clinical Support,NHS LOGISTICS,1018012227,21.99
Department of Health,Salisbury NHS Foundation Trust,28-Apr-17,DRESSINGS - PRE STERILE,Clinical Support,NHS LOGISTICS,1018012227,21.58
Department of Health,Salisbury NHS Foundation Trust,28-Apr-17,TISSUES HAND TOWELS & TOILET PAPER,Surgery,NHS LOGISTICS,1018012227,1.24
Department of Health,Salisbury NHS Foundation Trust,28-Apr-17,PATIENT APPLIANCES,Surgery,NHS LOGISTICS,1018012227,3.35
Department of Health,Salisbury NHS Foundation Trust,28-Apr-17,PATIENT APPLIANCES,Surgery,NHS LOGISTICS,1018012227,3.35
Department of Health,Salisbury NHS Foundation Trust,28-Apr-17,TISSUES HAND TOWELS & TOILET PAPER,Clinical Support,NHS LOGISTICS,1018012227,3.72
Department of Health,Salisbury NHS Foundation Trust,28-Apr-17,TISSUES HAND TOWELS & TOILET PAPER,Clinical Support,NHS LOGISTICS,1018012227,10.65
Department of Health,Salisbury NHS Foundation Trust,28-Apr-17,DRESSINGS - PRE STERILE,Clinical Support,NHS LOGISTICS,1018012227,8.87
Department of Health,Salisbury NHS Foundation Trust,28-Apr-17,DISPOSABLE THEATRE DRAPES WIPES,Clinical Support,NHS LOGISTICS,1018012227,3.24
Department of Health,Salisbury NHS Foundation Trust,28-Apr-17,TISSUES HAND TOWELS & TOILET PAPER,Surgery,NHS LOGISTICS,1018012227,0.7
Department of Health,Salisbury NHS Foundation Trust,28-Apr-17,DISPOSABLE THEATRE DRAPES WIPES,Surgery,NHS LOGISTICS,1018012227,3.24
Department of Health,Salisbury NHS Foundation Trust,28-Apr-17,DRESSINGS - PRE STERILE,Medicine,NHS LOGISTICS,1018012227,7.64
Department of Health,Salisbury NHS Foundation Trust,28-Apr-17,PATIENT APPLIANCES,Medicine,NHS LOGISTICS,1018012227,3.35
Department of Health,Salisbury NHS Foundation Trust,28-Apr-17,TISSUES HAND TOWELS & TOILET PAPER,Medicine,NHS LOGISTICS,1018012227,1.05
Department of Health,Salisbury NHS Foundation Trust,28-Apr-17,DRESSINGS - PRE STERILE,Medicine,NHS LOGISTICS,1018012227,3.21
Department of Health,Salisbury NHS Foundation Trust,28-Apr-17,DRESSINGS - PRE STERILE,Medicine,NHS LOGISTICS,1018012227,6.13
Department of Health,Salisbury NHS Foundation Trust,28-Apr-17,PATIENT APPLIANCES,Medicine,NHS LOGISTICS,1018012227,25.9
Department of Health,Salisbury NHS Foundation Trust,28-Apr-17,ANAESTHETIC EQUIPMENT ACCESSORIES,Medicine,NHS LOGISTICS,1018012227,1.15
Department of Health,Salisbury NHS Foundation Trust,28-Apr-17,TUBES,Medicine,NHS LOGISTICS,1018012227,6.85
Department of Health,Salisbury NHS Foundation Trust,28-Apr-17,OTHER MEDICAL SUPPLIES,Medicine,NHS LOGISTICS,1018012227,9.3
Department of Health,Salisbury NHS Foundation Trust,28-Apr-17,MEDSURGCONS - OTHER,Medicine,NHS LOGISTICS,1018012227,59.78
Department of Health,Salisbury NHS Foundation Trust,28-Apr-17,SURGICAL INSTRUMENTS: GENERAL,Medicine,NHS LOGISTICS,1018012227,9.48
Department of Health,Salisbury NHS Foundation Trust,28-Apr-17,MEDSURGCONS - OTHER,Surgery,NHS LOGISTICS,1018012227,13.57
Department of Health,Salisbury NHS Foundation Trust,28-Apr-17,MEDSURGCONS - OTHER,Surgery,NHS LOGISTICS,1018012227,5.34
Department of Health,Salisbury NHS Foundation Trust,28-Apr-17,OTHER MEDICAL SUPPLIES,Surgery,NHS LOGISTICS,1018012227,17.15
Department of Health,Salisbury NHS Foundation Trust,28-Apr-17,MED SURG EQUIP REP MAINT CLEANING,Surgery,NHS LOGISTICS,1018012227,37.35
Department of Health,Salisbury NHS Foundation Trust,28-Apr-17,MED SURG EQUIP REP MAINT CLEANING,Surgery,NHS LOGISTICS,1018012227,38.85
Department of Health,Salisbury NHS Foundation Trust,28-Apr-17,M & S EQUIPELECTEQUIPINST - OTHER,Clinical Support,NHS LOGISTICS,1018012227,41.67
Department of Health,Salisbury NHS Foundation Trust,28-Apr-17,OTHER MEDICAL SUPPLIES,Clinical Support,NHS LOGISTICS,1018012227,51.45
Department of Health,Salisbury NHS Foundation Trust,28-Apr-17,CLEANING MATERIALS PRODUCTS SUNDRIES,Facilities,NHS LOGISTICS,1018012227,91.2
Department of Health,Salisbury NHS Foundation Trust,28-Apr-17,PATIENT APPLIANCES,Medicine,NHS LOGISTICS,1018012227,4.03
Department of Health,Salisbury NHS Foundation Trust,28-Apr-17,PATIENT APPLIANCES,Medicine,NHS LOGISTICS,1018012227,4.03
Department of Health,Salisbury NHS Foundation Trust,28-Apr-17,PATIENT APPLIANCES,Medicine,NHS LOGISTICS,1018012227,8.05
Department of Health,Salisbury NHS Foundation Trust,28-Apr-17,PATIENT APPLIANCES,Medicine,NHS LOGISTICS,1018012227,8.05
Department of Health,Salisbury NHS Foundation Trust,28-Apr-17,DISPOSABLE THEATRE DRAPES WIPES,Medicine,NHS LOGISTICS,1018012227,6.48
Department of Health,Salisbury NHS Foundation Trust,28-Apr-17,DRESSINGS - PRE STERILE,Musculo-Skeletal,NHS LOGISTICS,1018012227,4.52
Department of Health,Salisbury NHS Foundation Trust,28-Apr-17,DRESSINGS - PRE STERILE,Musculo-Skeletal,NHS LOGISTICS,1018012227,12.32
Department of Health,Salisbury NHS Foundation Trust,28-Apr-17,DRESSINGS - PRE STERILE,Musculo-Skeletal,NHS LOGISTICS,1018012227,1.12
Department of Health,Salisbury NHS Foundation Trust,28-Apr-17,TISSUES HAND TOWELS & TOILET PAPER,Musculo-Skeletal,NHS LOGISTICS,1018012227,3.72
Department of Health,Salisbury NHS Foundation Trust,28-Apr-17,DISPOSABLE THEATRE DRAPES WIPES,Musculo-Skeletal,NHS LOGISTICS,1018012227,3.24
Department of Health,Salisbury NHS Foundation Trust,28-Apr-17,PATIENTS BABY WEAR,Medicine,NHS LOGISTICS,1018012227,24
Department of Health,Salisbury NHS Foundation Trust,28-Apr-17,PATIENTS BABY WEAR,Medicine,NHS LOGISTICS,1018012227,23.2
Department of Health,Salisbury NHS Foundation Trust,28-Apr-17,PATIENTS BABY WEAR,Medicine,NHS LOGISTICS,1018012227,7.73
Department of Health,Salisbury NHS Foundation Trust,28-Apr-17,PATIENT APPLIANCES,Medicine,NHS LOGISTICS,1018012227,3.35
Department of Health,Salisbury NHS Foundation Trust,28-Apr-17,PATIENT APPLIANCES,Medicine,NHS LOGISTICS,1018012227,4.39
Department of Health,Salisbury NHS Foundation Trust,28-Apr-17,DISPOSABLE THEATRE DRAPES WIPES,Medicine,NHS LOGISTICS,1018012227,3.24
Department of Health,Salisbury NHS Foundation Trust,28-Apr-17,DRESSINGS - PRE STERILE,Musculo-Skeletal,NHS LOGISTICS,1018012227,7.64
Department of Health,Salisbury NHS Foundation Trust,28-Apr-17,TISSUES HAND TOWELS & TOILET PAPER,Musculo-Skeletal,NHS LOGISTICS,1018012227,2.48
Department of Health,Salisbury NHS Foundation Trust,28-Apr-17,CLEANING MATERIALS PRODUCTS SUNDRIES,Musculo-Skeletal,NHS LOGISTICS,1018012227,5.45
Department of Health,Salisbury NHS Foundation Trust,28-Apr-17,DRESSINGS - PRE STERILE,Musculo-Skeletal,NHS LOGISTICS,1018012227,5.87
Department of Health,Salisbury NHS Foundation Trust,28-Apr-17,NON DISPOSABLE BED LINEN,Musculo-Skeletal,NHS LOGISTICS,1018012227,19.53
Department of Health,Salisbury NHS Foundation Trust,28-Apr-17,CLEANING MATERIALS PRODUCTS SUNDRIES,Musculo-Skeletal,NHS LOGISTICS,1018012227,25.93
Department of Health,Salisbury NHS Foundation Trust,28-Apr-17,OTHER MEDICAL SUPPLIES,Musculo-Skeletal,NHS LOGISTICS,1018012227,4.65
Department of Health,Salisbury NHS Foundation Trust,28-Apr-17,PATIENT APPLIANCES,Musculo-Skeletal,NHS LOGISTICS,1018012227,8.78
Department of Health,Salisbury NHS Foundation Trust,28-Apr-17,MEDSURGCONS - OTHER,Musculo-Skeletal,NHS LOGISTICS,1018012227,5.89
Department of Health,Salisbury NHS Foundation Trust,28-Apr-17,MEDSURGCONS - OTHER,Musculo-Skeletal,NHS LOGISTICS,1018012227,3.91
Department of Health,Salisbury NHS Foundation Trust,28-Apr-17,DISPOSABLE THEATRE DRAPES WIPES,Musculo-Skeletal,NHS LOGISTICS,1018012227,3.24
Department of Health,Salisbury NHS Foundation Trust,28-Apr-17,DRESSINGS - PRE STERILE,Musculo-Skeletal,NHS LOGISTICS,1018012227,15.28
Department of Health,Salisbury NHS Foundation Trust,28-Apr-17,DRESSINGS - PRE STERILE,Musculo-Skeletal,NHS LOGISTICS,1018012227,9.03
Department of Health,Salisbury NHS Foundation Trust,28-Apr-17,OTHER MEDICAL SUPPLIES,Musculo-Skeletal,NHS LOGISTICS,1018012227,4.65
Department of Health,Salisbury NHS Foundation Trust,28-Apr-17,DRESSINGS - PRE STERILE,Musculo-Skeletal,NHS LOGISTICS,1018012227,90
Department of Health,Salisbury NHS Foundation Trust,28-Apr-17,DRESSINGS - PRE STERILE,Musculo-Skeletal,NHS LOGISTICS,1018012227,253.04
Department of Health,Salisbury NHS Foundation Trust,28-Apr-17,DRESSINGS - PRE STERILE,Musculo-Skeletal,NHS LOGISTICS,1018012227,239.57
Department of Health,Salisbury NHS Foundation Trust,28-Apr-17,DISPOSABLE THEATRE DRAPES WIPES,Musculo-Skeletal,NHS LOGISTICS,1018012227,3.24
Department of Health,Salisbury NHS Foundation Trust,28-Apr-17,TISSUES HAND TOWELS & TOILET PAPER,Surgery,NHS LOGISTICS,1018012227,1.23
Department of Health,Salisbury NHS Foundation Trust,28-Apr-17,TISSUES HAND TOWELS & TOILET PAPER,Surgery,NHS LOGISTICS,1018012227,4.97
Department of Health,Salisbury NHS Foundation Trust,28-Apr-17,PATIENTS BEDWEAR UNISEX,Clinical Support,NHS LOGISTICS,1018012227,8
Department of Health,Salisbury NHS Foundation Trust,28-Apr-17,M & S EQUIPELECTEQUIPINST - OTHER,Clinical Support,NHS LOGISTICS,1018012227,11.5
Department of Health,Salisbury NHS Foundation Trust,28-Apr-17,MED SURG EQUIP REP MAINT CLEANING,Clinical Support,NHS LOGISTICS,1018012227,10.97
Department of Health,Salisbury NHS Foundation Trust,28-Apr-17,TISSUES HAND TOWELS & TOILET PAPER,Medicine,NHS LOGISTICS,1018012227,1.24
Department of Health,Salisbury NHS Foundation Trust,28-Apr-17,DRESSINGS - PRE STERILE,Medicine,NHS LOGISTICS,1018012227,29.93
Department of Health,Salisbury NHS Foundation Trust,28-Apr-17,TISSUES HAND TOWELS & TOILET PAPER,Medicine,NHS LOGISTICS,1018012227,1.57
Department of Health,Salisbury NHS Foundation Trust,28-Apr-17,OTHER MEDICAL SUPPLIES,Medicine,NHS LOGISTICS,1018012227,2.33
Department of Health,Salisbury NHS Foundation Trust,28-Apr-17,OTHER MEDICAL SUPPLIES,Medicine,NHS LOGISTICS,1018012227,5.93
Department of Health,Salisbury NHS Foundation Trust,28-Apr-17,DRESSINGS - PRE STERILE,Medicine,NHS LOGISTICS,1018012227,0.35
Department of Health,Salisbury NHS Foundation Trust,28-Apr-17,MED SURG EQUIP REP MAINT CLEANING,Medicine,NHS LOGISTICS,1018012227,10.97
Department of Health,Salisbury NHS Foundation Trust,28-Apr-17,DISPOSABLE THEATRE DRAPES WIPES,Medicine,NHS LOGISTICS,1018012227,6.48
Department of Health,Salisbury NHS Foundation Trust,28-Apr-17,DISPOSABLE THEATRE DRAPES WIPES,Surgery,NHS LOGISTICS,1018012227,11.38
Department of Health,Salisbury NHS Foundation Trust,28-Apr-17,DRESSINGS - PRE STERILE,Surgery,NHS LOGISTICS,1018012227,2.08
Department of Health,Salisbury NHS Foundation Trust,28-Apr-17,TUBES,Medicine,NHS LOGISTICS,1018012227,6.85
Department of Health,Salisbury NHS Foundation Trust,28-Apr-17,SURGICAL INSTRUMENTS: GENERAL,Medicine,NHS LOGISTICS,1018012227,9.83
Department of Health,Salisbury NHS Foundation Trust,28-Apr-17,OTHER MEDICAL SUPPLIES,Medicine,NHS LOGISTICS,1018012227,6.98
Department of Health,Salisbury NHS Foundation Trust,28-Apr-17,MEDSURGCONS - OTHER,Medicine,NHS LOGISTICS,1018012227,5.89
Department of Health,Salisbury NHS Foundation Trust,28-Apr-17,MEDSURGCONS - OTHER,Medicine,NHS LOGISTICS,1018012227,3.91
Department of Health,Salisbury NHS Foundation Trust,28-Apr-17,MEDSURGCONS - OTHER,Medicine,NHS LOGISTICS,1018012227,6.82
Department of Health,Salisbury NHS Foundation Trust,28-Apr-17,TISSUES HAND TOWELS & TOILET PAPER,Medicine,NHS LOGISTICS,1018012227,2.1
Department of Health,Salisbury NHS Foundation Trust,28-Apr-17,DISPOSABLE THEATRE DRAPES WIPES,Medicine,NHS LOGISTICS,1018012227,6.48
Department of Health,Salisbury NHS Foundation Trust,28-Apr-17,TISSUES HAND TOWELS & TOILET PAPER,Musculo-Skeletal,NHS LOGISTICS,1018012227,1.24
Department of Health,Salisbury NHS Foundation Trust,28-Apr-17,OTHER MEDICAL SUPPLIES,Musculo-Skeletal,NHS LOGISTICS,1018012227,6.98
Department of Health,Salisbury NHS Foundation Trust,28-Apr-17,TISSUES HAND TOWELS & TOILET PAPER,Musculo-Skeletal,NHS LOGISTICS,1018012227,0.7
Department of Health,Salisbury NHS Foundation Trust,28-Apr-17,DISPOSABLE THEATRE DRAPES WIPES,Musculo-Skeletal,NHS LOGISTICS,1018012227,3.24
Department of Health,Salisbury NHS Foundation Trust,28-Apr-17,DRESSINGS - PRE STERILE,Musculo-Skeletal,NHS LOGISTICS,1018012227,21.18
Department of Health,Salisbury NHS Foundation Trust,28-Apr-17,DRESSINGS - PRE STERILE,Musculo-Skeletal,NHS LOGISTICS,1018012227,47.58
Department of Health,Salisbury NHS Foundation Trust,28-Apr-17,DRESSINGS - PRE STERILE,Musculo-Skeletal,NHS LOGISTICS,1018012227,53.76
Department of Health,Salisbury NHS Foundation Trust,28-Apr-17,DRESSINGS - PRE STERILE,Musculo-Skeletal,NHS LOGISTICS,1018012227,60.07
Department of Health,Salisbury NHS Foundation Trust,28-Apr-17,DRESSINGS - PRE STERILE,Musculo-Skeletal,NHS LOGISTICS,1018012227,30.03
Department of Health,Salisbury NHS Foundation Trust,28-Apr-17,DRESSINGS - PRE STERILE,Musculo-Skeletal,NHS LOGISTICS,1018012227,27.86
Department of Health,Salisbury NHS Foundation Trust,28-Apr-17,DRESSINGS - PRE STERILE,Musculo-Skeletal,NHS LOGISTICS,1018012227,21.88
Department of Health,Salisbury NHS Foundation Trust,28-Apr-17,DRESSINGS - PRE STERILE,Musculo-Skeletal,NHS LOGISTICS,1018012227,23.28
Department of Health,Salisbury NHS Foundation Trust,28-Apr-17,DRESSINGS - PRE STERILE,Musculo-Skeletal,NHS LOGISTICS,1018012227,25.03
Department of Health,Salisbury NHS Foundation Trust,28-Apr-17,MED SURG EQUIP REP MAINT CLEANING,Surgery,NHS LOGISTICS,1018012227,37.35
Department of Health,Salisbury NHS Foundation Trust,28-Apr-17,MED SURG EQUIP REP MAINT CLEANING,Surgery,NHS LOGISTICS,1018012227,38.85
Department of Health,Salisbury NHS Foundation Trust,28-Apr-17,TISSUES HAND TOWELS & TOILET PAPER,Clinical Support,NHS LOGISTICS,1018012227,10.65
Department of Health,Salisbury NHS Foundation Trust,28-Apr-17,DRESSINGS - PRE STERILE,Clinical Support,NHS LOGISTICS,1018012227,1.11
Department of Health,Salisbury NHS Foundation Trust,28-Apr-17,BABY TEXTURE MODIFIED FOODS,Clinical Support,NHS LOGISTICS,1018012227,16.66
Department of Health,Salisbury NHS Foundation Trust,28-Apr-17,MEDSURGCONS - OTHER,Clinical Support,NHS LOGISTICS,1018012227,729.17
Department of Health,Salisbury NHS Foundation Trust,28-Apr-17,OTHER MEDICAL SUPPLIES,Medicine,NHS LOGISTICS,1018012227,2.33
Department of Health,Salisbury NHS Foundation Trust,28-Apr-17,BEVERAGES & AMBIENT FOOD,Medicine,NHS LOGISTICS,1018012227,5.36
Department of Health,Salisbury NHS Foundation Trust,28-Apr-17,COOKING & KITCHEN UTENSILS,Surgery,NHS LOGISTICS,1018012227,17.01
Department of Health,Salisbury NHS Foundation Trust,28-Apr-17,DRESSINGS - PRE STERILE,Surgery,NHS LOGISTICS,1018012227,11.68
Department of Health,Salisbury NHS Foundation Trust,28-Apr-17,DRESSINGS - PRE STERILE,Surgery,NHS LOGISTICS,1018012227,14.63
Department of Health,Salisbury NHS Foundation Trust,28-Apr-17,SURGICAL INSTRUMENTS: GENERAL,Surgery,NHS LOGISTICS,1018012227,29.17
Department of Health,Salisbury NHS Foundation Trust,28-Apr-17,TISSUES HAND TOWELS & TOILET PAPER,Surgery,NHS LOGISTICS,1018012227,0.7
Department of Health,Salisbury NHS Foundation Trust,28-Apr-17,DISPOSABLE THEATRE DRAPES WIPES,Surgery,NHS LOGISTICS,1018012227,12.97
Department of Health,Salisbury NHS Foundation Trust,28-Apr-17,TUBES,Medicine,NHS LOGISTICS,1018012227,6.85
Department of Health,Salisbury NHS Foundation Trust,28-Apr-17,NON DISPOSABLE BED LINEN,Medicine,NHS LOGISTICS,1018012227,4.88
Department of Health,Salisbury NHS Foundation Trust,28-Apr-17,NON DISPOSABLE BED LINEN,Medicine,NHS LOGISTICS,1018012227,23.92
Department of Health,Salisbury NHS Foundation Trust,28-Apr-17,OTHER MEDICAL SUPPLIES,Medicine,NHS LOGISTICS,1018012227,4.65
Department of Health,Salisbury NHS Foundation Trust,28-Apr-17,PATIENT APPLIANCES,Medicine,NHS LOGISTICS,1018012227,3.35
Department of Health,Salisbury NHS Foundation Trust,28-Apr-17,TISSUES HAND TOWELS & TOILET PAPER,Medicine,NHS LOGISTICS,1018012227,1.4
Department of Health,Salisbury NHS Foundation Trust,28-Apr-17,DISPOSABLE THEATRE DRAPES WIPES,Medicine,NHS LOGISTICS,1018012227,6.48
Department of Health,Salisbury NHS Foundation Trust,28-Apr-17,M & S EQUIPELECTEQUIPINST - OTHER,Musculo-Skeletal,NHS LOGISTICS,1018012227,165.23
Department of Health,Salisbury NHS Foundation Trust,28-Apr-17,M & S EQUIPELECTEQUIPINST - OTHER,Clinical Support,NHS LOGISTICS,1018012227,114.58
Department of Health,Salisbury NHS Foundation Trust,28-Apr-17,M & S EQUIPELECTEQUIPINST - OTHER,Clinical Support,NHS LOGISTICS,1018012227,130.21
Department of Health,Salisbury NHS Foundation Trust,28-Apr-17,OTHER MEDICAL SUPPLIES,Clinical Support,NHS LOGISTICS,1018012227,17.15
Department of Health,Salisbury NHS Foundation Trust,28-Apr-17,DRESSINGS - PRE STERILE,Clinical Support,NHS LOGISTICS,1018012227,11.08
Department of Health,Salisbury NHS Foundation Trust,28-Apr-17,ELECTRICAL EQUIPMENT x,Surgery,NHS LOGISTICS,1018012227,12.27
Department of Health,Salisbury NHS Foundation Trust,28-Apr-17,CLEANING MATERIALS PRODUCTS SUNDRIES,Clinical Support,NHS LOGISTICS,1018012227,5.53
Department of Health,Salisbury NHS Foundation Trust,28-Apr-17,MEDSURGCONS - OTHER,Clinical Support,NHS LOGISTICS,1018012227,16.61
Department of Health,Salisbury NHS Foundation Trust,28-Apr-17,MEDSURGCONS - OTHER,Clinical Support,NHS LOGISTICS,1018012227,11.78
Department of Health,Salisbury NHS Foundation Trust,28-Apr-17,BABY TEXTURE MODIFIED FOODS,Clinical Support,NHS LOGISTICS,1018012227,16.66
Department of Health,Salisbury NHS Foundation Trust,28-Apr-17,SURGICAL INSTRUMENTS: GENERAL,Medicine,NHS LOGISTICS,1018012227,9.83
Department of Health,Salisbury NHS Foundation Trust,28-Apr-17,OTHER MEDICAL SUPPLIES,Medicine,NHS LOGISTICS,1018012227,4.65
Department of Health,Salisbury NHS Foundation Trust,28-Apr-17,TISSUES HAND TOWELS & TOILET PAPER,Medicine,NHS LOGISTICS,1018012227,2.8
Department of Health,Salisbury NHS Foundation Trust,28-Apr-17,DISPOSABLE THEATRE DRAPES WIPES,Medicine,NHS LOGISTICS,1018012227,9.73
Department of Health,Salisbury NHS Foundation Trust,28-Apr-17,MEDSURGCONS - OTHER,Surgery,NHS LOGISTICS,1018012227,60.85
Department of Health,Salisbury NHS Foundation Trust,28-Apr-17,OTHER MEDICAL SUPPLIES,Surgery,NHS LOGISTICS,1018012227,9.3
Department of Health,Salisbury NHS Foundation Trust,28-Apr-17,MEDSURGCONS - OTHER,Surgery,NHS LOGISTICS,1018012227,6.82
Department of Health,Salisbury NHS Foundation Trust,28-Apr-17,DRESSINGS - PRE STERILE,Surgery,NHS LOGISTICS,1018012227,143.46
Department of Health,Salisbury NHS Foundation Trust,28-Apr-17,MEDSURGCONS - OTHER,Surgery,NHS LOGISTICS,1018012227,20
Department of Health,Salisbury NHS Foundation Trust,28-Apr-17,OTHER MEDICAL SUPPLIES,Surgery,NHS LOGISTICS,1018012227,23.25
Department of Health,Salisbury NHS Foundation Trust,28-Apr-17,SURGICAL INSTRUMENTS: GENERAL,Surgery,NHS LOGISTICS,1018012227,76.47
Department of Health,Salisbury NHS Foundation Trust,28-Apr-17,TISSUES HAND TOWELS & TOILET PAPER,Medicine,NHS LOGISTICS,1018012227,2.48
Department of Health,Salisbury NHS Foundation Trust,28-Apr-17,DISPOSABLE THEATRE DRAPES WIPES,Medicine,NHS LOGISTICS,1018012227,9.73
Department of Health,Salisbury NHS Foundation Trust,28-Apr-17,OTHER MEDICAL SUPPLIES,Surgery,NHS LOGISTICS,1018012227,4.65
Department of Health,Salisbury NHS Foundation Trust,28-Apr-17,TISSUES HAND TOWELS & TOILET PAPER,Surgery,NHS LOGISTICS,1018012227,0.7
Department of Health,Salisbury NHS Foundation Trust,28-Apr-17,BAGS SACKS - OTHER,Facilities,NHS LOGISTICS,1018012227,10.13
Department of Health,Salisbury NHS Foundation Trust,28-Apr-17,BAGS SACKS - OTHER,Facilities,NHS LOGISTICS,1018012227,7.21
Department of Health,Salisbury NHS Foundation Trust,28-Apr-17,BEVERAGES & AMBIENT FOOD,Facilities,NHS LOGISTICS,1018012227,8.47
Department of Health,Salisbury NHS Foundation Trust,28-Apr-17,BEVERAGES & AMBIENT FOOD,Facilities,NHS LOGISTICS,1018012227,94.4
Department of Health,Salisbury NHS Foundation Trust,28-Apr-17,BEVERAGES & AMBIENT FOOD,Facilities,NHS LOGISTICS,1018012227,16.44
Department of Health,Salisbury NHS Foundation Trust,28-Apr-17,FRUIT & VEGETABLES,Facilities,NHS LOGISTICS,1018012227,2.52
Department of Health,Salisbury NHS Foundation Trust,28-Apr-17,FRUIT & VEGETABLES,Facilities,NHS LOGISTICS,1018012227,92.88
Department of Health,Salisbury NHS Foundation Trust,28-Apr-17,FRUIT & VEGETABLES,Facilities,NHS LOGISTICS,1018012227,11.7
Department of Health,Salisbury NHS Foundation Trust,28-Apr-17,FRUIT & VEGETABLES,Facilities,NHS LOGISTICS,1018012227,35.88
Department of Health,Salisbury NHS Foundation Trust,28-Apr-17,FRUIT & VEGETABLES,Facilities,NHS LOGISTICS,1018012227,30.6
Department of Health,Salisbury NHS Foundation Trust,28-Apr-17,FRUIT & VEGETABLES,Facilities,NHS LOGISTICS,1018012227,26.64
Department of Health,Salisbury NHS Foundation Trust,28-Apr-17,FRUIT & VEGETABLES,Facilities,NHS LOGISTICS,1018012227,9.84
Department of Health,Salisbury NHS Foundation Trust,28-Apr-17,FRUIT & VEGETABLES,Facilities,NHS LOGISTICS,1018012227,41.76
Department of Health,Salisbury NHS Foundation Trust,28-Apr-17,FRUIT & VEGETABLES,Facilities,NHS LOGISTICS,1018012227,79.2
Department of Health,Salisbury NHS Foundation Trust,28-Apr-17,FRUIT & VEGETABLES,Facilities,NHS LOGISTICS,1018012227,32.76
Department of Health,Salisbury NHS Foundation Trust,28-Apr-17,BEVERAGES & AMBIENT FOOD,Facilities,NHS LOGISTICS,1018012227,2.47
Department of Health,Salisbury NHS Foundation Trust,28-Apr-17,BEVERAGES & AMBIENT FOOD,Facilities,NHS LOGISTICS,1018012227,4.58
Department of Health,Salisbury NHS Foundation Trust,28-Apr-17,BEVERAGES & AMBIENT FOOD,Facilities,NHS LOGISTICS,1018012227,24.6
Department of Health,Salisbury NHS Foundation Trust,28-Apr-17,BEVERAGES & AMBIENT FOOD,Facilities,NHS LOGISTICS,1018012227,105.48
Department of Health,Salisbury NHS Foundation Trust,28-Apr-17,LIQUID REFRESHMENTS,Facilities,NHS LOGISTICS,1018012227,16.46
Department of Health,Salisbury NHS Foundation Trust,28-Apr-17,LIQUID REFRESHMENTS,Facilities,NHS LOGISTICS,1018012227,2.53
Department of Health,Salisbury NHS Foundation Trust,28-Apr-17,LIQUID REFRESHMENTS,Facilities,NHS LOGISTICS,1018012227,18.6
Department of Health,Salisbury NHS Foundation Trust,28-Apr-17,LIQUID REFRESHMENTS,Facilities,NHS LOGISTICS,1018012227,2.53
Department of Health,Salisbury NHS Foundation Trust,28-Apr-17,LIQUID REFRESHMENTS,Facilities,NHS LOGISTICS,1018012227,18.33
Department of Health,Salisbury NHS Foundation Trust,28-Apr-17,LIQUID REFRESHMENTS,Facilities,NHS LOGISTICS,1018012227,68
Department of Health,Salisbury NHS Foundation Trust,28-Apr-17,BEVERAGES & AMBIENT FOOD,Facilities,NHS LOGISTICS,1018012227,7.18
Department of Health,Salisbury NHS Foundation Trust,28-Apr-17,BEVERAGES & AMBIENT FOOD,Facilities,NHS LOGISTICS,1018012227,14.04
Department of Health,Salisbury NHS Foundation Trust,28-Apr-17,COOKING & KITCHEN UTENSILS,Facilities,NHS LOGISTICS,1018012227,24.17
Department of Health,Salisbury NHS Foundation Trust,28-Apr-17,BEVERAGES & AMBIENT FOOD,Facilities,NHS LOGISTICS,1018012227,60.76
Department of Health,Salisbury NHS Foundation Trust,28-Apr-17,BEVERAGES & AMBIENT FOOD,Facilities,NHS LOGISTICS,1018012227,60.8
Department of Health,Salisbury NHS Foundation Trust,28-Apr-17,BEVERAGES & AMBIENT FOOD,Facilities,NHS LOGISTICS,1018012227,60.8
Department of Health,Salisbury NHS Foundation Trust,28-Apr-17,BEVERAGES & AMBIENT FOOD,Facilities,NHS LOGISTICS,1018012227,32.88
Department of Health,Salisbury NHS Foundation Trust,28-Apr-17,BEVERAGES & AMBIENT FOOD,Facilities,NHS LOGISTICS,1018012227,34.56
Department of Health,Salisbury NHS Foundation Trust,28-Apr-17,BEVERAGES & AMBIENT FOOD,Facilities,NHS LOGISTICS,1018012227,42.96
Department of Health,Salisbury NHS Foundation Trust,28-Apr-17,BEVERAGES & AMBIENT FOOD,Facilities,NHS LOGISTICS,1018012227,49.14
Department of Health,Salisbury NHS Foundation Trust,28-Apr-17,BEVERAGES & AMBIENT FOOD,Facilities,NHS LOGISTICS,1018012227,6.72
Department of Health,Salisbury NHS Foundation Trust,28-Apr-17,FLAVOURINGS HERBS SPICES,Facilities,NHS LOGISTICS,1018012227,2.46
Department of Health,Salisbury NHS Foundation Trust,28-Apr-17,FLAVOURINGS HERBS SPICES,Facilities,NHS LOGISTICS,1018012227,1.67
Department of Health,Salisbury NHS Foundation Trust,28-Apr-17,FLAVOURINGS HERBS SPICES,Facilities,NHS LOGISTICS,1018012227,2.96
Department of Health,Salisbury NHS Foundation Trust,28-Apr-17,BEVERAGES & AMBIENT FOOD,Facilities,NHS LOGISTICS,1018012227,13.96
Department of Health,Salisbury NHS Foundation Trust,28-Apr-17,BEVERAGES & AMBIENT FOOD,Facilities,NHS LOGISTICS,1018012227,54.48
Department of Health,Salisbury NHS Foundation Trust,28-Apr-17,BEVERAGES & AMBIENT FOOD,Facilities,NHS LOGISTICS,1018012227,6.22
Department of Health,Salisbury NHS Foundation Trust,28-Apr-17,BEVERAGES & AMBIENT FOOD,Facilities,NHS LOGISTICS,1018012227,3.57
Department of Health,Salisbury NHS Foundation Trust,28-Apr-17,BEVERAGES & AMBIENT FOOD,Facilities,NHS LOGISTICS,1018012227,7.28
Department of Health,Salisbury NHS Foundation Trust,28-Apr-17,BEVERAGES & AMBIENT FOOD,Facilities,NHS LOGISTICS,1018012227,4.43
Department of Health,Salisbury NHS Foundation Trust,28-Apr-17,BEVERAGES & AMBIENT FOOD,Facilities,NHS LOGISTICS,1018012227,8.66
Department of Health,Salisbury NHS Foundation Trust,28-Apr-17,BEVERAGES & AMBIENT FOOD,Facilities,NHS LOGISTICS,1018012227,12.78
Department of Health,Salisbury NHS Foundation Trust,28-Apr-17,BEVERAGES & AMBIENT FOOD,Facilities,NHS LOGISTICS,1018012227,24.96
Department of Health,Salisbury NHS Foundation Trust,28-Apr-17,BEVERAGES & AMBIENT FOOD,Facilities,NHS LOGISTICS,1018012227,7.64
Department of Health,Salisbury NHS Foundation Trust,28-Apr-17,BEVERAGES & AMBIENT FOOD,Facilities,NHS LOGISTICS,1018012227,3.24
Department of Health,Salisbury NHS Foundation Trust,28-Apr-17,BEVERAGES & AMBIENT FOOD,Facilities,NHS LOGISTICS,1018012227,12.36
Department of Health,Salisbury NHS Foundation Trust,28-Apr-17,BEVERAGES & AMBIENT FOOD,Facilities,NHS LOGISTICS,1018012227,6.78
Department of Health,Salisbury NHS Foundation Trust,28-Apr-17,EGGS MILK OTHER DAIRY PRODUCTS,Facilities,NHS LOGISTICS,1018012227,193.74
Department of Health,Salisbury NHS Foundation Trust,28-Apr-17,FLAVOURINGS HERBS SPICES,Facilities,NHS LOGISTICS,1018012227,11.73
Department of Health,Salisbury NHS Foundation Trust,28-Apr-17,FLAVOURINGS HERBS SPICES,Facilities,NHS LOGISTICS,1018012227,6.15
Department of Health,Salisbury NHS Foundation Trust,28-Apr-17,FRUIT & VEGETABLES,Facilities,NHS LOGISTICS,1018012227,20.08
Department of Health,Salisbury NHS Foundation Trust,28-Apr-17,BEVERAGES & AMBIENT FOOD,Facilities,NHS LOGISTICS,1018012227,19.68
Department of Health,Salisbury NHS Foundation Trust,28-Apr-17,BEVERAGES & AMBIENT FOOD,Facilities,NHS LOGISTICS,1018012227,11.6
Department of Health,Salisbury NHS Foundation Trust,28-Apr-17,FLAVOURINGS HERBS SPICES,Facilities,NHS LOGISTICS,1018012227,45.92
Department of Health,Salisbury NHS Foundation Trust,28-Apr-17,BEVERAGES & AMBIENT FOOD,Facilities,NHS LOGISTICS,1018012227,50.13
Department of Health,Salisbury NHS Foundation Trust,28-Apr-17,BEVERAGES & AMBIENT FOOD,Facilities,NHS LOGISTICS,1018012227,8.86
Department of Health,Salisbury NHS Foundation Trust,28-Apr-17,BEVERAGES & AMBIENT FOOD,Facilities,NHS LOGISTICS,1018012227,17.08
Department of Health,Salisbury NHS Foundation Trust,28-Apr-17,BEVERAGES & AMBIENT FOOD,Facilities,NHS LOGISTICS,1018012227,66.72
Department of Health,Salisbury NHS Foundation Trust,28-Apr-17,BEVERAGES & AMBIENT FOOD,Facilities,NHS LOGISTICS,1018012227,9.6
Department of Health,Salisbury NHS Foundation Trust,28-Apr-17,PATIENT APPLIANCES,Medicine,NHS LOGISTICS,1018012227,12.08
Department of Health,Salisbury NHS Foundation Trust,28-Apr-17,PATIENT APPLIANCES,Medicine,NHS LOGISTICS,1018012227,8.05
Department of Health,Salisbury NHS Foundation Trust,28-Apr-17,PATIENT APPLIANCES,Medicine,NHS LOGISTICS,1018012227,8.05
Department of Health,Salisbury NHS Foundation Trust,28-Apr-17,PATIENT APPLIANCES,Medicine,NHS LOGISTICS,1018012227,8.05
Department of Health,Salisbury NHS Foundation Trust,28-Apr-17,MEDSURGCONS - OTHER,Medicine,NHS LOGISTICS,1018012227,101.8
Department of Health,Salisbury NHS Foundation Trust,28-Apr-17,OTHER MEDICAL SUPPLIES,Medicine,NHS LOGISTICS,1018012227,4.65
Department of Health,Salisbury NHS Foundation Trust,28-Apr-17,TISSUES HAND TOWELS & TOILET PAPER,Medicine,NHS LOGISTICS,1018012227,0.35
Department of Health,Salisbury NHS Foundation Trust,28-Apr-17,TOILETRIES PERSONAL HYGIENE PRODUCTS,Medicine,NHS LOGISTICS,1018012227,4.13
Department of Health,Salisbury NHS Foundation Trust,28-Apr-17,DISPOSABLE THEATRE DRAPES WIPES,Medicine,NHS LOGISTICS,1018012227,6.48
Department of Health,Salisbury NHS Foundation Trust,28-Apr-17,COOKING & KITCHEN UTENSILS,Surgery,NHS LOGISTICS,1018012227,17.01
Department of Health,Salisbury NHS Foundation Trust,28-Apr-17,DISPOSABLE THEATRE DRAPES WIPES,Surgery,NHS LOGISTICS,1018012227,33.35
Department of Health,Salisbury NHS Foundation Trust,28-Apr-17,DRUGS,Surgery,NHS LOGISTICS,1018012227,14.73
Department of Health,Salisbury NHS Foundation Trust,28-Apr-17,DRUGS,Surgery,NHS LOGISTICS,1018012227,57.6
Department of Health,Salisbury NHS Foundation Trust,28-Apr-17,MEDSURGCONS - OTHER,Surgery,NHS LOGISTICS,1018012227,20.48
Department of Health,Salisbury NHS Foundation Trust,28-Apr-17,MEDSURGCONS - OTHER,Surgery,NHS LOGISTICS,1018012227,20.48
Department of Health,Salisbury NHS Foundation Trust,28-Apr-17,DISPOSABLE THEATRE DRAPES WIPES,Surgery,NHS LOGISTICS,1018012227,9.73
Department of Health,Salisbury NHS Foundation Trust,28-Apr-17,DENTAL SURGERY SUNDRIES,Musculo-Skeletal,NHS LOGISTICS,1018012227,24.5
Department of Health,Salisbury NHS Foundation Trust,28-Apr-17,TISSUES HAND TOWELS & TOILET PAPER,Clinical Support,NHS LOGISTICS,1018012227,21.3
Department of Health,Salisbury NHS Foundation Trust,28-Apr-17,DRESSINGS - PRE STERILE,Clinical Support,NHS LOGISTICS,1018012227,0.35
Department of Health,Salisbury NHS Foundation Trust,28-Apr-17,NON DISPOSABLE BED LINEN,Clinical Support,NHS LOGISTICS,1018012227,8.75
Department of Health,Salisbury NHS Foundation Trust,28-Apr-17,DISPOSABLE THEATRE DRAPES WIPES,Clinical Support,NHS LOGISTICS,1018012227,3.24
Department of Health,Salisbury NHS Foundation Trust,28-Apr-17,BEVERAGES & AMBIENT FOOD,Facilities,NHS LOGISTICS,1018012227,12.25
Department of Health,Salisbury NHS Foundation Trust,28-Apr-17,BEVERAGES & AMBIENT FOOD,Facilities,NHS LOGISTICS,1018012227,17
Department of Health,Salisbury NHS Foundation Trust,28-Apr-17,BEVERAGES & AMBIENT FOOD,Facilities,NHS LOGISTICS,1018012227,36.36
Department of Health,Salisbury NHS Foundation Trust,28-Apr-17,ADULTS HEARING AIDS,Surgery,NHS LOGISTICS,1018012227,2895.67
Department of Health,Salisbury NHS Foundation Trust,28-Apr-17,ADULTS HEARING AIDS,Surgery,NHS LOGISTICS,1018012227,74.3
Department of Health,Salisbury NHS Foundation Trust,28-Apr-17,ADULTS HEARING AIDS,Surgery,NHS LOGISTICS,1018012227,2895.67
Department of Health,Salisbury NHS Foundation Trust,28-Apr-17,ADULTS HEARING AIDS,Surgery,NHS LOGISTICS,1018012227,2895.67
Department of Health,Salisbury NHS Foundation Trust,28-Apr-17,DISPOSABLE THEATRE DRAPES WIPES,Facilities,NHS LOGISTICS,1018012227,133.4
Department of Health,Salisbury NHS Foundation Trust,28-Apr-17,OTHER MEDICAL SUPPLIES,Corporate - Finance & Procurement,NHS LOGISTICS,1018012227,38.72
Department of Health,Salisbury NHS Foundation Trust,28-Apr-17,OTHER MEDICAL SUPPLIES,Corporate - Finance & Procurement,NHS LOGISTICS,1018012227,525
Department of Health,Salisbury NHS Foundation Trust,28-Apr-17,MEDSURGCONS - OTHER,Surgery,NHS LOGISTICS,1018012227,43.01
Department of Health,Salisbury NHS Foundation Trust,28-Apr-17,MED SURG EQUIP REP MAINT CLEANING,Musculo-Skeletal,NHS LOGISTICS,1018012227,8.55
Department of Health,Salisbury NHS Foundation Trust,28-Apr-17,BEVERAGES & AMBIENT FOOD,Medicine,NHS LOGISTICS,1018012227,0.34
Department of Health,Salisbury NHS Foundation Trust,28-Apr-17,MEDSURGCONS - OTHER,Medicine,NHS LOGISTICS,1018012227,440.82
Department of Health,Salisbury NHS Foundation Trust,28-Apr-17,MEDSURGCONS - OTHER,Medicine,NHS LOGISTICS,1018012227,1322.46
Department of Health,Salisbury NHS Foundation Trust,28-Apr-17,MEDSURGCONS - OTHER,Medicine,NHS LOGISTICS,1018012227,440.82
Department of Health,Salisbury NHS Foundation Trust,28-Apr-17,MEDSURGCONS - OTHER,Medicine,NHS LOGISTICS,1018012227,1322.46
Department of Health,Salisbury NHS Foundation Trust,28-Apr-17,PATIENT APPLIANCES,Surgery,NHS LOGISTICS,1018012227,3.32
Department of Health,Salisbury NHS Foundation Trust,28-Apr-17,MEDSURGCONS - OTHER,Surgery,NHS LOGISTICS,1018012227,43.01
Department of Health,Salisbury NHS Foundation Trust,28-Apr-17,PAPER ITEMS GENERAL STATIONERY SUNDRIES,Clinical Support,NHS LOGISTICS,1018012227,3.42
Department of Health,Salisbury NHS Foundation Trust,28-Apr-17,SURGICAL INSTRUMENTS: GENERAL,Medicine,NHS LOGISTICS,1018012227,20.68
Department of Health,Salisbury NHS Foundation Trust,28-Apr-17,PATIENT APPLIANCES,Medicine,NHS LOGISTICS,1018012227,4.38
Department of Health,Salisbury NHS Foundation Trust,28-Apr-17,PATIENT APPLIANCES,Medicine,NHS LOGISTICS,1018012227,4.38
Department of Health,Salisbury NHS Foundation Trust,28-Apr-17,PATIENT APPLIANCES,Medicine,NHS LOGISTICS,1018012227,4.38
Department of Health,Salisbury NHS Foundation Trust,28-Apr-17,DRESSINGS - PRE STERILE,Corporate - Finance & Procurement,NHS LOGISTICS,1018012227,11.64
Department of Health,Salisbury NHS Foundation Trust,28-Apr-17,MED SURG EQUIP REP MAINT CLEANING,Medicine,NHS LOGISTICS,1018012227,8.54
Department of Health,Salisbury NHS Foundation Trust,28-Apr-17,MED SURG EQUIP REP MAINT CLEANING,Medicine,NHS LOGISTICS,1018012227,8.55
Department of Health,Salisbury NHS Foundation Trust,28-Apr-17,MED SURG EQUIP REP MAINT CLEANING,Surgery,NHS LOGISTICS,1018012227,8.55
Department of Health,Salisbury NHS Foundation Trust,28-Apr-17,DRESSINGS - PRE STERILE,Musculo-Skeletal,NHS LOGISTICS,1018012227,4.52
Department of Health,Salisbury NHS Foundation Trust,28-Apr-17,OTHER MEDICAL SUPPLIES,Surgery,NHS LOGISTICS,1018012227,1.8
Department of Health,Salisbury NHS Foundation Trust,28-Apr-17,MEDSURGCONS - OTHER,Surgery,NHS LOGISTICS,1018012227,2.04
Department of Health,Salisbury NHS Foundation Trust,28-Apr-17,OTHER MEDICAL SUPPLIES,Surgery,NHS LOGISTICS,1018012227,12.9
Department of Health,Salisbury NHS Foundation Trust,28-Apr-17,OTHER MEDICAL SUPPLIES,Surgery,NHS LOGISTICS,1018012227,12.9
Department of Health,Salisbury NHS Foundation Trust,28-Apr-17,OTHER MEDICAL SUPPLIES,Surgery,NHS LOGISTICS,1018012227,12.9
Department of Health,Salisbury NHS Foundation Trust,28-Apr-17,M & S EQUIPELECTEQUIPINST - OTHER,Surgery,NHS LOGISTICS,1018012227,22.92
Department of Health,Salisbury NHS Foundation Trust,28-Apr-17,M & S EQUIPELECTEQUIPINST - OTHER,Surgery,NHS LOGISTICS,1018012227,22.92
Department of Health,Salisbury NHS Foundation Trust,28-Apr-17,SURGICAL INSTRUMENTS: GENERAL,Surgery,NHS LOGISTICS,1018012227,17.18
Department of Health,Salisbury NHS Foundation Trust,28-Apr-17,SURGICAL INSTRUMENTS: GENERAL,Surgery,NHS LOGISTICS,1018012227,12.56
Department of Health,Salisbury NHS Foundation Trust,28-Apr-17,MEDSURGCONS-LAPAROSCOPIC EQUIPMENT,Surgery,NHS LOGISTICS,1018012227,53.61
Department of Health,Salisbury NHS Foundation Trust,28-Apr-17,ADULTS HEARING AIDS,Surgery,NHS LOGISTICS,1018012227,747.48
Department of Health,Salisbury NHS Foundation Trust,28-Apr-17,ADULTS HEARING AIDS,Surgery,NHS LOGISTICS,1018012227,320.35
Department of Health,Salisbury NHS Foundation Trust,28-Apr-17,MED SURG EQUIP REP MAINT CLEANING,Medicine,NHS LOGISTICS,1018012227,8.54
Department of Health,Salisbury NHS Foundation Trust,28-Apr-17,MED SURG EQUIP REP MAINT CLEANING,Medicine,NHS LOGISTICS,1018012227,8.55
Department of Health,Salisbury NHS Foundation Trust,28-Apr-17,LAB REAGENTS-BUFFERS COMPUND SOLNS,Clinical Support,NHS LOGISTICS,1018012227,21.75
Department of Health,Salisbury NHS Foundation Trust,28-Apr-17,ANAESTHETIC EQUIPMENT ACCESSORIES,Surgery,NHS LOGISTICS,1018012227,55.91
Department of Health,Salisbury NHS Foundation Trust,28-Apr-17,DRESSINGS - PRE STERILE,Musculo-Skeletal,NHS LOGISTICS,1018012227,9.52
Department of Health,Salisbury NHS Foundation Trust,28-Apr-17,DRESSINGS - PRE STERILE,Musculo-Skeletal,NHS LOGISTICS,1018012227,10.06
Department of Health,Salisbury NHS Foundation Trust,28-Apr-17,DRESSINGS - PRE STERILE,Musculo-Skeletal,NHS LOGISTICS,1018012227,5.81
Department of Health,Salisbury NHS Foundation Trust,28-Apr-17,ANAESTHETIC EQUIPMENT ACCESSORIES,Surgery,NHS LOGISTICS,1018012227,38.58
Department of Health,Salisbury NHS Foundation Trust,28-Apr-17,OTHER MEDICAL SUPPLIES,Clinical Support,NHS LOGISTICS,1018012227,81.25
Department of Health,Salisbury NHS Foundation Trust,28-Apr-17,MEDSURGCONS - OTHER,Surgery,NHS LOGISTICS,1018012227,1.44
Department of Health,Salisbury NHS Foundation Trust,28-Apr-17,OTHER MEDICAL SUPPLIES,Surgery,NHS LOGISTICS,1018012227,12.9
Department of Health,Salisbury NHS Foundation Trust,28-Apr-17,PAPER ITEMS GENERAL STATIONERY SUNDRIES,Clinical Support,NHS LOGISTICS,1018012227,13.23
Department of Health,Salisbury NHS Foundation Trust,28-Apr-17,DRESSINGS - PRE STERILE,Medicine,NHS LOGISTICS,1018012227,3.06
Department of Health,Salisbury NHS Foundation Trust,28-Apr-17,TISSUES HAND TOWELS & TOILET PAPER,Medicine,NHS LOGISTICS,1018012227,0.25
Department of Health,Salisbury NHS Foundation Trust,28-Apr-17,OTHER MEDICAL SUPPLIES,Medicine,NHS LOGISTICS,1018012227,0.93
Department of Health,Salisbury NHS Foundation Trust,28-Apr-17,PATIENT APPLIANCES,Medicine,NHS LOGISTICS,1018012227,0.67
Department of Health,Salisbury NHS Foundation Trust,28-Apr-17,PATIENT APPLIANCES,Medicine,NHS LOGISTICS,1018012227,0.67
Department of Health,Salisbury NHS Foundation Trust,28-Apr-17,TISSUES HAND TOWELS & TOILET PAPER,Medicine,NHS LOGISTICS,1018012227,0.07
Department of Health,Salisbury NHS Foundation Trust,28-Apr-17,DRESSINGS - PRE STERILE,Surgery,NHS LOGISTICS,1018012227,0.41
Department of Health,Salisbury NHS Foundation Trust,28-Apr-17,TISSUES HAND TOWELS & TOILET PAPER,Surgery,NHS LOGISTICS,1018012227,0.74
Department of Health,Salisbury NHS Foundation Trust,28-Apr-17,TISSUES HAND TOWELS & TOILET PAPER,Surgery,NHS LOGISTICS,1018012227,1.49
Department of Health,Salisbury NHS Foundation Trust,28-Apr-17,BAGS SACKS - OTHER,Medicine,NHS LOGISTICS,1018012227,2.03
Department of Health,Salisbury NHS Foundation Trust,28-Apr-17,TISSUES HAND TOWELS & TOILET PAPER,Medicine,NHS LOGISTICS,1018012227,0.25
Department of Health,Salisbury NHS Foundation Trust,28-Apr-17,TISSUES HAND TOWELS & TOILET PAPER,Medicine,NHS LOGISTICS,1018012227,0.16
Department of Health,Salisbury NHS Foundation Trust,28-Apr-17,M & S EQUIPELECTEQUIPINST - OTHER,Medicine,NHS LOGISTICS,1018012227,0.62
Department of Health,Salisbury NHS Foundation Trust,28-Apr-17,PATIENT APPLIANCES,Medicine,NHS LOGISTICS,1018012227,0.88
Department of Health,Salisbury NHS Foundation Trust,28-Apr-17,TISSUES HAND TOWELS & TOILET PAPER,Musculo-Skeletal,NHS LOGISTICS,1018012227,0.25
Department of Health,Salisbury NHS Foundation Trust,28-Apr-17,PATIENT APPLIANCES,Musculo-Skeletal,NHS LOGISTICS,1018012227,2.14
Department of Health,Salisbury NHS Foundation Trust,28-Apr-17,DISPOSABLE THEATRE DRAPES WIPES,Musculo-Skeletal,NHS LOGISTICS,1018012227,1.3
Department of Health,Salisbury NHS Foundation Trust,28-Apr-17,MEDSURGCONS - OTHER,Clinical Support,NHS LOGISTICS,1018012227,0.77
Department of Health,Salisbury NHS Foundation Trust,28-Apr-17,TISSUES HAND TOWELS & TOILET PAPER,Corporate - HR/Education,NHS LOGISTICS,1018012227,0.78
Department of Health,Salisbury NHS Foundation Trust,28-Apr-17,PATIENT APPLIANCES,Clinical Support,NHS LOGISTICS,1018012227,8.17
Department of Health,Salisbury NHS Foundation Trust,28-Apr-17,PATIENT APPLIANCES,Clinical Support,NHS LOGISTICS,1018012227,16.74
Department of Health,Salisbury NHS Foundation Trust,28-Apr-17,TISSUES HAND TOWELS & TOILET PAPER,Clinical Support,NHS LOGISTICS,1018012227,0.74
Department of Health,Salisbury NHS Foundation Trust,28-Apr-17,OTHER MEDICAL SUPPLIES,Clinical Support,NHS LOGISTICS,1018012227,0.94
Department of Health,Salisbury NHS Foundation Trust,28-Apr-17,PATIENT APPLIANCES,Clinical Support,NHS LOGISTICS,1018012227,8.65
Department of Health,Salisbury NHS Foundation Trust,28-Apr-17,SURGICAL INSTRUMENTS: DISPOSABLE,Clinical Support,NHS LOGISTICS,1018012227,8.32
Department of Health,Salisbury NHS Foundation Trust,28-Apr-17,DISPOSABLE THEATRE DRAPES WIPES,Clinical Support,NHS LOGISTICS,1018012227,0.65
Department of Health,Salisbury NHS Foundation Trust,28-Apr-17,CLEANING MATERIALS PRODUCTS SUNDRIES,Clinical Support,NHS LOGISTICS,1018012227,0.74
Department of Health,Salisbury NHS Foundation Trust,28-Apr-17,DRESSINGS - PRE STERILE,Medicine,NHS LOGISTICS,1018012227,1.64
Department of Health,Salisbury NHS Foundation Trust,28-Apr-17,SURGICAL INSTRUMENTS: DISPOSABLE,Medicine,NHS LOGISTICS,1018012227,2.4
Department of Health,Salisbury NHS Foundation Trust,28-Apr-17,TISSUES HAND TOWELS & TOILET PAPER,Surgery,NHS LOGISTICS,1018012227,1.49
Department of Health,Salisbury NHS Foundation Trust,28-Apr-17,DRESSINGS - PRE STERILE,Surgery,NHS LOGISTICS,1018012227,0.22
Department of Health,Salisbury NHS Foundation Trust,28-Apr-17,OTHER MEDICAL SUPPLIES,Surgery,NHS LOGISTICS,1018012227,6.86
Department of Health,Salisbury NHS Foundation Trust,28-Apr-17,DRESSINGS - PRE STERILE,Musculo-Skeletal,NHS LOGISTICS,1018012227,6.1
Department of Health,Salisbury NHS Foundation Trust,28-Apr-17,TISSUES HAND TOWELS & TOILET PAPER,Musculo-Skeletal,NHS LOGISTICS,1018012227,0.5
Department of Health,Salisbury NHS Foundation Trust,28-Apr-17,DRESSINGS - PRE STERILE,Musculo-Skeletal,NHS LOGISTICS,1018012227,4.05
Department of Health,Salisbury NHS Foundation Trust,28-Apr-17,DISPOSABLE THEATRE DRAPES WIPES,Surgery,NHS LOGISTICS,1018012227,0.65
Department of Health,Salisbury NHS Foundation Trust,28-Apr-17,TISSUES HAND TOWELS & TOILET PAPER,Clinical Support,NHS LOGISTICS,1018012227,0.99
Department of Health,Salisbury NHS Foundation Trust,28-Apr-17,TISSUES HAND TOWELS & TOILET PAPER,Clinical Support,NHS LOGISTICS,1018012227,0.16
Department of Health,Salisbury NHS Foundation Trust,28-Apr-17,OTHER MEDICAL SUPPLIES,Musculo-Skeletal,NHS LOGISTICS,1018012227,0.47
Department of Health,Salisbury NHS Foundation Trust,28-Apr-17,OTHER MEDICAL SUPPLIES,Musculo-Skeletal,NHS LOGISTICS,1018012227,0.47
Department of Health,Salisbury NHS Foundation Trust,28-Apr-17,MEDSURGCONS - OTHER,Musculo-Skeletal,NHS LOGISTICS,1018012227,1.18
Department of Health,Salisbury NHS Foundation Trust,28-Apr-17,MEDSURGCONS - OTHER,Musculo-Skeletal,NHS LOGISTICS,1018012227,0.78
Department of Health,Salisbury NHS Foundation Trust,28-Apr-17,MEDSURGCONS - OTHER,Musculo-Skeletal,NHS LOGISTICS,1018012227,1.36
Department of Health,Salisbury NHS Foundation Trust,28-Apr-17,TISSUES HAND TOWELS & TOILET PAPER,Surgery,NHS LOGISTICS,1018012227,0.99
Department of Health,Salisbury NHS Foundation Trust,28-Apr-17,SURGICAL INSTRUMENTS: DISPOSABLE,Surgery,NHS LOGISTICS,1018012227,5.65
Department of Health,Salisbury NHS Foundation Trust,28-Apr-17,M & S EQUIPELECTEQUIPINST - OTHER,Surgery,NHS LOGISTICS,1018012227,8.89
Department of Health,Salisbury NHS Foundation Trust,28-Apr-17,DRESSINGS - PRE STERILE,Surgery,NHS LOGISTICS,1018012227,0.44
Department of Health,Salisbury NHS Foundation Trust,28-Apr-17,BEVERAGES & AMBIENT FOOD,Surgery,NHS LOGISTICS,1018012227,5.74
Department of Health,Salisbury NHS Foundation Trust,28-Apr-17,BEVERAGES & AMBIENT FOOD,Surgery,NHS LOGISTICS,1018012227,0.29
Department of Health,Salisbury NHS Foundation Trust,28-Apr-17,BEVERAGES & AMBIENT FOOD,Surgery,NHS LOGISTICS,1018012227,0.56
Department of Health,Salisbury NHS Foundation Trust,28-Apr-17,ELECTRICAL EQUIPMENT x,Surgery,NHS LOGISTICS,1018012227,0.33
Department of Health,Salisbury NHS Foundation Trust,28-Apr-17,OTHER MEDICAL SUPPLIES,Surgery,NHS LOGISTICS,1018012227,3.13
Department of Health,Salisbury NHS Foundation Trust,28-Apr-17,OTHER MEDICAL SUPPLIES,Surgery,NHS LOGISTICS,1018012227,3.13
Department of Health,Salisbury NHS Foundation Trust,28-Apr-17,TISSUES HAND TOWELS & TOILET PAPER,Surgery,NHS LOGISTICS,1018012227,0.25
Department of Health,Salisbury NHS Foundation Trust,28-Apr-17,MEDSURGCONS - OTHER,Surgery,NHS LOGISTICS,1018012227,12.17
Department of Health,Salisbury NHS Foundation Trust,28-Apr-17,MEDSURGCONS - OTHER,Surgery,NHS LOGISTICS,1018012227,12.17
Department of Health,Salisbury NHS Foundation Trust,28-Apr-17,M & S EQUIPELECTEQUIPINST - OTHER,Surgery,NHS LOGISTICS,1018012227,55.1
Department of Health,Salisbury NHS Foundation Trust,28-Apr-17,MEDSURGCONS - OTHER,Surgery,NHS LOGISTICS,1018012227,40.72
Department of Health,Salisbury NHS Foundation Trust,28-Apr-17,OTHER MEDICAL SUPPLIES,Surgery,NHS LOGISTICS,1018012227,2.79
Department of Health,Salisbury NHS Foundation Trust,28-Apr-17,MEDSURGCONS - OTHER,Surgery,NHS LOGISTICS,1018012227,2.71
Department of Health,Salisbury NHS Foundation Trust,28-Apr-17,MEDSURGCONS - OTHER,Surgery,NHS LOGISTICS,1018012227,9.57
Department of Health,Salisbury NHS Foundation Trust,28-Apr-17,MEDSURGCONS - OTHER,Surgery,NHS LOGISTICS,1018012227,1.36
Department of Health,Salisbury NHS Foundation Trust,28-Apr-17,TOILETRIES PERSONAL HYGIENE PRODUCTS,Surgery,NHS LOGISTICS,1018012227,0.83
Department of Health,Salisbury NHS Foundation Trust,28-Apr-17,M & S EQUIPELECTEQUIPINST - OTHER,Surgery,NHS LOGISTICS,1018012227,0.29
Department of Health,Salisbury NHS Foundation Trust,28-Apr-17,MED SURG EQUIP REP MAINT CLEANING,Surgery,NHS LOGISTICS,1018012227,2.19
Department of Health,Salisbury NHS Foundation Trust,28-Apr-17,DISPOSABLE THEATRE DRAPES WIPES,Surgery,NHS LOGISTICS,1018012227,3.24
Department of Health,Salisbury NHS Foundation Trust,28-Apr-17,MEDSURGCONS - OTHER,Surgery,NHS LOGISTICS,1018012227,3.2
Department of Health,Salisbury NHS Foundation Trust,28-Apr-17,BEVERAGES & AMBIENT FOOD,Facilities,NHS LOGISTICS,1018012227,3.39
Department of Health,Salisbury NHS Foundation Trust,28-Apr-17,BEVERAGES & AMBIENT FOOD,Facilities,NHS LOGISTICS,1018012227,18.88
Department of Health,Salisbury NHS Foundation Trust,28-Apr-17,BEVERAGES & AMBIENT FOOD,Facilities,NHS LOGISTICS,1018012227,3.66
Department of Health,Salisbury NHS Foundation Trust,28-Apr-17,FRUIT & VEGETABLES,Facilities,NHS LOGISTICS,1018012227,0.34
Department of Health,Salisbury NHS Foundation Trust,28-Apr-17,FRUIT & VEGETABLES,Facilities,NHS LOGISTICS,1018012227,8.5
Department of Health,Salisbury NHS Foundation Trust,28-Apr-17,FRUIT & VEGETABLES,Facilities,NHS LOGISTICS,1018012227,2.34
Department of Health,Salisbury NHS Foundation Trust,28-Apr-17,FRUIT & VEGETABLES,Facilities,NHS LOGISTICS,1018012227,2.15
Department of Health,Salisbury NHS Foundation Trust,28-Apr-17,FRUIT & VEGETABLES,Facilities,NHS LOGISTICS,1018012227,2.86
Department of Health,Salisbury NHS Foundation Trust,28-Apr-17,FRUIT & VEGETABLES,Facilities,NHS LOGISTICS,1018012227,2.75
Department of Health,Salisbury NHS Foundation Trust,28-Apr-17,FRUIT & VEGETABLES,Facilities,NHS LOGISTICS,1018012227,4.18
Department of Health,Salisbury NHS Foundation Trust,28-Apr-17,FRUIT & VEGETABLES,Facilities,NHS LOGISTICS,1018012227,10.32
Department of Health,Salisbury NHS Foundation Trust,28-Apr-17,BEVERAGES & AMBIENT FOOD,Facilities,NHS LOGISTICS,1018012227,0.92
Department of Health,Salisbury NHS Foundation Trust,28-Apr-17,BEVERAGES & AMBIENT FOOD,Facilities,NHS LOGISTICS,1018012227,17.58
Department of Health,Salisbury NHS Foundation Trust,28-Apr-17,LIQUID REFRESHMENTS,Facilities,NHS LOGISTICS,1018012227,2.91
Department of Health,Salisbury NHS Foundation Trust,28-Apr-17,LIQUID REFRESHMENTS,Facilities,NHS LOGISTICS,1018012227,3.95
Department of Health,Salisbury NHS Foundation Trust,28-Apr-17,LIQUID REFRESHMENTS,Facilities,NHS LOGISTICS,1018012227,0.51
Department of Health,Salisbury NHS Foundation Trust,28-Apr-17,LIQUID REFRESHMENTS,Facilities,NHS LOGISTICS,1018012227,3.1
Department of Health,Salisbury NHS Foundation Trust,28-Apr-17,LIQUID REFRESHMENTS,Facilities,NHS LOGISTICS,1018012227,0.51
Department of Health,Salisbury NHS Foundation Trust,28-Apr-17,LIQUID REFRESHMENTS,Facilities,NHS LOGISTICS,1018012227,1.83
Department of Health,Salisbury NHS Foundation Trust,28-Apr-17,LIQUID REFRESHMENTS,Facilities,NHS LOGISTICS,1018012227,2.65
Department of Health,Salisbury NHS Foundation Trust,28-Apr-17,LIQUID REFRESHMENTS,Facilities,NHS LOGISTICS,1018012227,3.47
Department of Health,Salisbury NHS Foundation Trust,28-Apr-17,BEVERAGES & AMBIENT FOOD,Facilities,NHS LOGISTICS,1018012227,10.74
Department of Health,Salisbury NHS Foundation Trust,28-Apr-17,EGGS MILK OTHER DAIRY PRODUCTS,Facilities,NHS LOGISTICS,1018012227,4.62
Department of Health,Salisbury NHS Foundation Trust,28-Apr-17,BEVERAGES & AMBIENT FOOD,Facilities,NHS LOGISTICS,1018012227,3.28
Department of Health,Salisbury NHS Foundation Trust,28-Apr-17,BEVERAGES & AMBIENT FOOD,Facilities,NHS LOGISTICS,1018012227,1.62
Department of Health,Salisbury NHS Foundation Trust,28-Apr-17,FLAVOURINGS HERBS SPICES,Facilities,NHS LOGISTICS,1018012227,0.33
Department of Health,Salisbury NHS Foundation Trust,28-Apr-17,FLAVOURINGS HERBS SPICES,Facilities,NHS LOGISTICS,1018012227,0.3
Department of Health,Salisbury NHS Foundation Trust,28-Apr-17,BEVERAGES & AMBIENT FOOD,Facilities,NHS LOGISTICS,1018012227,2.42
Department of Health,Salisbury NHS Foundation Trust,28-Apr-17,BEVERAGES & AMBIENT FOOD,Facilities,NHS LOGISTICS,1018012227,0.51
Department of Health,Salisbury NHS Foundation Trust,28-Apr-17,BEVERAGES & AMBIENT FOOD,Facilities,NHS LOGISTICS,1018012227,1.73
Department of Health,Salisbury NHS Foundation Trust,28-Apr-17,BEVERAGES & AMBIENT FOOD,Facilities,NHS LOGISTICS,1018012227,2.31
Department of Health,Salisbury NHS Foundation Trust,28-Apr-17,BEVERAGES & AMBIENT FOOD,Facilities,NHS LOGISTICS,1018012227,1.26
Department of Health,Salisbury NHS Foundation Trust,28-Apr-17,BEVERAGES & AMBIENT FOOD,Facilities,NHS LOGISTICS,1018012227,3.87
Department of Health,Salisbury NHS Foundation Trust,28-Apr-17,EGGS MILK OTHER DAIRY PRODUCTS,Facilities,NHS LOGISTICS,1018012227,12.92
Department of Health,Salisbury NHS Foundation Trust,28-Apr-17,EGGS MILK OTHER DAIRY PRODUCTS,Facilities,NHS LOGISTICS,1018012227,6.26
Department of Health,Salisbury NHS Foundation Trust,28-Apr-17,BEVERAGES & AMBIENT FOOD,Facilities,NHS LOGISTICS,1018012227,1.5
Department of Health,Salisbury NHS Foundation Trust,28-Apr-17,BEVERAGES & AMBIENT FOOD,Facilities,NHS LOGISTICS,1018012227,3.94
Department of Health,Salisbury NHS Foundation Trust,28-Apr-17,FLAVOURINGS HERBS SPICES,Facilities,NHS LOGISTICS,1018012227,1.61
Department of Health,Salisbury NHS Foundation Trust,28-Apr-17,BEVERAGES & AMBIENT FOOD,Facilities,NHS LOGISTICS,1018012227,1.19
Department of Health,Salisbury NHS Foundation Trust,28-Apr-17,BEVERAGES & AMBIENT FOOD,Facilities,NHS LOGISTICS,1018012227,1.77
Department of Health,Salisbury NHS Foundation Trust,28-Apr-17,BEVERAGES & AMBIENT FOOD,Facilities,NHS LOGISTICS,1018012227,6.67
Department of Health,Salisbury NHS Foundation Trust,28-Apr-17,BAGS SACKS - OTHER,Surgery,NHS LOGISTICS,1018012227,2.44
Department of Health,Salisbury NHS Foundation Trust,28-Apr-17,DRESSINGS - PRE STERILE,Surgery,NHS LOGISTICS,1018012227,5.04
Department of Health,Salisbury NHS Foundation Trust,28-Apr-17,DRESSINGS - PRE STERILE,Surgery,NHS LOGISTICS,1018012227,4.75
Department of Health,Salisbury NHS Foundation Trust,28-Apr-17,COOKING & KITCHEN UTENSILS,Surgery,NHS LOGISTICS,1018012227,3.4
Department of Health,Salisbury NHS Foundation Trust,28-Apr-17,DRUGS,Surgery,NHS LOGISTICS,1018012227,14.47
Department of Health,Salisbury NHS Foundation Trust,28-Apr-17,DRUGS,Surgery,NHS LOGISTICS,1018012227,9.35
Department of Health,Salisbury NHS Foundation Trust,28-Apr-17,CLEANING MATERIALS PRODUCTS SUNDRIES,Surgery,NHS LOGISTICS,1018012227,0.46
Department of Health,Salisbury NHS Foundation Trust,28-Apr-17,MEDSURGCONS - OTHER,Surgery,NHS LOGISTICS,1018012227,4.8
Department of Health,Salisbury NHS Foundation Trust,28-Apr-17,OTHER MEDICAL SUPPLIES,Surgery,NHS LOGISTICS,1018012227,4.65
Department of Health,Salisbury NHS Foundation Trust,28-Apr-17,M & S EQUIPELECTEQUIPINST - OTHER,Clinical Support,NHS LOGISTICS,1018012227,30.53
Department of Health,Salisbury NHS Foundation Trust,28-Apr-17,M & S EQUIPELECTEQUIPINST - OTHER,Clinical Support,NHS LOGISTICS,1018012227,0.49
Department of Health,Salisbury NHS Foundation Trust,28-Apr-17,MEDSURGCONS - OTHER,Clinical Support,NHS LOGISTICS,1018012227,5.98
Department of Health,Salisbury NHS Foundation Trust,28-Apr-17,OTHER MEDICAL SUPPLIES,Surgery,NHS LOGISTICS,1018012227,6.86
Department of Health,Salisbury NHS Foundation Trust,28-Apr-17,MEDSURGCONS - OTHER,Medicine,NHS LOGISTICS,1018012227,2.86
Department of Health,Salisbury NHS Foundation Trust,28-Apr-17,MEDSURGCONS - OTHER,Medicine,NHS LOGISTICS,1018012227,27.68
Department of Health,Salisbury NHS Foundation Trust,28-Apr-17,MEDSURGCONS - OTHER,Medicine,NHS LOGISTICS,1018012227,16.61
Department of Health,Salisbury NHS Foundation Trust,28-Apr-17,MEDSURGCONS - OTHER,Medicine,NHS LOGISTICS,1018012227,82.25
Department of Health,Salisbury NHS Foundation Trust,28-Apr-17,MEDSURGCONS - OTHER,Medicine,NHS LOGISTICS,1018012227,8.23
Department of Health,Salisbury NHS Foundation Trust,28-Apr-17,MEDSURGCONS - OTHER,Medicine,NHS LOGISTICS,1018012227,5.54
Department of Health,Salisbury NHS Foundation Trust,28-Apr-17,MEDSURGCONS - OTHER,Medicine,NHS LOGISTICS,1018012227,14.24
Department of Health,Salisbury NHS Foundation Trust,28-Apr-17,MEDSURGCONS - OTHER,Medicine,NHS LOGISTICS,1018012227,32.65
Department of Health,Salisbury NHS Foundation Trust,28-Apr-17,MEDSURGCONS - OTHER,Medicine,NHS LOGISTICS,1018012227,130.61
Department of Health,Salisbury NHS Foundation Trust,28-Apr-17,MEDSURGCONS - OTHER,Medicine,NHS LOGISTICS,1018012227,130.61
Department of Health,Salisbury NHS Foundation Trust,28-Apr-17,MEDSURGCONS - OTHER,Medicine,NHS LOGISTICS,1018012227,81.63
Department of Health,Salisbury NHS Foundation Trust,28-Apr-17,TISSUES HAND TOWELS & TOILET PAPER,Musculo-Skeletal,NHS LOGISTICS,1018012227,1.4
Department of Health,Salisbury NHS Foundation Trust,28-Apr-17,NON DISPOSABLE BED LINEN,Musculo-Skeletal,NHS LOGISTICS,1018012227,3.01
Department of Health,Salisbury NHS Foundation Trust,28-Apr-17,DISPOSABLE THEATRE DRAPES WIPES,Musculo-Skeletal,NHS LOGISTICS,1018012227,1.95
Department of Health,Salisbury NHS Foundation Trust,28-Apr-17,TISSUES HAND TOWELS & TOILET PAPER,Surgery,NHS LOGISTICS,1018012227,0.12
Department of Health,Salisbury NHS Foundation Trust,28-Apr-17,TISSUES HAND TOWELS & TOILET PAPER,Surgery,NHS LOGISTICS,1018012227,0.5
Department of Health,Salisbury NHS Foundation Trust,28-Apr-17,TISSUES HAND TOWELS & TOILET PAPER,Surgery,NHS LOGISTICS,1018012227,0.16
Department of Health,Salisbury NHS Foundation Trust,28-Apr-17,DISPOSABLE THEATRE DRAPES WIPES,Surgery,NHS LOGISTICS,1018012227,0.42
Department of Health,Salisbury NHS Foundation Trust,28-Apr-17,TISSUES HAND TOWELS & TOILET PAPER,Medicine,NHS LOGISTICS,1018012227,0.25
Department of Health,Salisbury NHS Foundation Trust,28-Apr-17,DISPOSABLE THEATRE DRAPES WIPES,Medicine,NHS LOGISTICS,1018012227,0.65
Department of Health,Salisbury NHS Foundation Trust,28-Apr-17,TISSUES HAND TOWELS & TOILET PAPER,Clinical Support,NHS LOGISTICS,1018012227,0.23
Department of Health,Salisbury NHS Foundation Trust,28-Apr-17,OTHER MEDICAL SUPPLIES,Clinical Support,NHS LOGISTICS,1018012227,14.99
Department of Health,Salisbury NHS Foundation Trust,28-Apr-17,MEDSURGCONS - OTHER,Clinical Support,NHS LOGISTICS,1018012227,70.72
Department of Health,Salisbury NHS Foundation Trust,28-Apr-17,DRESSINGS - PRE STERILE,Clinical Support,NHS LOGISTICS,1018012227,0.15
Department of Health,Salisbury NHS Foundation Trust,28-Apr-17,TISSUES HAND TOWELS & TOILET PAPER,Clinical Support,NHS LOGISTICS,1018012227,0.5
Department of Health,Salisbury NHS Foundation Trust,28-Apr-17,CLEANING MATERIALS PRODUCTS SUNDRIES,Clinical Support,NHS LOGISTICS,1018012227,1.11
Department of Health,Salisbury NHS Foundation Trust,28-Apr-17,OTHER MEDICAL SUPPLIES,Clinical Support,NHS LOGISTICS,1018012227,1.4
Department of Health,Salisbury NHS Foundation Trust,28-Apr-17,OTHER MEDICAL SUPPLIES,Clinical Support,NHS LOGISTICS,1018012227,1.72
Department of Health,Salisbury NHS Foundation Trust,28-Apr-17,DRESSINGS - PRE STERILE,Clinical Support,NHS LOGISTICS,1018012227,0.07
Department of Health,Salisbury NHS Foundation Trust,28-Apr-17,MEDSURGCONS - OTHER,Clinical Support,NHS LOGISTICS,1018012227,2.66
Department of Health,Salisbury NHS Foundation Trust,28-Apr-17,MEDSURGCONS - OTHER,Clinical Support,NHS LOGISTICS,1018012227,0.78
Department of Health,Salisbury NHS Foundation Trust,28-Apr-17,MEDSURGCONS - OTHER,Clinical Support,NHS LOGISTICS,1018012227,1.36
Department of Health,Salisbury NHS Foundation Trust,28-Apr-17,DISPOSABLE THEATRE DRAPES WIPES,Clinical Support,NHS LOGISTICS,1018012227,1.3
Department of Health,Salisbury NHS Foundation Trust,28-Apr-17,DRESSINGS - PRE STERILE,Medicine,NHS LOGISTICS,1018012227,1.53
Department of Health,Salisbury NHS Foundation Trust,28-Apr-17,OTHER MEDICAL SUPPLIES,Medicine,NHS LOGISTICS,1018012227,0.47
Department of Health,Salisbury NHS Foundation Trust,28-Apr-17,PATIENT APPLIANCES,Medicine,NHS LOGISTICS,1018012227,0.67
Department of Health,Salisbury NHS Foundation Trust,28-Apr-17,PATIENT APPLIANCES,Medicine,NHS LOGISTICS,1018012227,0.67
Department of Health,Salisbury NHS Foundation Trust,28-Apr-17,PATIENT APPLIANCES,Medicine,NHS LOGISTICS,1018012227,0.67
Department of Health,Salisbury NHS Foundation Trust,28-Apr-17,TISSUES HAND TOWELS & TOILET PAPER,Medicine,NHS LOGISTICS,1018012227,0.14
Department of Health,Salisbury NHS Foundation Trust,28-Apr-17,TOILETRIES PERSONAL HYGIENE PRODUCTS,Medicine,NHS LOGISTICS,1018012227,0.83
Department of Health,Salisbury NHS Foundation Trust,28-Apr-17,LIQUID REFRESHMENTS,Facilities,NHS LOGISTICS,1018012227,13.6
Department of Health,Salisbury NHS Foundation Trust,28-Apr-17,BEVERAGES & AMBIENT FOOD,Facilities,NHS LOGISTICS,1018012227,1.98
Department of Health,Salisbury NHS Foundation Trust,28-Apr-17,BEVERAGES & AMBIENT FOOD,Facilities,NHS LOGISTICS,1018012227,3.4
Department of Health,Salisbury NHS Foundation Trust,28-Apr-17,FRUIT & VEGETABLES,Facilities,NHS LOGISTICS,1018012227,6.19
Department of Health,Salisbury NHS Foundation Trust,28-Apr-17,FRUIT & VEGETABLES,Facilities,NHS LOGISTICS,1018012227,2.95
Department of Health,Salisbury NHS Foundation Trust,28-Apr-17,LAB EQUIP-LABORATORY APPARATUS,Clinical Support,NHS LOGISTICS,1018012227,2.52
Department of Health,Salisbury NHS Foundation Trust,28-Apr-17,LAB EQUIP-LABORATORY APPARATUS,Clinical Support,NHS LOGISTICS,1018012227,59.33
Department of Health,Salisbury NHS Foundation Trust,28-Apr-17,LAB EQUIP-ANALYSERS,Clinical Support,NHS LOGISTICS,1018012227,7.62
Department of Health,Salisbury NHS Foundation Trust,28-Apr-17,LAB EQUIP-LABORATORY APPARATUS,Clinical Support,NHS LOGISTICS,1018012227,131.02
Department of Health,Salisbury NHS Foundation Trust,28-Apr-17,LAB EQUIP-LABORATORY APPARATUS,Clinical Support,NHS LOGISTICS,1018012227,3.85
Department of Health,Salisbury NHS Foundation Trust,28-Apr-17,LAB EQUIP-LABORATORY APPARATUS,Clinical Support,NHS LOGISTICS,1018012227,7.7
Department of Health,Salisbury NHS Foundation Trust,28-Apr-17,LAB EQUIP-ANALYSERS,Clinical Support,NHS LOGISTICS,1018012227,2.04
Department of Health,Salisbury NHS Foundation Trust,28-Apr-17,COOKING & KITCHEN UTENSILS,Clinical Support,NHS LOGISTICS,1018012227,0.98
Department of Health,Salisbury NHS Foundation Trust,28-Apr-17,LAB EQUIP-LABORATORY APPARATUS,Clinical Support,NHS LOGISTICS,1018012227,18.34
Department of Health,Salisbury NHS Foundation Trust,28-Apr-17,OTHER MEDICAL SUPPLIES,Clinical Support,NHS LOGISTICS,1018012227,72.8
Department of Health,Salisbury NHS Foundation Trust,28-Apr-17,MEDSURGCONS - OTHER,Clinical Support,NHS LOGISTICS,1018012227,7.74
Department of Health,Salisbury NHS Foundation Trust,28-Apr-17,OTHER MEDICAL SUPPLIES,Clinical Support,NHS LOGISTICS,1018012227,0.47
Department of Health,Salisbury NHS Foundation Trust,28-Apr-17,BEVERAGES & AMBIENT FOOD,Surgery,NHS LOGISTICS,1018012227,2.87
Department of Health,Salisbury NHS Foundation Trust,28-Apr-17,BEVERAGES & AMBIENT FOOD,Surgery,NHS LOGISTICS,1018012227,0.29
Department of Health,Salisbury NHS Foundation Trust,28-Apr-17,BEVERAGES & AMBIENT FOOD,Surgery,NHS LOGISTICS,1018012227,0.28
Department of Health,Salisbury NHS Foundation Trust,28-Apr-17,DRESSINGS - PRE STERILE,Clinical Support,NHS LOGISTICS,1018012227,10.27
Department of Health,Salisbury NHS Foundation Trust,28-Apr-17,DRESSINGS - PRE STERILE,Clinical Support,NHS LOGISTICS,1018012227,5.6
Department of Health,Salisbury NHS Foundation Trust,28-Apr-17,DRESSINGS - PRE STERILE,Clinical Support,NHS LOGISTICS,1018012227,37.48
Department of Health,Salisbury NHS Foundation Trust,28-Apr-17,DRESSINGS - PRE STERILE,Clinical Support,NHS LOGISTICS,1018012227,4.4
Department of Health,Salisbury NHS Foundation Trust,28-Apr-17,DRESSINGS - PRE STERILE,Clinical Support,NHS LOGISTICS,1018012227,4.32
Department of Health,Salisbury NHS Foundation Trust,28-Apr-17,TISSUES HAND TOWELS & TOILET PAPER,Surgery,NHS LOGISTICS,1018012227,0.25
Department of Health,Salisbury NHS Foundation Trust,28-Apr-17,PATIENT APPLIANCES,Surgery,NHS LOGISTICS,1018012227,0.67
Department of Health,Salisbury NHS Foundation Trust,28-Apr-17,PATIENT APPLIANCES,Surgery,NHS LOGISTICS,1018012227,0.67
Department of Health,Salisbury NHS Foundation Trust,28-Apr-17,TISSUES HAND TOWELS & TOILET PAPER,Clinical Support,NHS LOGISTICS,1018012227,2.87
Department of Health,Salisbury NHS Foundation Trust,28-Apr-17,DRESSINGS - PRE STERILE,Clinical Support,NHS LOGISTICS,1018012227,1.77
Department of Health,Salisbury NHS Foundation Trust,28-Apr-17,DISPOSABLE THEATRE DRAPES WIPES,Clinical Support,NHS LOGISTICS,1018012227,0.65
Department of Health,Salisbury NHS Foundation Trust,28-Apr-17,TISSUES HAND TOWELS & TOILET PAPER,Surgery,NHS LOGISTICS,1018012227,0.14
Department of Health,Salisbury NHS Foundation Trust,28-Apr-17,DISPOSABLE THEATRE DRAPES WIPES,Surgery,NHS LOGISTICS,1018012227,0.65
Department of Health,Salisbury NHS Foundation Trust,28-Apr-17,DRESSINGS - PRE STERILE,Medicine,NHS LOGISTICS,1018012227,1.53
Department of Health,Salisbury NHS Foundation Trust,28-Apr-17,PATIENT APPLIANCES,Medicine,NHS LOGISTICS,1018012227,0.67
Department of Health,Salisbury NHS Foundation Trust,28-Apr-17,TISSUES HAND TOWELS & TOILET PAPER,Medicine,NHS LOGISTICS,1018012227,0.21
Department of Health,Salisbury NHS Foundation Trust,28-Apr-17,DRESSINGS - PRE STERILE,Medicine,NHS LOGISTICS,1018012227,0.64
Department of Health,Salisbury NHS Foundation Trust,28-Apr-17,DRESSINGS - PRE STERILE,Medicine,NHS LOGISTICS,1018012227,1.23
Department of Health,Salisbury NHS Foundation Trust,28-Apr-17,PATIENT APPLIANCES,Medicine,NHS LOGISTICS,1018012227,5.18
Department of Health,Salisbury NHS Foundation Trust,28-Apr-17,ANAESTHETIC EQUIPMENT ACCESSORIES,Medicine,NHS LOGISTICS,1018012227,0.23
Department of Health,Salisbury NHS Foundation Trust,28-Apr-17,TUBES,Medicine,NHS LOGISTICS,1018012227,1.37
Department of Health,Salisbury NHS Foundation Trust,28-Apr-17,OTHER MEDICAL SUPPLIES,Medicine,NHS LOGISTICS,1018012227,1.86
Department of Health,Salisbury NHS Foundation Trust,28-Apr-17,MEDSURGCONS - OTHER,Medicine,NHS LOGISTICS,1018012227,11.96
Department of Health,Salisbury NHS Foundation Trust,28-Apr-17,SURGICAL INSTRUMENTS: GENERAL,Medicine,NHS LOGISTICS,1018012227,1.9
Department of Health,Salisbury NHS Foundation Trust,28-Apr-17,MEDSURGCONS - OTHER,Surgery,NHS LOGISTICS,1018012227,2.71
Department of Health,Salisbury NHS Foundation Trust,28-Apr-17,MEDSURGCONS - OTHER,Surgery,NHS LOGISTICS,1018012227,1.07
Department of Health,Salisbury NHS Foundation Trust,28-Apr-17,OTHER MEDICAL SUPPLIES,Surgery,NHS LOGISTICS,1018012227,3.43
Department of Health,Salisbury NHS Foundation Trust,28-Apr-17,MED SURG EQUIP REP MAINT CLEANING,Surgery,NHS LOGISTICS,1018012227,7.47
Department of Health,Salisbury NHS Foundation Trust,28-Apr-17,MED SURG EQUIP REP MAINT CLEANING,Surgery,NHS LOGISTICS,1018012227,7.77
Department of Health,Salisbury NHS Foundation Trust,28-Apr-17,M & S EQUIPELECTEQUIPINST - OTHER,Clinical Support,NHS LOGISTICS,1018012227,8.33
Department of Health,Salisbury NHS Foundation Trust,28-Apr-17,OTHER MEDICAL SUPPLIES,Clinical Support,NHS LOGISTICS,1018012227,10.29
Department of Health,Salisbury NHS Foundation Trust,28-Apr-17,CLEANING MATERIALS PRODUCTS SUNDRIES,Facilities,NHS LOGISTICS,1018012227,18.24
Department of Health,Salisbury NHS Foundation Trust,28-Apr-17,PATIENT APPLIANCES,Medicine,NHS LOGISTICS,1018012227,0.81
Department of Health,Salisbury NHS Foundation Trust,28-Apr-17,PATIENT APPLIANCES,Medicine,NHS LOGISTICS,1018012227,0.81
Department of Health,Salisbury NHS Foundation Trust,28-Apr-17,PATIENT APPLIANCES,Medicine,NHS LOGISTICS,1018012227,1.61
Department of Health,Salisbury NHS Foundation Trust,28-Apr-17,PATIENT APPLIANCES,Medicine,NHS LOGISTICS,1018012227,1.61
Department of Health,Salisbury NHS Foundation Trust,28-Apr-17,DISPOSABLE THEATRE DRAPES WIPES,Medicine,NHS LOGISTICS,1018012227,1.3
Department of Health,Salisbury NHS Foundation Trust,28-Apr-17,DRESSINGS - PRE STERILE,Musculo-Skeletal,NHS LOGISTICS,1018012227,0.9
Department of Health,Salisbury NHS Foundation Trust,28-Apr-17,DRESSINGS - PRE STERILE,Musculo-Skeletal,NHS LOGISTICS,1018012227,2.46
Department of Health,Salisbury NHS Foundation Trust,28-Apr-17,DRESSINGS - PRE STERILE,Musculo-Skeletal,NHS LOGISTICS,1018012227,0.22
Department of Health,Salisbury NHS Foundation Trust,28-Apr-17,TISSUES HAND TOWELS & TOILET PAPER,Musculo-Skeletal,NHS LOGISTICS,1018012227,0.74
Department of Health,Salisbury NHS Foundation Trust,28-Apr-17,DISPOSABLE THEATRE DRAPES WIPES,Musculo-Skeletal,NHS LOGISTICS,1018012227,0.65
Department of Health,Salisbury NHS Foundation Trust,28-Apr-17,PATIENTS BABY WEAR,Medicine,NHS LOGISTICS,1018012227,4.8
Department of Health,Salisbury NHS Foundation Trust,28-Apr-17,PATIENTS BABY WEAR,Medicine,NHS LOGISTICS,1018012227,4.64
Department of Health,Salisbury NHS Foundation Trust,28-Apr-17,PATIENTS BABY WEAR,Medicine,NHS LOGISTICS,1018012227,1.55
Department of Health,Salisbury NHS Foundation Trust,28-Apr-17,PATIENT APPLIANCES,Medicine,NHS LOGISTICS,1018012227,0.67
Department of Health,Salisbury NHS Foundation Trust,28-Apr-17,PATIENT APPLIANCES,Medicine,NHS LOGISTICS,1018012227,0.88
Department of Health,Salisbury NHS Foundation Trust,28-Apr-17,DISPOSABLE THEATRE DRAPES WIPES,Medicine,NHS LOGISTICS,1018012227,0.65
Department of Health,Salisbury NHS Foundation Trust,28-Apr-17,DRESSINGS - PRE STERILE,Musculo-Skeletal,NHS LOGISTICS,1018012227,1.53
Department of Health,Salisbury NHS Foundation Trust,28-Apr-17,TISSUES HAND TOWELS & TOILET PAPER,Musculo-Skeletal,NHS LOGISTICS,1018012227,0.5
Department of Health,Salisbury NHS Foundation Trust,28-Apr-17,CLEANING MATERIALS PRODUCTS SUNDRIES,Musculo-Skeletal,NHS LOGISTICS,1018012227,1.09
Department of Health,Salisbury NHS Foundation Trust,28-Apr-17,DRESSINGS - PRE STERILE,Musculo-Skeletal,NHS LOGISTICS,1018012227,1.17
Department of Health,Salisbury NHS Foundation Trust,28-Apr-17,NON DISPOSABLE BED LINEN,Musculo-Skeletal,NHS LOGISTICS,1018012227,3.91
Department of Health,Salisbury NHS Foundation Trust,28-Apr-17,CLEANING MATERIALS PRODUCTS SUNDRIES,Musculo-Skeletal,NHS LOGISTICS,1018012227,5.19
Department of Health,Salisbury NHS Foundation Trust,28-Apr-17,OTHER MEDICAL SUPPLIES,Musculo-Skeletal,NHS LOGISTICS,1018012227,0.93
Department of Health,Salisbury NHS Foundation Trust,28-Apr-17,PATIENT APPLIANCES,Musculo-Skeletal,NHS LOGISTICS,1018012227,1.76
Department of Health,Salisbury NHS Foundation Trust,28-Apr-17,MEDSURGCONS - OTHER,Musculo-Skeletal,NHS LOGISTICS,1018012227,1.18
Department of Health,Salisbury NHS Foundation Trust,28-Apr-17,MEDSURGCONS - OTHER,Musculo-Skeletal,NHS LOGISTICS,1018012227,0.78
Department of Health,Salisbury NHS Foundation Trust,28-Apr-17,DISPOSABLE THEATRE DRAPES WIPES,Musculo-Skeletal,NHS LOGISTICS,1018012227,0.65
Department of Health,Salisbury NHS Foundation Trust,28-Apr-17,DRESSINGS - PRE STERILE,Musculo-Skeletal,NHS LOGISTICS,1018012227,3.06
Department of Health,Salisbury NHS Foundation Trust,28-Apr-17,DRESSINGS - PRE STERILE,Musculo-Skeletal,NHS LOGISTICS,1018012227,1.81
Department of Health,Salisbury NHS Foundation Trust,28-Apr-17,OTHER MEDICAL SUPPLIES,Musculo-Skeletal,NHS LOGISTICS,1018012227,0.93
Department of Health,Salisbury NHS Foundation Trust,28-Apr-17,DRESSINGS - PRE STERILE,Musculo-Skeletal,NHS LOGISTICS,1018012227,18
Department of Health,Salisbury NHS Foundation Trust,28-Apr-17,DRESSINGS - PRE STERILE,Musculo-Skeletal,NHS LOGISTICS,1018012227,50.61
Department of Health,Salisbury NHS Foundation Trust,28-Apr-17,DRESSINGS - PRE STERILE,Musculo-Skeletal,NHS LOGISTICS,1018012227,47.91
Department of Health,Salisbury NHS Foundation Trust,28-Apr-17,DISPOSABLE THEATRE DRAPES WIPES,Musculo-Skeletal,NHS LOGISTICS,1018012227,0.65
Department of Health,Salisbury NHS Foundation Trust,28-Apr-17,TISSUES HAND TOWELS & TOILET PAPER,Surgery,NHS LOGISTICS,1018012227,0.25
Department of Health,Salisbury NHS Foundation Trust,28-Apr-17,TISSUES HAND TOWELS & TOILET PAPER,Surgery,NHS LOGISTICS,1018012227,0.99
Department of Health,Salisbury NHS Foundation Trust,28-Apr-17,PATIENTS BEDWEAR UNISEX,Clinical Support,NHS LOGISTICS,1018012227,1.6
Department of Health,Salisbury NHS Foundation Trust,28-Apr-17,M & S EQUIPELECTEQUIPINST - OTHER,Clinical Support,NHS LOGISTICS,1018012227,2.3
Department of Health,Salisbury NHS Foundation Trust,28-Apr-17,MED SURG EQUIP REP MAINT CLEANING,Clinical Support,NHS LOGISTICS,1018012227,2.19
Department of Health,Salisbury NHS Foundation Trust,28-Apr-17,TISSUES HAND TOWELS & TOILET PAPER,Medicine,NHS LOGISTICS,1018012227,0.25
Department of Health,Salisbury NHS Foundation Trust,28-Apr-17,DRESSINGS - PRE STERILE,Medicine,NHS LOGISTICS,1018012227,5.99
Department of Health,Salisbury NHS Foundation Trust,28-Apr-17,TISSUES HAND TOWELS & TOILET PAPER,Medicine,NHS LOGISTICS,1018012227,0.31
Department of Health,Salisbury NHS Foundation Trust,28-Apr-17,OTHER MEDICAL SUPPLIES,Medicine,NHS LOGISTICS,1018012227,0.47
Department of Health,Salisbury NHS Foundation Trust,28-Apr-17,OTHER MEDICAL SUPPLIES,Medicine,NHS LOGISTICS,1018012227,1.19
Department of Health,Salisbury NHS Foundation Trust,28-Apr-17,DRESSINGS - PRE STERILE,Medicine,NHS LOGISTICS,1018012227,0.07
Department of Health,Salisbury NHS Foundation Trust,28-Apr-17,MED SURG EQUIP REP MAINT CLEANING,Medicine,NHS LOGISTICS,1018012227,2.19
Department of Health,Salisbury NHS Foundation Trust,28-Apr-17,DISPOSABLE THEATRE DRAPES WIPES,Medicine,NHS LOGISTICS,1018012227,1.3
Department of Health,Salisbury NHS Foundation Trust,28-Apr-17,DISPOSABLE THEATRE DRAPES WIPES,Surgery,NHS LOGISTICS,1018012227,2.28
Department of Health,Salisbury NHS Foundation Trust,28-Apr-17,DRESSINGS - PRE STERILE,Surgery,NHS LOGISTICS,1018012227,0.42
Department of Health,Salisbury NHS Foundation Trust,28-Apr-17,TUBES,Medicine,NHS LOGISTICS,1018012227,1.37
Department of Health,Salisbury NHS Foundation Trust,28-Apr-17,SURGICAL INSTRUMENTS: GENERAL,Medicine,NHS LOGISTICS,1018012227,1.97
Department of Health,Salisbury NHS Foundation Trust,28-Apr-17,OTHER MEDICAL SUPPLIES,Medicine,NHS LOGISTICS,1018012227,1.4
Department of Health,Salisbury NHS Foundation Trust,28-Apr-17,MEDSURGCONS - OTHER,Medicine,NHS LOGISTICS,1018012227,1.18
Department of Health,Salisbury NHS Foundation Trust,28-Apr-17,MEDSURGCONS - OTHER,Medicine,NHS LOGISTICS,1018012227,0.78
Department of Health,Salisbury NHS Foundation Trust,28-Apr-17,MEDSURGCONS - OTHER,Medicine,NHS LOGISTICS,1018012227,1.36
Department of Health,Salisbury NHS Foundation Trust,28-Apr-17,TISSUES HAND TOWELS & TOILET PAPER,Medicine,NHS LOGISTICS,1018012227,0.42
Department of Health,Salisbury NHS Foundation Trust,28-Apr-17,DISPOSABLE THEATRE DRAPES WIPES,Medicine,NHS LOGISTICS,1018012227,1.3
Department of Health,Salisbury NHS Foundation Trust,28-Apr-17,TISSUES HAND TOWELS & TOILET PAPER,Musculo-Skeletal,NHS LOGISTICS,1018012227,0.25
Department of Health,Salisbury NHS Foundation Trust,28-Apr-17,OTHER MEDICAL SUPPLIES,Musculo-Skeletal,NHS LOGISTICS,1018012227,1.4
Department of Health,Salisbury NHS Foundation Trust,28-Apr-17,TISSUES HAND TOWELS & TOILET PAPER,Musculo-Skeletal,NHS LOGISTICS,1018012227,0.14
Department of Health,Salisbury NHS Foundation Trust,28-Apr-17,DISPOSABLE THEATRE DRAPES WIPES,Musculo-Skeletal,NHS LOGISTICS,1018012227,0.65
Department of Health,Salisbury NHS Foundation Trust,28-Apr-17,DRESSINGS - PRE STERILE,Musculo-Skeletal,NHS LOGISTICS,1018012227,4.24
Department of Health,Salisbury NHS Foundation Trust,28-Apr-17,DRESSINGS - PRE STERILE,Musculo-Skeletal,NHS LOGISTICS,1018012227,9.52
Department of Health,Salisbury NHS Foundation Trust,28-Apr-17,DRESSINGS - PRE STERILE,Musculo-Skeletal,NHS LOGISTICS,1018012227,10.75
Department of Health,Salisbury NHS Foundation Trust,28-Apr-17,DRESSINGS - PRE STERILE,Musculo-Skeletal,NHS LOGISTICS,1018012227,12.01
Department of Health,Salisbury NHS Foundation Trust,28-Apr-17,DRESSINGS - PRE STERILE,Musculo-Skeletal,NHS LOGISTICS,1018012227,6.01
Department of Health,Salisbury NHS Foundation Trust,28-Apr-17,DRESSINGS - PRE STERILE,Musculo-Skeletal,NHS LOGISTICS,1018012227,5.57
Department of Health,Salisbury NHS Foundation Trust,28-Apr-17,DRESSINGS - PRE STERILE,Musculo-Skeletal,NHS LOGISTICS,1018012227,4.38
Department of Health,Salisbury NHS Foundation Trust,28-Apr-17,DRESSINGS - PRE STERILE,Musculo-Skeletal,NHS LOGISTICS,1018012227,4.66
Department of Health,Salisbury NHS Foundation Trust,28-Apr-17,DRESSINGS - PRE STERILE,Musculo-Skeletal,NHS LOGISTICS,1018012227,5.01
Department of Health,Salisbury NHS Foundation Trust,28-Apr-17,MED SURG EQUIP REP MAINT CLEANING,Surgery,NHS LOGISTICS,1018012227,7.47
Department of Health,Salisbury NHS Foundation Trust,28-Apr-17,MED SURG EQUIP REP MAINT CLEANING,Surgery,NHS LOGISTICS,1018012227,7.77
Department of Health,Salisbury NHS Foundation Trust,28-Apr-17,TISSUES HAND TOWELS & TOILET PAPER,Clinical Support,NHS LOGISTICS,1018012227,2.13
Department of Health,Salisbury NHS Foundation Trust,28-Apr-17,DRESSINGS - PRE STERILE,Clinical Support,NHS LOGISTICS,1018012227,0.22
Department of Health,Salisbury NHS Foundation Trust,28-Apr-17,BABY TEXTURE MODIFIED FOODS,Clinical Support,NHS LOGISTICS,1018012227,3.33
Department of Health,Salisbury NHS Foundation Trust,28-Apr-17,MEDSURGCONS - OTHER,Clinical Support,NHS LOGISTICS,1018012227,145.83
Department of Health,Salisbury NHS Foundation Trust,28-Apr-17,OTHER MEDICAL SUPPLIES,Medicine,NHS LOGISTICS,1018012227,0.47
Department of Health,Salisbury NHS Foundation Trust,28-Apr-17,BEVERAGES & AMBIENT FOOD,Medicine,NHS LOGISTICS,1018012227,1.07
Department of Health,Salisbury NHS Foundation Trust,28-Apr-17,COOKING & KITCHEN UTENSILS,Surgery,NHS LOGISTICS,1018012227,3.4
Department of Health,Salisbury NHS Foundation Trust,28-Apr-17,DRESSINGS - PRE STERILE,Surgery,NHS LOGISTICS,1018012227,2.34
Department of Health,Salisbury NHS Foundation Trust,28-Apr-17,DRESSINGS - PRE STERILE,Surgery,NHS LOGISTICS,1018012227,2.93
Department of Health,Salisbury NHS Foundation Trust,28-Apr-17,SURGICAL INSTRUMENTS: GENERAL,Surgery,NHS LOGISTICS,1018012227,5.83
Department of Health,Salisbury NHS Foundation Trust,28-Apr-17,TISSUES HAND TOWELS & TOILET PAPER,Surgery,NHS LOGISTICS,1018012227,0.14
Department of Health,Salisbury NHS Foundation Trust,28-Apr-17,DISPOSABLE THEATRE DRAPES WIPES,Surgery,NHS LOGISTICS,1018012227,2.59
Department of Health,Salisbury NHS Foundation Trust,28-Apr-17,TUBES,Medicine,NHS LOGISTICS,1018012227,1.37
Department of Health,Salisbury NHS Foundation Trust,28-Apr-17,NON DISPOSABLE BED LINEN,Medicine,NHS LOGISTICS,1018012227,5.76
Department of Health,Salisbury NHS Foundation Trust,28-Apr-17,OTHER MEDICAL SUPPLIES,Medicine,NHS LOGISTICS,1018012227,0.93
Department of Health,Salisbury NHS Foundation Trust,28-Apr-17,PATIENT APPLIANCES,Medicine,NHS LOGISTICS,1018012227,0.67
Department of Health,Salisbury NHS Foundation Trust,28-Apr-17,TISSUES HAND TOWELS & TOILET PAPER,Medicine,NHS LOGISTICS,1018012227,0.28
Department of Health,Salisbury NHS Foundation Trust,28-Apr-17,DISPOSABLE THEATRE DRAPES WIPES,Medicine,NHS LOGISTICS,1018012227,1.3
Department of Health,Salisbury NHS Foundation Trust,28-Apr-17,OTHER MEDICAL SUPPLIES,Corporate - Finance & Procurement,NHS LOGISTICS,1018012227,112.74
Department of Health,Salisbury NHS Foundation Trust,28-Apr-17,M & S EQUIPELECTEQUIPINST - OTHER,Musculo-Skeletal,NHS LOGISTICS,1018012227,33.05
Department of Health,Salisbury NHS Foundation Trust,28-Apr-17,M & S EQUIPELECTEQUIPINST - OTHER,Clinical Support,NHS LOGISTICS,1018012227,22.92
Department of Health,Salisbury NHS Foundation Trust,28-Apr-17,M & S EQUIPELECTEQUIPINST - OTHER,Clinical Support,NHS LOGISTICS,1018012227,26.04
Department of Health,Salisbury NHS Foundation Trust,28-Apr-17,OTHER MEDICAL SUPPLIES,Clinical Support,NHS LOGISTICS,1018012227,3.43
Department of Health,Salisbury NHS Foundation Trust,28-Apr-17,DRESSINGS - PRE STERILE,Clinical Support,NHS LOGISTICS,1018012227,2.22
Department of Health,Salisbury NHS Foundation Trust,28-Apr-17,ELECTRICAL EQUIPMENT x,Surgery,NHS LOGISTICS,1018012227,2.45
Department of Health,Salisbury NHS Foundation Trust,28-Apr-17,CLEANING MATERIALS PRODUCTS SUNDRIES,Clinical Support,NHS LOGISTICS,1018012227,1.11
Department of Health,Salisbury NHS Foundation Trust,28-Apr-17,MEDSURGCONS - OTHER,Clinical Support,NHS LOGISTICS,1018012227,3.32
Department of Health,Salisbury NHS Foundation Trust,28-Apr-17,MEDSURGCONS - OTHER,Clinical Support,NHS LOGISTICS,1018012227,2.36
Department of Health,Salisbury NHS Foundation Trust,28-Apr-17,BABY TEXTURE MODIFIED FOODS,Clinical Support,NHS LOGISTICS,1018012227,3.33
Department of Health,Salisbury NHS Foundation Trust,28-Apr-17,SURGICAL INSTRUMENTS: GENERAL,Medicine,NHS LOGISTICS,1018012227,1.97
Department of Health,Salisbury NHS Foundation Trust,28-Apr-17,OTHER MEDICAL SUPPLIES,Medicine,NHS LOGISTICS,1018012227,0.93
Department of Health,Salisbury NHS Foundation Trust,28-Apr-17,TISSUES HAND TOWELS & TOILET PAPER,Medicine,NHS LOGISTICS,1018012227,0.56
Department of Health,Salisbury NHS Foundation Trust,28-Apr-17,DISPOSABLE THEATRE DRAPES WIPES,Medicine,NHS LOGISTICS,1018012227,1.95
Department of Health,Salisbury NHS Foundation Trust,28-Apr-17,MEDSURGCONS - OTHER,Surgery,NHS LOGISTICS,1018012227,12.17
Department of Health,Salisbury NHS Foundation Trust,28-Apr-17,OTHER MEDICAL SUPPLIES,Surgery,NHS LOGISTICS,1018012227,1.86
Department of Health,Salisbury NHS Foundation Trust,28-Apr-17,MEDSURGCONS - OTHER,Surgery,NHS LOGISTICS,1018012227,1.36
Department of Health,Salisbury NHS Foundation Trust,28-Apr-17,DRESSINGS - PRE STERILE,Surgery,NHS LOGISTICS,1018012227,28.69
Department of Health,Salisbury NHS Foundation Trust,28-Apr-17,MEDSURGCONS - OTHER,Surgery,NHS LOGISTICS,1018012227,4
Department of Health,Salisbury NHS Foundation Trust,28-Apr-17,OTHER MEDICAL SUPPLIES,Surgery,NHS LOGISTICS,1018012227,4.65
Department of Health,Salisbury NHS Foundation Trust,28-Apr-17,SURGICAL INSTRUMENTS: GENERAL,Surgery,NHS LOGISTICS,1018012227,15.29
Department of Health,Salisbury NHS Foundation Trust,28-Apr-17,TISSUES HAND TOWELS & TOILET PAPER,Medicine,NHS LOGISTICS,1018012227,0.5
Department of Health,Salisbury NHS Foundation Trust,28-Apr-17,DISPOSABLE THEATRE DRAPES WIPES,Medicine,NHS LOGISTICS,1018012227,1.95
Department of Health,Salisbury NHS Foundation Trust,28-Apr-17,OTHER MEDICAL SUPPLIES,Surgery,NHS LOGISTICS,1018012227,0.93
Department of Health,Salisbury NHS Foundation Trust,28-Apr-17,TISSUES HAND TOWELS & TOILET PAPER,Surgery,NHS LOGISTICS,1018012227,0.14
Department of Health,Salisbury NHS Foundation Trust,28-Apr-17,BAGS SACKS - OTHER,Facilities,NHS LOGISTICS,1018012227,2.03
Department of Health,Salisbury NHS Foundation Trust,28-Apr-17,BAGS SACKS - OTHER,Facilities,NHS LOGISTICS,1018012227,1.44
Department of Health,Salisbury NHS Foundation Trust,28-Apr-17,BEVERAGES & AMBIENT FOOD,Facilities,NHS LOGISTICS,1018012227,1.69
Department of Health,Salisbury NHS Foundation Trust,28-Apr-17,BEVERAGES & AMBIENT FOOD,Facilities,NHS LOGISTICS,1018012227,18.88
Department of Health,Salisbury NHS Foundation Trust,28-Apr-17,BEVERAGES & AMBIENT FOOD,Facilities,NHS LOGISTICS,1018012227,3.29
Department of Health,Salisbury NHS Foundation Trust,28-Apr-17,FRUIT & VEGETABLES,Facilities,NHS LOGISTICS,1018012227,0.5
Department of Health,Salisbury NHS Foundation Trust,28-Apr-17,FRUIT & VEGETABLES,Facilities,NHS LOGISTICS,1018012227,18.58
Department of Health,Salisbury NHS Foundation Trust,28-Apr-17,FRUIT & VEGETABLES,Facilities,NHS LOGISTICS,1018012227,2.34
Department of Health,Salisbury NHS Foundation Trust,28-Apr-17,FRUIT & VEGETABLES,Facilities,NHS LOGISTICS,1018012227,7.18
Department of Health,Salisbury NHS Foundation Trust,28-Apr-17,FRUIT & VEGETABLES,Facilities,NHS LOGISTICS,1018012227,6.12
Department of Health,Salisbury NHS Foundation Trust,28-Apr-17,FRUIT & VEGETABLES,Facilities,NHS LOGISTICS,1018012227,5.33
Department of Health,Salisbury NHS Foundation Trust,28-Apr-17,FRUIT & VEGETABLES,Facilities,NHS LOGISTICS,1018012227,1.97
Department of Health,Salisbury NHS Foundation Trust,28-Apr-17,FRUIT & VEGETABLES,Facilities,NHS LOGISTICS,1018012227,8.35
Department of Health,Salisbury NHS Foundation Trust,28-Apr-17,FRUIT & VEGETABLES,Facilities,NHS LOGISTICS,1018012227,15.84
Department of Health,Salisbury NHS Foundation Trust,28-Apr-17,FRUIT & VEGETABLES,Facilities,NHS LOGISTICS,1018012227,6.55
Department of Health,Salisbury NHS Foundation Trust,28-Apr-17,BEVERAGES & AMBIENT FOOD,Facilities,NHS LOGISTICS,1018012227,0.49
Department of Health,Salisbury NHS Foundation Trust,28-Apr-17,BEVERAGES & AMBIENT FOOD,Facilities,NHS LOGISTICS,1018012227,0.92
Department of Health,Salisbury NHS Foundation Trust,28-Apr-17,BEVERAGES & AMBIENT FOOD,Facilities,NHS LOGISTICS,1018012227,4.92
Department of Health,Salisbury NHS Foundation Trust,28-Apr-17,BEVERAGES & AMBIENT FOOD,Facilities,NHS LOGISTICS,1018012227,21.1
Department of Health,Salisbury NHS Foundation Trust,28-Apr-17,LIQUID REFRESHMENTS,Facilities,NHS LOGISTICS,1018012227,3.29
Department of Health,Salisbury NHS Foundation Trust,28-Apr-17,LIQUID REFRESHMENTS,Facilities,NHS LOGISTICS,1018012227,0.51
Department of Health,Salisbury NHS Foundation Trust,28-Apr-17,LIQUID REFRESHMENTS,Facilities,NHS LOGISTICS,1018012227,3.72
Department of Health,Salisbury NHS Foundation Trust,28-Apr-17,LIQUID REFRESHMENTS,Facilities,NHS LOGISTICS,1018012227,0.51
Department of Health,Salisbury NHS Foundation Trust,28-Apr-17,LIQUID REFRESHMENTS,Facilities,NHS LOGISTICS,1018012227,3.67
Department of Health,Salisbury NHS Foundation Trust,28-Apr-17,LIQUID REFRESHMENTS,Facilities,NHS LOGISTICS,1018012227,13.6
Department of Health,Salisbury NHS Foundation Trust,28-Apr-17,BEVERAGES & AMBIENT FOOD,Facilities,NHS LOGISTICS,1018012227,4.25
Department of Health,Salisbury NHS Foundation Trust,28-Apr-17,COOKING & KITCHEN UTENSILS,Facilities,NHS LOGISTICS,1018012227,4.83
Department of Health,Salisbury NHS Foundation Trust,28-Apr-17,BEVERAGES & AMBIENT FOOD,Facilities,NHS LOGISTICS,1018012227,12.15
Department of Health,Salisbury NHS Foundation Trust,28-Apr-17,BEVERAGES & AMBIENT FOOD,Facilities,NHS LOGISTICS,1018012227,12.16
Department of Health,Salisbury NHS Foundation Trust,28-Apr-17,BEVERAGES & AMBIENT FOOD,Facilities,NHS LOGISTICS,1018012227,12.16
Department of Health,Salisbury NHS Foundation Trust,28-Apr-17,BEVERAGES & AMBIENT FOOD,Facilities,NHS LOGISTICS,1018012227,6.58
Department of Health,Salisbury NHS Foundation Trust,28-Apr-17,BEVERAGES & AMBIENT FOOD,Facilities,NHS LOGISTICS,1018012227,6.91
Department of Health,Salisbury NHS Foundation Trust,28-Apr-17,BEVERAGES & AMBIENT FOOD,Facilities,NHS LOGISTICS,1018012227,8.59
Department of Health,Salisbury NHS Foundation Trust,28-Apr-17,BEVERAGES & AMBIENT FOOD,Facilities,NHS LOGISTICS,1018012227,9.83
Department of Health,Salisbury NHS Foundation Trust,28-Apr-17,BEVERAGES & AMBIENT FOOD,Facilities,NHS LOGISTICS,1018012227,1.34
Department of Health,Salisbury NHS Foundation Trust,28-Apr-17,FLAVOURINGS HERBS SPICES,Facilities,NHS LOGISTICS,1018012227,0.49
Department of Health,Salisbury NHS Foundation Trust,28-Apr-17,FLAVOURINGS HERBS SPICES,Facilities,NHS LOGISTICS,1018012227,0.33
Department of Health,Salisbury NHS Foundation Trust,28-Apr-17,FLAVOURINGS HERBS SPICES,Facilities,NHS LOGISTICS,1018012227,0.59
Department of Health,Salisbury NHS Foundation Trust,28-Apr-17,BEVERAGES & AMBIENT FOOD,Facilities,NHS LOGISTICS,1018012227,13.69
Department of Health,Salisbury NHS Foundation Trust,28-Apr-17,BEVERAGES & AMBIENT FOOD,Facilities,NHS LOGISTICS,1018012227,1.24
Department of Health,Salisbury NHS Foundation Trust,28-Apr-17,BEVERAGES & AMBIENT FOOD,Facilities,NHS LOGISTICS,1018012227,0.71
Department of Health,Salisbury NHS Foundation Trust,28-Apr-17,BEVERAGES & AMBIENT FOOD,Facilities,NHS LOGISTICS,1018012227,1.46
Department of Health,Salisbury NHS Foundation Trust,28-Apr-17,BEVERAGES & AMBIENT FOOD,Facilities,NHS LOGISTICS,1018012227,2.62
Department of Health,Salisbury NHS Foundation Trust,28-Apr-17,BEVERAGES & AMBIENT FOOD,Facilities,NHS LOGISTICS,1018012227,7.55
Department of Health,Salisbury NHS Foundation Trust,28-Apr-17,BEVERAGES & AMBIENT FOOD,Facilities,NHS LOGISTICS,1018012227,1.53
Department of Health,Salisbury NHS Foundation Trust,28-Apr-17,BEVERAGES & AMBIENT FOOD,Facilities,NHS LOGISTICS,1018012227,3.12
Department of Health,Salisbury NHS Foundation Trust,28-Apr-17,BEVERAGES & AMBIENT FOOD,Facilities,NHS LOGISTICS,1018012227,1.36
Department of Health,Salisbury NHS Foundation Trust,28-Apr-17,EGGS MILK OTHER DAIRY PRODUCTS,Facilities,NHS LOGISTICS,1018012227,38.75
Department of Health,Salisbury NHS Foundation Trust,28-Apr-17,FLAVOURINGS HERBS SPICES,Facilities,NHS LOGISTICS,1018012227,2.35
Department of Health,Salisbury NHS Foundation Trust,28-Apr-17,FLAVOURINGS HERBS SPICES,Facilities,NHS LOGISTICS,1018012227,1.23
Department of Health,Salisbury NHS Foundation Trust,28-Apr-17,FRUIT & VEGETABLES,Facilities,NHS LOGISTICS,1018012227,4.02
Department of Health,Salisbury NHS Foundation Trust,28-Apr-17,BEVERAGES & AMBIENT FOOD,Facilities,NHS LOGISTICS,1018012227,3.94
Department of Health,Salisbury NHS Foundation Trust,28-Apr-17,BEVERAGES & AMBIENT FOOD,Facilities,NHS LOGISTICS,1018012227,2.32
Department of Health,Salisbury NHS Foundation Trust,28-Apr-17,FLAVOURINGS HERBS SPICES,Facilities,NHS LOGISTICS,1018012227,9.18
Department of Health,Salisbury NHS Foundation Trust,28-Apr-17,BEVERAGES & AMBIENT FOOD,Facilities,NHS LOGISTICS,1018012227,10.03
Department of Health,Salisbury NHS Foundation Trust,28-Apr-17,BEVERAGES & AMBIENT FOOD,Facilities,NHS LOGISTICS,1018012227,5.19
Department of Health,Salisbury NHS Foundation Trust,28-Apr-17,BEVERAGES & AMBIENT FOOD,Facilities,NHS LOGISTICS,1018012227,13.34
Department of Health,Salisbury NHS Foundation Trust,28-Apr-17,BEVERAGES & AMBIENT FOOD,Facilities,NHS LOGISTICS,1018012227,1.92
Department of Health,Salisbury NHS Foundation Trust,28-Apr-17,PATIENT APPLIANCES,Medicine,NHS LOGISTICS,1018012227,2.42
Department of Health,Salisbury NHS Foundation Trust,28-Apr-17,PATIENT APPLIANCES,Medicine,NHS LOGISTICS,1018012227,1.61
Department of Health,Salisbury NHS Foundation Trust,28-Apr-17,PATIENT APPLIANCES,Medicine,NHS LOGISTICS,1018012227,1.61
Department of Health,Salisbury NHS Foundation Trust,28-Apr-17,PATIENT APPLIANCES,Medicine,NHS LOGISTICS,1018012227,1.61
Department of Health,Salisbury NHS Foundation Trust,28-Apr-17,MEDSURGCONS - OTHER,Medicine,NHS LOGISTICS,1018012227,20.36
Department of Health,Salisbury NHS Foundation Trust,28-Apr-17,OTHER MEDICAL SUPPLIES,Medicine,NHS LOGISTICS,1018012227,0.93
Department of Health,Salisbury NHS Foundation Trust,28-Apr-17,TISSUES HAND TOWELS & TOILET PAPER,Medicine,NHS LOGISTICS,1018012227,0.07
Department of Health,Salisbury NHS Foundation Trust,28-Apr-17,TOILETRIES PERSONAL HYGIENE PRODUCTS,Medicine,NHS LOGISTICS,1018012227,0.83
Department of Health,Salisbury NHS Foundation Trust,28-Apr-17,DISPOSABLE THEATRE DRAPES WIPES,Medicine,NHS LOGISTICS,1018012227,1.3
Department of Health,Salisbury NHS Foundation Trust,28-Apr-17,COOKING & KITCHEN UTENSILS,Surgery,NHS LOGISTICS,1018012227,3.4
Department of Health,Salisbury NHS Foundation Trust,28-Apr-17,DISPOSABLE THEATRE DRAPES WIPES,Surgery,NHS LOGISTICS,1018012227,6.67
Department of Health,Salisbury NHS Foundation Trust,28-Apr-17,DRUGS,Surgery,NHS LOGISTICS,1018012227,14.47
Department of Health,Salisbury NHS Foundation Trust,28-Apr-17,MEDSURGCONS - OTHER,Surgery,NHS LOGISTICS,1018012227,4.1
Department of Health,Salisbury NHS Foundation Trust,28-Apr-17,MEDSURGCONS - OTHER,Surgery,NHS LOGISTICS,1018012227,4.1
Department of Health,Salisbury NHS Foundation Trust,28-Apr-17,DISPOSABLE THEATRE DRAPES WIPES,Surgery,NHS LOGISTICS,1018012227,1.95
Department of Health,Salisbury NHS Foundation Trust,28-Apr-17,DENTAL SURGERY SUNDRIES,Musculo-Skeletal,NHS LOGISTICS,1018012227,4.9
Department of Health,Salisbury NHS Foundation Trust,28-Apr-17,TISSUES HAND TOWELS & TOILET PAPER,Clinical Support,NHS LOGISTICS,1018012227,4.26
Department of Health,Salisbury NHS Foundation Trust,28-Apr-17,DRESSINGS - PRE STERILE,Clinical Support,NHS LOGISTICS,1018012227,0.07
Department of Health,Salisbury NHS Foundation Trust,28-Apr-17,NON DISPOSABLE BED LINEN,Clinical Support,NHS LOGISTICS,1018012227,1.75
Department of Health,Salisbury NHS Foundation Trust,28-Apr-17,DISPOSABLE THEATRE DRAPES WIPES,Clinical Support,NHS LOGISTICS,1018012227,0.65
Department of Health,Salisbury NHS Foundation Trust,28-Apr-17,BEVERAGES & AMBIENT FOOD,Facilities,NHS LOGISTICS,1018012227,2.45
Department of Health,Salisbury NHS Foundation Trust,28-Apr-17,BEVERAGES & AMBIENT FOOD,Facilities,NHS LOGISTICS,1018012227,3.4
Department of Health,Salisbury NHS Foundation Trust,28-Apr-17,BEVERAGES & AMBIENT FOOD,Facilities,NHS LOGISTICS,1018012227,7.27
Department of Health,Salisbury NHS Foundation Trust,28-Apr-17,ADULTS HEARING AIDS,Surgery,NHS LOGISTICS,1018012227,14.86
Department of Health,Salisbury NHS Foundation Trust,28-Apr-17,ADULTS HEARING AIDS,Surgery,NHS LOGISTICS,1018012227,579.13
Department of Health,Salisbury NHS Foundation Trust,28-Apr-17,DISPOSABLE THEATRE DRAPES WIPES,Facilities,NHS LOGISTICS,1018012227,26.68
Department of Health,Salisbury NHS Foundation Trust,28-Apr-17,ADULTS HEARING AIDS,Surgery,NHS LOGISTICS,1018012227,579.13
Department of Health,Salisbury NHS Foundation Trust,28-Apr-17,ADULTS HEARING AIDS,Surgery,NHS LOGISTICS,1018012227,579.13
Department of Health,Salisbury NHS Foundation Trust,28-Apr-17,MEDICAL EQUIPMENT 10 YEARS,Capital Projects,PHILIPS MEDICAL SYSTEMS,7300253642,36076.84
Department of Health,Salisbury NHS Foundation Trust,28-Apr-17,MEDICAL EQUIPMENT 10 YEARS,Capital Projects,PHILIPS MEDICAL SYSTEMS,7300253642,7215.37
Department of Health,Salisbury NHS Foundation Trust,20-Apr-17,LAB EQUIP-LABORATORY APPARATUS,Clinical Support,CSC COMPUTER SCIENCES LTD,5278006746,72906.11
Department of Health,Salisbury NHS Foundation Trust,20-Apr-17,BLDG STRUCTURES SUB CONTR,Capital Projects,SALISBURY HEALTHCARE FACILITIES LTD,364,50
Department of Health,Salisbury NHS Foundation Trust,20-Apr-17,BLDG STRUCTURES MAIN CONTR,Capital Projects,SALISBURY HEALTHCARE FACILITIES LTD,364,29406.17
Department of Health,Salisbury NHS Foundation Trust,07-Apr-17,HEARING AIDS SPARES,Surgery,NHS LOGISTICS,1017249990,425.17
Department of Health,Salisbury NHS Foundation Trust,07-Apr-17,SEATING GENERAL,Capital Projects,NHS LOGISTICS,1017249990,12371.17
Department of Health,Salisbury NHS Foundation Trust,18-Apr-17,NETWORKING COSTS,Capital Projects,SOFTCAT LIMITED,INV01584931,96425.52
Department of Health,Salisbury NHS Foundation Trust,18-Apr-17,NETWORKING COSTS,Capital Projects,SOFTCAT LIMITED,INV01584931,19285.1
Department of Health,Salisbury NHS Foundation Trust,28-Apr-17,M & S EQUIPELECTEQUIPINST - OTHER,Medicine,NHS LOGISTICS,1018012227,160.12
Department of Health,Salisbury NHS Foundation Trust,28-Apr-17,M & S EQUIPELECTEQUIPINST - OTHER,Medicine,NHS LOGISTICS,1018012227,32.02
Department of Health,Salisbury NHS Foundation Trust,28-Apr-17,DRESSINGS - PRE STERILE,Musculo-Skeletal,NHS LOGISTICS,1018012227,237.4
Department of Health,Salisbury NHS Foundation Trust,28-Apr-17,DRESSINGS - PRE STERILE,Musculo-Skeletal,NHS LOGISTICS,1018012227,47.48
Department of Health,Salisbury NHS Foundation Trust,28-Apr-17,PATIENTS BEDWEAR UNISEX,Surgery,NHS LOGISTICS,1018012227,58.23
Department of Health,Salisbury NHS Foundation Trust,28-Apr-17,PATIENTS BEDWEAR UNISEX,Surgery,NHS LOGISTICS,1018012227,11.65
Department of Health,Salisbury NHS Foundation Trust,28-Apr-17,D IMAG & RADIO - X RAY FILM PROCESSING CHEMICALS,Surgery,NHS LOGISTICS,1018012227,225.15
Department of Health,Salisbury NHS Foundation Trust,28-Apr-17,D IMAG & RADIO - X RAY FILM PROCESSING CHEMICALS,Surgery,NHS LOGISTICS,1018012227,112.58
Department of Health,Salisbury NHS Foundation Trust,28-Apr-17,D IMAG & RADIO - X RAY FILM PROCESSING CHEMICALS,Surgery,NHS LOGISTICS,1018012227,45.03
Department of Health,Salisbury NHS Foundation Trust,28-Apr-17,D IMAG & RADIO - X RAY FILM PROCESSING CHEMICALS,Surgery,NHS LOGISTICS,1018012227,22.52
Department of Health,Salisbury NHS Foundation Trust,18-Apr-17,MEDICAL EQUIPMENT 10 YEARS,Capital Projects,PHILIPS MEDICAL SYSTEMS,7300249114,24756.06
Department of Health,Salisbury NHS Foundation Trust,18-Apr-17,MEDICAL EQUIPMENT 10 YEARS,Capital Projects,PHILIPS MEDICAL SYSTEMS,7300249114,4951.21
Department of Health,Salisbury NHS Foundation Trust,18-Apr-17,NETWORKING COSTS,Capital Projects,CSC COMPUTER SCIENCES LTD,5278006648,4188.97
Department of Health,Salisbury NHS Foundation Trust,18-Apr-17,NETWORKING COSTS,Capital Projects,CSC COMPUTER SCIENCES LTD,5278006648,41259.42
Department of Health,Salisbury NHS Foundation Trust,07-Apr-17,HEARING AIDS SPARES,Surgery,NHS LOGISTICS,1017249990,21.23
Department of Health,Salisbury NHS Foundation Trust,07-Apr-17,ADULTS HEARING AIDS,Surgery,NHS LOGISTICS,1017249990,73.93
Department of Health,Salisbury NHS Foundation Trust,07-Apr-17,MED SURG EQUIP REP MAINT CLEANING,Musculo-Skeletal,NHS LOGISTICS,1017249990,42.69
Department of Health,Salisbury NHS Foundation Trust,07-Apr-17,LAB EQUIP-LABORATORY APPARATUS,Clinical Support,NHS LOGISTICS,1017249990,54.58
Department of Health,Salisbury NHS Foundation Trust,07-Apr-17,OTHER MEDICAL SUPPLIES,Quality,NHS LOGISTICS,1017249990,4.69
Department of Health,Salisbury NHS Foundation Trust,07-Apr-17,DRESSINGS - PRE STERILE,Medicine,NHS LOGISTICS,1017249990,7.64
Department of Health,Salisbury NHS Foundation Trust,07-Apr-17,TISSUES HAND TOWELS & TOILET PAPER,Medicine,NHS LOGISTICS,1017249990,3.7
Department of Health,Salisbury NHS Foundation Trust,07-Apr-17,CLEANING MATERIALS PRODUCTS SUNDRIES,Medicine,NHS LOGISTICS,1017249990,5.45
Department of Health,Salisbury NHS Foundation Trust,07-Apr-17,OTHER MEDICAL SUPPLIES,Medicine,NHS LOGISTICS,1017249990,4.65
Department of Health,Salisbury NHS Foundation Trust,07-Apr-17,PATIENT APPLIANCES,Medicine,NHS LOGISTICS,1017249990,4.39
Department of Health,Salisbury NHS Foundation Trust,07-Apr-17,DISPOSABLE THEATRE DRAPES WIPES,Medicine,NHS LOGISTICS,1017249990,3.24
Department of Health,Salisbury NHS Foundation Trust,07-Apr-17,DRESSINGS - PRE STERILE,Surgery,NHS LOGISTICS,1017249990,31.12
Department of Health,Salisbury NHS Foundation Trust,07-Apr-17,OTHER MEDICAL SUPPLIES,Surgery,NHS LOGISTICS,1017249990,64.52
Department of Health,Salisbury NHS Foundation Trust,07-Apr-17,SERVICES FROM NHS BODIES,Clinical Support,NHS LOGISTICS,1017249990,32.97
Department of Health,Salisbury NHS Foundation Trust,07-Apr-17,HEARING AIDS SPARES,Surgery,NHS LOGISTICS,1017249990,236.13
Department of Health,Salisbury NHS Foundation Trust,07-Apr-17,MEDSURGCONS - OTHER,Musculo-Skeletal,NHS LOGISTICS,1017249990,155.23
Department of Health,Salisbury NHS Foundation Trust,07-Apr-17,BAGS SACKS - OTHER,Clinical Support,NHS LOGISTICS,1017249990,51.25
Department of Health,Salisbury NHS Foundation Trust,07-Apr-17,DISPOSABLE THEATRE DRAPES WIPES,Clinical Support,NHS LOGISTICS,1017249990,24.9
Department of Health,Salisbury NHS Foundation Trust,07-Apr-17,TOILETRIES PERSONAL HYGIENE PRODUCTS,Clinical Support,NHS LOGISTICS,1017249990,7.23
Department of Health,Salisbury NHS Foundation Trust,07-Apr-17,DRESSINGS - PRE STERILE,Musculo-Skeletal,NHS LOGISTICS,1017249990,47.6
Department of Health,Salisbury NHS Foundation Trust,07-Apr-17,MED SURG EQUIP REP MAINT CLEANING,Medicine,NHS LOGISTICS,1017249990,42.69
Department of Health,Salisbury NHS Foundation Trust,07-Apr-17,DRESSINGS - PRE STERILE,Musculo-Skeletal,NHS LOGISTICS,1017249990,158.27
Department of Health,Salisbury NHS Foundation Trust,07-Apr-17,ELECTRICAL EQUIPMENT x,Surgery,NHS LOGISTICS,1017249990,15.67
Department of Health,Salisbury NHS Foundation Trust,07-Apr-17,SURGICAL INSTRUMENTS: GENERAL,Surgery,NHS LOGISTICS,1017249990,86.1
Department of Health,Salisbury NHS Foundation Trust,07-Apr-17,SURGICAL INSTRUMENTS: GENERAL,Surgery,NHS LOGISTICS,1017249990,62.78
Department of Health,Salisbury NHS Foundation Trust,07-Apr-17,OTHER MEDICAL SUPPLIES,Clinical Support,NHS LOGISTICS,1017249990,61.04
Department of Health,Salisbury NHS Foundation Trust,07-Apr-17,DRUGS,Medicine,NHS LOGISTICS,1017249990,8.35
Department of Health,Salisbury NHS Foundation Trust,07-Apr-17,ADULTS HEARING AIDS,Surgery,NHS LOGISTICS,1017249990,158.17
Department of Health,Salisbury NHS Foundation Trust,07-Apr-17,BAGS SACKS - OTHER,Clinical Support,NHS LOGISTICS,1017249990,7.21
Department of Health,Salisbury NHS Foundation Trust,07-Apr-17,ADULTS HEARING AIDS,Surgery,NHS LOGISTICS,1017249990,3737.42
Department of Health,Salisbury NHS Foundation Trust,07-Apr-17,ADULTS HEARING AIDS,Surgery,NHS LOGISTICS,1017249990,2669.58
Department of Health,Salisbury NHS Foundation Trust,07-Apr-17,ADULTS HEARING AIDS,Surgery,NHS LOGISTICS,1017249990,774.33
Department of Health,Salisbury NHS Foundation Trust,07-Apr-17,MED SURG EQUIP REP MAINT CLEANING,Clinical Support,NHS LOGISTICS,1017249990,110.42
Department of Health,Salisbury NHS Foundation Trust,07-Apr-17,OTHER MEDICAL SUPPLIES,Clinical Support,NHS LOGISTICS,1017249990,406.25
Department of Health,Salisbury NHS Foundation Trust,07-Apr-17,DISPOSABLE THEATRE DRAPES WIPES,Clinical Support,NHS LOGISTICS,1017249990,123.4
Department of Health,Salisbury NHS Foundation Trust,07-Apr-17,MEDSURGCONS-LAPAROSCOPIC EQUIPMENT,Surgery,NHS LOGISTICS,1017249990,268.05
Department of Health,Salisbury NHS Foundation Trust,07-Apr-17,OTHER MEDICAL SUPPLIES,Surgery,NHS LOGISTICS,1017249990,9.01
Department of Health,Salisbury NHS Foundation Trust,07-Apr-17,OTHER MEDICAL SUPPLIES,Clinical Support,NHS LOGISTICS,1017249990,2.33
Department of Health,Salisbury NHS Foundation Trust,07-Apr-17,TISSUES HAND TOWELS & TOILET PAPER,Surgery,NHS LOGISTICS,1017249990,0.39
Department of Health,Salisbury NHS Foundation Trust,07-Apr-17,DRESSINGS - PRE STERILE,Surgery,NHS LOGISTICS,1017249990,1.11
Department of Health,Salisbury NHS Foundation Trust,07-Apr-17,PATIENTS BEDWEAR UNISEX,Surgery,NHS LOGISTICS,1017249990,58.23
Department of Health,Salisbury NHS Foundation Trust,07-Apr-17,LAB EQUIP-LABORATORY APPARATUS,Clinical Support,NHS LOGISTICS,1017249990,37.85
Department of Health,Salisbury NHS Foundation Trust,07-Apr-17,LAB EQUIP-LABORATORY APPARATUS,Clinical Support,NHS LOGISTICS,1017249990,296.67
Department of Health,Salisbury NHS Foundation Trust,07-Apr-17,LAB EQUIP-ANALYSERS,Clinical Support,NHS LOGISTICS,1017249990,25.4
Department of Health,Salisbury NHS Foundation Trust,07-Apr-17,LAB EQUIP-LABORATORY APPARATUS,Clinical Support,NHS LOGISTICS,1017249990,25.83
Department of Health,Salisbury NHS Foundation Trust,07-Apr-17,LAB EQUIP-LABORATORY APPARATUS,Clinical Support,NHS LOGISTICS,1017249990,748.67
Department of Health,Salisbury NHS Foundation Trust,07-Apr-17,LAB EQUIP-LABORATORY APPARATUS,Clinical Support,NHS LOGISTICS,1017249990,25.67
Department of Health,Salisbury NHS Foundation Trust,07-Apr-17,LAB EQUIP-LABORATORY APPARATUS,Clinical Support,NHS LOGISTICS,1017249990,51.33
Department of Health,Salisbury NHS Foundation Trust,07-Apr-17,DRESSINGS  -  PROCEDURE PACKS,Clinical Support,NHS LOGISTICS,1017249990,42.56
Department of Health,Salisbury NHS Foundation Trust,07-Apr-17,COOKING & KITCHEN UTENSILS,Clinical Support,NHS LOGISTICS,1017249990,9.8
Department of Health,Salisbury NHS Foundation Trust,07-Apr-17,LAB EQUIP-LABORATORY APPARATUS,Clinical Support,NHS LOGISTICS,1017249990,6.3
Department of Health,Salisbury NHS Foundation Trust,07-Apr-17,LAB EQUIP-LABORATORY APPARATUS,Clinical Support,NHS LOGISTICS,1017249990,85.4
Department of Health,Salisbury NHS Foundation Trust,07-Apr-17,OTHER MEDICAL SUPPLIES,Clinical Support,NHS LOGISTICS,1017249990,37.53
Department of Health,Salisbury NHS Foundation Trust,07-Apr-17,MED SURG EQUIP REP MAINT CLEANING,Musculo-Skeletal,NHS LOGISTICS,1017249990,42.69
Department of Health,Salisbury NHS Foundation Trust,07-Apr-17,MEDSURGCONS - OTHER,Musculo-Skeletal,NHS LOGISTICS,1017249990,5.89
Department of Health,Salisbury NHS Foundation Trust,07-Apr-17,MEDSURGCONS - OTHER,Musculo-Skeletal,NHS LOGISTICS,1017249990,3.91
Department of Health,Salisbury NHS Foundation Trust,07-Apr-17,MEDSURGCONS - OTHER,Musculo-Skeletal,NHS LOGISTICS,1017249990,6.82
Department of Health,Salisbury NHS Foundation Trust,07-Apr-17,PATIENT APPLIANCES,Clinical Support,NHS LOGISTICS,1017249990,25.01
Department of Health,Salisbury NHS Foundation Trust,07-Apr-17,TISSUES HAND TOWELS & TOILET PAPER,Clinical Support,NHS LOGISTICS,1017249990,3.7
Department of Health,Salisbury NHS Foundation Trust,07-Apr-17,SERVICES FROM NHS BODIES,Clinical Support,NHS LOGISTICS,1017249990,43.82
Department of Health,Salisbury NHS Foundation Trust,07-Apr-17,PATIENT APPLIANCES,Clinical Support,NHS LOGISTICS,1017249990,14.42
Department of Health,Salisbury NHS Foundation Trust,07-Apr-17,DRESSINGS - PRE STERILE,Clinical Support,NHS LOGISTICS,1017249990,0.35
Department of Health,Salisbury NHS Foundation Trust,07-Apr-17,SERVICES FROM NHS BODIES,Clinical Support,NHS LOGISTICS,1017249990,5.4
Department of Health,Salisbury NHS Foundation Trust,07-Apr-17,DISPOSABLE THEATRE DRAPES WIPES,Clinical Support,NHS LOGISTICS,1017249990,3.24
Department of Health,Salisbury NHS Foundation Trust,07-Apr-17,LIQUID REFRESHMENTS,Facilities,NHS LOGISTICS,1017249990,3.91
Department of Health,Salisbury NHS Foundation Trust,07-Apr-17,CLEANING MATERIALS PRODUCTS SUNDRIES,Facilities,NHS LOGISTICS,1017249990,13.75
Department of Health,Salisbury NHS Foundation Trust,07-Apr-17,DISPOSABLE THEATRE DRAPES WIPES,Facilities,NHS LOGISTICS,1017249990,400.2
Department of Health,Salisbury NHS Foundation Trust,07-Apr-17,CLEANING MATERIALS PRODUCTS SUNDRIES,Facilities,NHS LOGISTICS,1017249990,10.2
Department of Health,Salisbury NHS Foundation Trust,07-Apr-17,CLEANING MATERIALS PRODUCTS SUNDRIES,Facilities,NHS LOGISTICS,1017249990,56.8
Department of Health,Salisbury NHS Foundation Trust,07-Apr-17,DRESSINGS - PRE STERILE,Clinical Support,NHS LOGISTICS,1017249990,7.64
Department of Health,Salisbury NHS Foundation Trust,07-Apr-17,SURGICAL INSTRUMENTS: GENERAL,Clinical Support,NHS LOGISTICS,1017249990,4.92
Department of Health,Salisbury NHS Foundation Trust,07-Apr-17,DRESSINGS - PRE STERILE,Clinical Support,NHS LOGISTICS,1017249990,1.11
Department of Health,Salisbury NHS Foundation Trust,07-Apr-17,MEDSURGCONS - OTHER,Clinical Support,NHS LOGISTICS,1017249990,5.89
Department of Health,Salisbury NHS Foundation Trust,07-Apr-17,MEDSURGCONS - OTHER,Clinical Support,NHS LOGISTICS,1017249990,3.91
Department of Health,Salisbury NHS Foundation Trust,07-Apr-17,BABY TEXTURE MODIFIED FOODS,Clinical Support,NHS LOGISTICS,1017249990,16.66
Department of Health,Salisbury NHS Foundation Trust,07-Apr-17,BABY TEXTURE MODIFIED FOODS,Clinical Support,NHS LOGISTICS,1017249990,33.32
Department of Health,Salisbury NHS Foundation Trust,07-Apr-17,TISSUES HAND TOWELS & TOILET PAPER,Clinical Support,NHS LOGISTICS,1017249990,21.2
Department of Health,Salisbury NHS Foundation Trust,07-Apr-17,TISSUES HAND TOWELS & TOILET PAPER,Clinical Support,NHS LOGISTICS,1017249990,1.17
Department of Health,Salisbury NHS Foundation Trust,07-Apr-17,DRESSINGS - PRE STERILE,Clinical Support,NHS LOGISTICS,1017249990,0.35
Department of Health,Salisbury NHS Foundation Trust,07-Apr-17,SERVICES FROM NHS BODIES,Clinical Support,NHS LOGISTICS,1017249990,5.4
Department of Health,Salisbury NHS Foundation Trust,07-Apr-17,BAGS SACKS - OTHER,Clinical Support,NHS LOGISTICS,1017249990,51.25
Department of Health,Salisbury NHS Foundation Trust,07-Apr-17,DISPOSABLE THEATRE DRAPES WIPES,Clinical Support,NHS LOGISTICS,1017249990,21
Department of Health,Salisbury NHS Foundation Trust,07-Apr-17,TUBES,Medicine,NHS LOGISTICS,1017249990,6.85
Department of Health,Salisbury NHS Foundation Trust,07-Apr-17,SURGICAL INSTRUMENTS: GENERAL,Medicine,NHS LOGISTICS,1017249990,4.92
Department of Health,Salisbury NHS Foundation Trust,07-Apr-17,OTHER MEDICAL SUPPLIES,Medicine,NHS LOGISTICS,1017249990,6.98
Department of Health,Salisbury NHS Foundation Trust,07-Apr-17,PATIENT APPLIANCES,Medicine,NHS LOGISTICS,1017249990,4.39
Department of Health,Salisbury NHS Foundation Trust,07-Apr-17,MEDSURGCONS - OTHER,Medicine,NHS LOGISTICS,1017249990,3.91
Department of Health,Salisbury NHS Foundation Trust,07-Apr-17,TISSUES HAND TOWELS & TOILET PAPER,Medicine,NHS LOGISTICS,1017249990,0.35
Department of Health,Salisbury NHS Foundation Trust,07-Apr-17,DISPOSABLE THEATRE DRAPES WIPES,Medicine,NHS LOGISTICS,1017249990,3.24
Department of Health,Salisbury NHS Foundation Trust,07-Apr-17,TISSUES HAND TOWELS & TOILET PAPER,Surgery,NHS LOGISTICS,1017249990,1.85
Department of Health,Salisbury NHS Foundation Trust,07-Apr-17,TISSUES HAND TOWELS & TOILET PAPER,Surgery,NHS LOGISTICS,1017249990,0.78
Department of Health,Salisbury NHS Foundation Trust,07-Apr-17,M & S EQUIPELECTEQUIPINST - OTHER,Surgery,NHS LOGISTICS,1017249990,2.18
Department of Health,Salisbury NHS Foundation Trust,07-Apr-17,DISPOSABLE THEATRE DRAPES WIPES,Surgery,NHS LOGISTICS,1017249990,3.24
Department of Health,Salisbury NHS Foundation Trust,07-Apr-17,TISSUES HAND TOWELS & TOILET PAPER,Surgery,NHS LOGISTICS,1017249990,5.55
Department of Health,Salisbury NHS Foundation Trust,07-Apr-17,SURGICAL INSTRUMENTS: DISPOSABLE,Surgery,NHS LOGISTICS,1017249990,28.23
Department of Health,Salisbury NHS Foundation Trust,07-Apr-17,TISSUES HAND TOWELS & TOILET PAPER,Surgery,NHS LOGISTICS,1017249990,10.6
Department of Health,Salisbury NHS Foundation Trust,07-Apr-17,TISSUES HAND TOWELS & TOILET PAPER,Surgery,NHS LOGISTICS,1017249990,1.17
Department of Health,Salisbury NHS Foundation Trust,07-Apr-17,DRESSINGS - PRE STERILE,Surgery,NHS LOGISTICS,1017249990,22.75
Department of Health,Salisbury NHS Foundation Trust,07-Apr-17,DRESSINGS - PRE STERILE,Musculo-Skeletal,NHS LOGISTICS,1017249990,7.64
Department of Health,Salisbury NHS Foundation Trust,07-Apr-17,OTHER MEDICAL SUPPLIES,Musculo-Skeletal,NHS LOGISTICS,1017249990,4.65
Department of Health,Salisbury NHS Foundation Trust,07-Apr-17,PATIENT APPLIANCES,Musculo-Skeletal,NHS LOGISTICS,1017249990,13.18
Department of Health,Salisbury NHS Foundation Trust,07-Apr-17,PATIENT APPLIANCES,Musculo-Skeletal,NHS LOGISTICS,1017249990,4.39
Department of Health,Salisbury NHS Foundation Trust,07-Apr-17,MEDSURGCONS - OTHER,Musculo-Skeletal,NHS LOGISTICS,1017249990,5.89
Department of Health,Salisbury NHS Foundation Trust,07-Apr-17,TOILETRIES PERSONAL HYGIENE PRODUCTS,Musculo-Skeletal,NHS LOGISTICS,1017249990,4.13
Department of Health,Salisbury NHS Foundation Trust,07-Apr-17,CLEANING MATERIALS PRODUCTS SUNDRIES,Facilities,NHS LOGISTICS,1017249990,91.2
Department of Health,Salisbury NHS Foundation Trust,07-Apr-17,BAGS SACKS - OTHER,Clinical Support,NHS LOGISTICS,1017249990,3
Department of Health,Salisbury NHS Foundation Trust,07-Apr-17,TISSUES HAND TOWELS & TOILET PAPER,Clinical Support,NHS LOGISTICS,1017249990,10.6
Department of Health,Salisbury NHS Foundation Trust,07-Apr-17,MEDSURGCONS - OTHER,Medicine,NHS LOGISTICS,1017249990,420
Department of Health,Salisbury NHS Foundation Trust,07-Apr-17,MEDSURGCONS - OTHER,Medicine,NHS LOGISTICS,1017249990,90
Department of Health,Salisbury NHS Foundation Trust,07-Apr-17,MEDSURGCONS - OTHER,Clinical Support,NHS LOGISTICS,1017249990,4
Department of Health,Salisbury NHS Foundation Trust,07-Apr-17,TISSUES HAND TOWELS & TOILET PAPER,Musculo-Skeletal,NHS LOGISTICS,1017249990,7.4
Department of Health,Salisbury NHS Foundation Trust,07-Apr-17,DISPOSABLE THEATRE DRAPES WIPES,Musculo-Skeletal,NHS LOGISTICS,1017249990,3.24
Department of Health,Salisbury NHS Foundation Trust,07-Apr-17,BEVERAGES & AMBIENT FOOD,Surgery,NHS LOGISTICS,1017249990,43.02
Department of Health,Salisbury NHS Foundation Trust,07-Apr-17,BEVERAGES & AMBIENT FOOD,Surgery,NHS LOGISTICS,1017249990,2.88
Department of Health,Salisbury NHS Foundation Trust,07-Apr-17,BEVERAGES & AMBIENT FOOD,Surgery,NHS LOGISTICS,1017249990,2.78
Department of Health,Salisbury NHS Foundation Trust,07-Apr-17,TISSUES HAND TOWELS & TOILET PAPER,Medicine,NHS LOGISTICS,1017249990,3.13
Department of Health,Salisbury NHS Foundation Trust,07-Apr-17,MEDSURGCONS - OTHER,Medicine,NHS LOGISTICS,1017249990,3.91
Department of Health,Salisbury NHS Foundation Trust,07-Apr-17,DRESSINGS - PRE STERILE,Surgery,NHS LOGISTICS,1017249990,16.73
Department of Health,Salisbury NHS Foundation Trust,07-Apr-17,DRESSINGS - PRE STERILE,Surgery,NHS LOGISTICS,1017249990,17.12
Department of Health,Salisbury NHS Foundation Trust,07-Apr-17,DRESSINGS - PRE STERILE,Surgery,NHS LOGISTICS,1017249990,10.56
Department of Health,Salisbury NHS Foundation Trust,07-Apr-17,DRESSINGS - PRE STERILE,Surgery,NHS LOGISTICS,1017249990,7.65
Department of Health,Salisbury NHS Foundation Trust,07-Apr-17,DRESSINGS - PRE STERILE,Surgery,NHS LOGISTICS,1017249990,2.05
Department of Health,Salisbury NHS Foundation Trust,07-Apr-17,DRESSINGS - PRE STERILE,Surgery,NHS LOGISTICS,1017249990,6.22
Department of Health,Salisbury NHS Foundation Trust,07-Apr-17,DRESSINGS - PRE STERILE,Surgery,NHS LOGISTICS,1017249990,19.27
Department of Health,Salisbury NHS Foundation Trust,07-Apr-17,TISSUES HAND TOWELS & TOILET PAPER,Surgery,NHS LOGISTICS,1017249990,10.6
Department of Health,Salisbury NHS Foundation Trust,07-Apr-17,TISSUES HAND TOWELS & TOILET PAPER,Surgery,NHS LOGISTICS,1017249990,5.7
Department of Health,Salisbury NHS Foundation Trust,07-Apr-17,DRESSINGS - PRE STERILE,Surgery,NHS LOGISTICS,1017249990,15.95
Department of Health,Salisbury NHS Foundation Trust,07-Apr-17,DRESSINGS - PRE STERILE,Clinical Support,NHS LOGISTICS,1017249990,77.03
Department of Health,Salisbury NHS Foundation Trust,07-Apr-17,DRESSINGS - PRE STERILE,Clinical Support,NHS LOGISTICS,1017249990,36.52
Department of Health,Salisbury NHS Foundation Trust,07-Apr-17,DRESSINGS - PRE STERILE,Clinical Support,NHS LOGISTICS,1017249990,21.99
Department of Health,Salisbury NHS Foundation Trust,07-Apr-17,DRESSINGS - PRE STERILE,Clinical Support,NHS LOGISTICS,1017249990,11.73
Department of Health,Salisbury NHS Foundation Trust,07-Apr-17,DRESSINGS - PRE STERILE,Clinical Support,NHS LOGISTICS,1017249990,21.58
Department of Health,Salisbury NHS Foundation Trust,07-Apr-17,DRESSINGS - PRE STERILE,Clinical Support,NHS LOGISTICS,1017249990,108.1
Department of Health,Salisbury NHS Foundation Trust,07-Apr-17,DRESSINGS - PRE STERILE,Clinical Support,NHS LOGISTICS,1017249990,75.33
Department of Health,Salisbury NHS Foundation Trust,07-Apr-17,DRESSINGS - PRE STERILE,Clinical Support,NHS LOGISTICS,1017249990,29.97
Department of Health,Salisbury NHS Foundation Trust,07-Apr-17,DRESSINGS - PRE STERILE,Clinical Support,NHS LOGISTICS,1017249990,56
Department of Health,Salisbury NHS Foundation Trust,07-Apr-17,DRUGS,Clinical Support,NHS LOGISTICS,1017249990,4.68
Department of Health,Salisbury NHS Foundation Trust,07-Apr-17,NON DISPOSABLE THEATRE DRAPES WIPES,Surgery,NHS LOGISTICS,1017249990,75.71
Department of Health,Salisbury NHS Foundation Trust,07-Apr-17,DRESSINGS - PRE STERILE,Surgery,NHS LOGISTICS,1017249990,11.68
Department of Health,Salisbury NHS Foundation Trust,07-Apr-17,SURGICAL INSTRUMENTS: GENERAL,Surgery,NHS LOGISTICS,1017249990,9
Department of Health,Salisbury NHS Foundation Trust,07-Apr-17,DRUGS,Surgery,NHS LOGISTICS,1017249990,18.7
Department of Health,Salisbury NHS Foundation Trust,07-Apr-17,OTHER MEDICAL SUPPLIES,Surgery,NHS LOGISTICS,1017249990,13.95
Department of Health,Salisbury NHS Foundation Trust,07-Apr-17,BEVERAGES & AMBIENT FOOD,Surgery,NHS LOGISTICS,1017249990,14.34
Department of Health,Salisbury NHS Foundation Trust,07-Apr-17,DISPOSABLE THEATRE DRAPES WIPES,Surgery,NHS LOGISTICS,1017249990,3.24
Department of Health,Salisbury NHS Foundation Trust,07-Apr-17,DRESSINGS - PRE STERILE,Corporate - Finance & Procurement,NHS LOGISTICS,1017249990,319
Department of Health,Salisbury NHS Foundation Trust,07-Apr-17,DRESSINGS - PRE STERILE,Corporate - Finance & Procurement,NHS LOGISTICS,1017249990,113.58
Department of Health,Salisbury NHS Foundation Trust,07-Apr-17,HEALTHCARE - WEAR,Musculo-Skeletal,NHS LOGISTICS,1017249990,7.5
Department of Health,Salisbury NHS Foundation Trust,07-Apr-17,MEDSURGCONS - OTHER,Surgery,NHS LOGISTICS,1017249990,30.42
Department of Health,Salisbury NHS Foundation Trust,07-Apr-17,MEDSURGCONS - OTHER,Surgery,NHS LOGISTICS,1017249990,5.34
Department of Health,Salisbury NHS Foundation Trust,07-Apr-17,OTHER MEDICAL SUPPLIES,Clinical Support,NHS LOGISTICS,1017249990,17.15
Department of Health,Salisbury NHS Foundation Trust,07-Apr-17,OTHER MEDICAL SUPPLIES,Surgery,NHS LOGISTICS,1017249990,149.93
Department of Health,Salisbury NHS Foundation Trust,07-Apr-17,MED SURG EQUIP REP MAINT CLEANING,Surgery,NHS LOGISTICS,1017249990,220.83
Department of Health,Salisbury NHS Foundation Trust,07-Apr-17,LAB EQUIP-LABORATORY APPARATUS,Clinical Support,NHS LOGISTICS,1017249990,38.45
Department of Health,Salisbury NHS Foundation Trust,07-Apr-17,LAB EQUIP-LABORATORY APPARATUS,Clinical Support,NHS LOGISTICS,1017249990,44.65
Department of Health,Salisbury NHS Foundation Trust,07-Apr-17,LAB EQUIP-LABORATORY APPARATUS,Clinical Support,NHS LOGISTICS,1017249990,49.85
Department of Health,Salisbury NHS Foundation Trust,07-Apr-17,DISPOSABLE THEATRE DRAPES WIPES,Surgery,NHS LOGISTICS,1017249990,33.35
Department of Health,Salisbury NHS Foundation Trust,07-Apr-17,DRUGS,Surgery,NHS LOGISTICS,1017249990,24.54
Department of Health,Salisbury NHS Foundation Trust,07-Apr-17,DRUGS,Surgery,NHS LOGISTICS,1017249990,28.05
Department of Health,Salisbury NHS Foundation Trust,07-Apr-17,MEDSURGCONS - OTHER,Surgery,NHS LOGISTICS,1017249990,20.48
Department of Health,Salisbury NHS Foundation Trust,07-Apr-17,MEDSURGCONS - OTHER,Musculo-Skeletal,NHS LOGISTICS,1017249990,21.47
Department of Health,Salisbury NHS Foundation Trust,07-Apr-17,TISSUES HAND TOWELS & TOILET PAPER,Musculo-Skeletal,NHS LOGISTICS,1017249990,21.6
Department of Health,Salisbury NHS Foundation Trust,07-Apr-17,NON DISPOSABLE BED LINEN,Musculo-Skeletal,NHS LOGISTICS,1017249990,15.06
Department of Health,Salisbury NHS Foundation Trust,07-Apr-17,DRUGS,Musculo-Skeletal,NHS LOGISTICS,1017249990,9.35
Department of Health,Salisbury NHS Foundation Trust,07-Apr-17,MEDSURGCONS - OTHER,Musculo-Skeletal,NHS LOGISTICS,1017249990,23.9
Department of Health,Salisbury NHS Foundation Trust,07-Apr-17,MEDSURGCONS - OTHER,Musculo-Skeletal,NHS LOGISTICS,1017249990,11.95
Department of Health,Salisbury NHS Foundation Trust,07-Apr-17,PATIENT APPLIANCES,Musculo-Skeletal,NHS LOGISTICS,1017249990,4.39
Department of Health,Salisbury NHS Foundation Trust,07-Apr-17,PATIENT APPLIANCES,Musculo-Skeletal,NHS LOGISTICS,1017249990,6.7
Department of Health,Salisbury NHS Foundation Trust,07-Apr-17,PATIENT APPLIANCES,Musculo-Skeletal,NHS LOGISTICS,1017249990,3.35
Department of Health,Salisbury NHS Foundation Trust,07-Apr-17,DISPOSABLE THEATRE DRAPES WIPES,Musculo-Skeletal,NHS LOGISTICS,1017249990,6.48
Department of Health,Salisbury NHS Foundation Trust,07-Apr-17,MED SURG EQUIP REP MAINT CLEANING,Clinical Support,NHS LOGISTICS,1017249990,220.83
Department of Health,Salisbury NHS Foundation Trust,07-Apr-17,M & S EQUIPELECTEQUIPINST - OTHER,Clinical Support,NHS LOGISTICS,1017249990,197.92
Department of Health,Salisbury NHS Foundation Trust,07-Apr-17,TISSUES HAND TOWELS & TOILET PAPER,Clinical Support,NHS LOGISTICS,1017249990,1.17
Department of Health,Salisbury NHS Foundation Trust,07-Apr-17,DRESSINGS - PRE STERILE,Clinical Support,NHS LOGISTICS,1017249990,0.35
Department of Health,Salisbury NHS Foundation Trust,07-Apr-17,TOILETRIES PERSONAL HYGIENE PRODUCTS,Surgery,NHS LOGISTICS,1017249990,10.42
Department of Health,Salisbury NHS Foundation Trust,07-Apr-17,TISSUES HAND TOWELS & TOILET PAPER,Clinical Support,NHS LOGISTICS,1017249990,31.8
Department of Health,Salisbury NHS Foundation Trust,07-Apr-17,DRESSINGS - PRE STERILE,Surgery,NHS LOGISTICS,1017249990,30.57
Department of Health,Salisbury NHS Foundation Trust,07-Apr-17,TISSUES HAND TOWELS & TOILET PAPER,Surgery,NHS LOGISTICS,1017249990,1.85
Department of Health,Salisbury NHS Foundation Trust,07-Apr-17,CLEANING MATERIALS PRODUCTS SUNDRIES,Surgery,NHS LOGISTICS,1017249990,5.53
Department of Health,Salisbury NHS Foundation Trust,07-Apr-17,OTHER MEDICAL SUPPLIES,Surgery,NHS LOGISTICS,1017249990,6.98
Department of Health,Salisbury NHS Foundation Trust,07-Apr-17,PATIENT APPLIANCES,Surgery,NHS LOGISTICS,1017249990,6.7
Department of Health,Salisbury NHS Foundation Trust,07-Apr-17,PATIENT APPLIANCES,Surgery,NHS LOGISTICS,1017249990,6.7
Department of Health,Salisbury NHS Foundation Trust,07-Apr-17,PATIENT APPLIANCES,Surgery,NHS LOGISTICS,1017249990,4.39
Department of Health,Salisbury NHS Foundation Trust,07-Apr-17,PATIENT APPLIANCES,Surgery,NHS LOGISTICS,1017249990,4.39
Department of Health,Salisbury NHS Foundation Trust,07-Apr-17,PATIENT APPLIANCES,Surgery,NHS LOGISTICS,1017249990,4.39
Department of Health,Salisbury NHS Foundation Trust,07-Apr-17,TISSUES HAND TOWELS & TOILET PAPER,Surgery,NHS LOGISTICS,1017249990,0.35
Department of Health,Salisbury NHS Foundation Trust,07-Apr-17,DISPOSABLE THEATRE DRAPES WIPES,Surgery,NHS LOGISTICS,1017249990,6.48
Department of Health,Salisbury NHS Foundation Trust,07-Apr-17,TISSUES HAND TOWELS & TOILET PAPER,Surgery,NHS LOGISTICS,1017249990,3.7
Department of Health,Salisbury NHS Foundation Trust,07-Apr-17,TISSUES HAND TOWELS & TOILET PAPER,Surgery,NHS LOGISTICS,1017249990,1.38
Department of Health,Salisbury NHS Foundation Trust,07-Apr-17,OTHER MEDICAL SUPPLIES,Surgery,NHS LOGISTICS,1017249990,45.33
Department of Health,Salisbury NHS Foundation Trust,07-Apr-17,OTHER MEDICAL SUPPLIES,Surgery,NHS LOGISTICS,1017249990,46.28
Department of Health,Salisbury NHS Foundation Trust,07-Apr-17,M & S EQUIPELECTEQUIPINST - OTHER,Medicine,NHS LOGISTICS,1017249990,91.63
Department of Health,Salisbury NHS Foundation Trust,07-Apr-17,DRESSINGS - PRE STERILE,Medicine,NHS LOGISTICS,1017249990,6.13
Department of Health,Salisbury NHS Foundation Trust,07-Apr-17,PATIENT APPLIANCES,Medicine,NHS LOGISTICS,1017249990,64.75
Department of Health,Salisbury NHS Foundation Trust,07-Apr-17,OTHER MEDICAL SUPPLIES,Medicine,NHS LOGISTICS,1017249990,6.98
Department of Health,Salisbury NHS Foundation Trust,07-Apr-17,DRESSINGS - PRE STERILE,Medicine,NHS LOGISTICS,1017249990,25.6
Department of Health,Salisbury NHS Foundation Trust,07-Apr-17,ELECTRICAL EQUIPMENT x,Clinical Support,NHS LOGISTICS,1017249990,15.67
Department of Health,Salisbury NHS Foundation Trust,07-Apr-17,ANAESTHETIC EQUIPMENT ACCESSORIES,Surgery,NHS LOGISTICS,1017249990,15.91
Department of Health,Salisbury NHS Foundation Trust,07-Apr-17,DRESSINGS - PRE STERILE,Medicine,NHS LOGISTICS,1017249990,22.93
Department of Health,Salisbury NHS Foundation Trust,07-Apr-17,TISSUES HAND TOWELS & TOILET PAPER,Medicine,NHS LOGISTICS,1017249990,3.7
Department of Health,Salisbury NHS Foundation Trust,07-Apr-17,OTHER MEDICAL SUPPLIES,Medicine,NHS LOGISTICS,1017249990,4.65
Department of Health,Salisbury NHS Foundation Trust,07-Apr-17,PATIENT APPLIANCES,Medicine,NHS LOGISTICS,1017249990,6.7
Department of Health,Salisbury NHS Foundation Trust,07-Apr-17,PATIENT APPLIANCES,Medicine,NHS LOGISTICS,1017249990,6.7
Department of Health,Salisbury NHS Foundation Trust,07-Apr-17,PATIENT APPLIANCES,Medicine,NHS LOGISTICS,1017249990,6.7
Department of Health,Salisbury NHS Foundation Trust,07-Apr-17,TISSUES HAND TOWELS & TOILET PAPER,Medicine,NHS LOGISTICS,1017249990,0.7
Department of Health,Salisbury NHS Foundation Trust,07-Apr-17,TOILETRIES PERSONAL HYGIENE PRODUCTS,Medicine,NHS LOGISTICS,1017249990,4.13
Department of Health,Salisbury NHS Foundation Trust,07-Apr-17,DISPOSABLE THEATRE DRAPES WIPES,Medicine,NHS LOGISTICS,1017249990,3.24
Department of Health,Salisbury NHS Foundation Trust,07-Apr-17,PATIENTS BEDWEAR UNISEX,Clinical Support,NHS LOGISTICS,1017249990,58.23
Department of Health,Salisbury NHS Foundation Trust,07-Apr-17,TISSUES HAND TOWELS & TOILET PAPER,Clinical Support,NHS LOGISTICS,1017249990,3.7
Department of Health,Salisbury NHS Foundation Trust,07-Apr-17,DRESSINGS - PRE STERILE,Clinical Support,NHS LOGISTICS,1017249990,1.5
Department of Health,Salisbury NHS Foundation Trust,07-Apr-17,CLEANING MATERIALS PRODUCTS SUNDRIES,Clinical Support,NHS LOGISTICS,1017249990,5.53
Department of Health,Salisbury NHS Foundation Trust,07-Apr-17,TUBES,Clinical Support,NHS LOGISTICS,1017249990,6.85
Department of Health,Salisbury NHS Foundation Trust,07-Apr-17,MEDSURGCONS - OTHER,Clinical Support,NHS LOGISTICS,1017249990,3.92
Department of Health,Salisbury NHS Foundation Trust,07-Apr-17,OTHER MEDICAL SUPPLIES,Clinical Support,NHS LOGISTICS,1017249990,6.98
Department of Health,Salisbury NHS Foundation Trust,07-Apr-17,DRESSINGS - PRE STERILE,Clinical Support,NHS LOGISTICS,1017249990,0.7
Department of Health,Salisbury NHS Foundation Trust,07-Apr-17,MEDSURGCONS - OTHER,Clinical Support,NHS LOGISTICS,1017249990,7.82
Department of Health,Salisbury NHS Foundation Trust,07-Apr-17,DRESSINGS - PRE STERILE,Medicine,NHS LOGISTICS,1017249990,7.64
Department of Health,Salisbury NHS Foundation Trust,07-Apr-17,TISSUES HAND TOWELS & TOILET PAPER,Medicine,NHS LOGISTICS,1017249990,1.85
Department of Health,Salisbury NHS Foundation Trust,07-Apr-17,OTHER MEDICAL SUPPLIES,Medicine,NHS LOGISTICS,1017249990,4.65
Department of Health,Salisbury NHS Foundation Trust,07-Apr-17,PATIENT APPLIANCES,Medicine,NHS LOGISTICS,1017249990,3.35
Department of Health,Salisbury NHS Foundation Trust,07-Apr-17,PATIENT APPLIANCES,Medicine,NHS LOGISTICS,1017249990,3.35
Department of Health,Salisbury NHS Foundation Trust,07-Apr-17,TISSUES HAND TOWELS & TOILET PAPER,Medicine,NHS LOGISTICS,1017249990,0.7
Department of Health,Salisbury NHS Foundation Trust,07-Apr-17,M & S EQUIPELECTEQUIPINST - OTHER,Medicine,NHS LOGISTICS,1017249990,2.93
Department of Health,Salisbury NHS Foundation Trust,07-Apr-17,DISPOSABLE THEATRE DRAPES WIPES,Medicine,NHS LOGISTICS,1017249990,6.48
Department of Health,Salisbury NHS Foundation Trust,07-Apr-17,TISSUES HAND TOWELS & TOILET PAPER,Medicine,NHS LOGISTICS,1017249990,1.85
Department of Health,Salisbury NHS Foundation Trust,07-Apr-17,OTHER MEDICAL SUPPLIES,Medicine,NHS LOGISTICS,1017249990,2.33
Department of Health,Salisbury NHS Foundation Trust,07-Apr-17,DISPOSABLE THEATRE DRAPES WIPES,Medicine,NHS LOGISTICS,1017249990,3.24
Department of Health,Salisbury NHS Foundation Trust,07-Apr-17,DRESSINGS - PRE STERILE,Musculo-Skeletal,NHS LOGISTICS,1017249990,6.42
Department of Health,Salisbury NHS Foundation Trust,07-Apr-17,TISSUES HAND TOWELS & TOILET PAPER,Musculo-Skeletal,NHS LOGISTICS,1017249990,5.55
Department of Health,Salisbury NHS Foundation Trust,07-Apr-17,DRUGS,Musculo-Skeletal,NHS LOGISTICS,1017249990,1.98
Department of Health,Salisbury NHS Foundation Trust,07-Apr-17,DRESSINGS - PRE STERILE,Musculo-Skeletal,NHS LOGISTICS,1017249990,12.6
Department of Health,Salisbury NHS Foundation Trust,07-Apr-17,ELECTRICAL EQUIPMENT x,Surgery,NHS LOGISTICS,1017249990,5
Department of Health,Salisbury NHS Foundation Trust,07-Apr-17,ANAESTHETIC EQUIPMENT ACCESSORIES,Surgery,NHS LOGISTICS,1017249990,34.09
Department of Health,Salisbury NHS Foundation Trust,07-Apr-17,ANAESTHETIC EQUIPMENT ACCESSORIES,Surgery,NHS LOGISTICS,1017249990,16.03
Department of Health,Salisbury NHS Foundation Trust,07-Apr-17,MEDSURGCONS - OTHER,Surgery,NHS LOGISTICS,1017249990,101.8
Department of Health,Salisbury NHS Foundation Trust,07-Apr-17,OTHER MEDICAL SUPPLIES,Surgery,NHS LOGISTICS,1017249990,13.95
Department of Health,Salisbury NHS Foundation Trust,07-Apr-17,DRUGS,Clinical Support,NHS LOGISTICS,1017249990,19.63
Department of Health,Salisbury NHS Foundation Trust,07-Apr-17,DRUGS,Clinical Support,NHS LOGISTICS,1017249990,9.35
Department of Health,Salisbury NHS Foundation Trust,07-Apr-17,ELECTRICAL EQUIPMENT x,Clinical Support,NHS LOGISTICS,1017249990,15.67
Department of Health,Salisbury NHS Foundation Trust,07-Apr-17,ELECTRICAL EQUIPMENT x,Clinical Support,NHS LOGISTICS,1017249990,8
Department of Health,Salisbury NHS Foundation Trust,07-Apr-17,DISPOSABLE THEATRE DRAPES WIPES,Corporate - Finance & Procurement,NHS LOGISTICS,1017249990,84
Department of Health,Salisbury NHS Foundation Trust,07-Apr-17,OTHER MEDICAL SUPPLIES,Surgery,NHS LOGISTICS,1017249990,2.33
Department of Health,Salisbury NHS Foundation Trust,07-Apr-17,PATIENT APPLIANCES,Surgery,NHS LOGISTICS,1017249990,3.35
Department of Health,Salisbury NHS Foundation Trust,07-Apr-17,PATIENT APPLIANCES,Surgery,NHS LOGISTICS,1017249990,3.35
Department of Health,Salisbury NHS Foundation Trust,07-Apr-17,PATIENT APPLIANCES,Surgery,NHS LOGISTICS,1017249990,4.39
Department of Health,Salisbury NHS Foundation Trust,07-Apr-17,TISSUES HAND TOWELS & TOILET PAPER,Surgery,NHS LOGISTICS,1017249990,0.7
Department of Health,Salisbury NHS Foundation Trust,07-Apr-17,DISPOSABLE THEATRE DRAPES WIPES,Surgery,NHS LOGISTICS,1017249990,3.24
Department of Health,Salisbury NHS Foundation Trust,07-Apr-17,TISSUES HAND TOWELS & TOILET PAPER,Surgery,NHS LOGISTICS,1017249990,1.9
Department of Health,Salisbury NHS Foundation Trust,07-Apr-17,CLEANING MATERIALS PRODUCTS SUNDRIES,Medicine,NHS LOGISTICS,1017249990,5.45
Department of Health,Salisbury NHS Foundation Trust,07-Apr-17,TISSUES HAND TOWELS & TOILET PAPER,Medicine,NHS LOGISTICS,1017249990,3.92
Department of Health,Salisbury NHS Foundation Trust,07-Apr-17,TUBES,Medicine,NHS LOGISTICS,1017249990,6.85
Department of Health,Salisbury NHS Foundation Trust,07-Apr-17,OTHER MEDICAL SUPPLIES,Medicine,NHS LOGISTICS,1017249990,2.33
Department of Health,Salisbury NHS Foundation Trust,07-Apr-17,OTHER MEDICAL SUPPLIES,Medicine,NHS LOGISTICS,1017249990,4.45
Department of Health,Salisbury NHS Foundation Trust,07-Apr-17,DRESSINGS - PRE STERILE,Medicine,NHS LOGISTICS,1017249990,3.59
Department of Health,Salisbury NHS Foundation Trust,07-Apr-17,DISPOSABLE THEATRE DRAPES WIPES,Medicine,NHS LOGISTICS,1017249990,3.24
Department of Health,Salisbury NHS Foundation Trust,07-Apr-17,DRESSINGS - PRE STERILE,Musculo-Skeletal,NHS LOGISTICS,1017249990,7.64
Department of Health,Salisbury NHS Foundation Trust,07-Apr-17,DRESSINGS - PRE STERILE,Musculo-Skeletal,NHS LOGISTICS,1017249990,6.16
Department of Health,Salisbury NHS Foundation Trust,07-Apr-17,OTHER MEDICAL SUPPLIES,Musculo-Skeletal,NHS LOGISTICS,1017249990,4.65
Department of Health,Salisbury NHS Foundation Trust,07-Apr-17,PATIENT APPLIANCES,Musculo-Skeletal,NHS LOGISTICS,1017249990,8.78
Department of Health,Salisbury NHS Foundation Trust,07-Apr-17,PATIENT APPLIANCES,Musculo-Skeletal,NHS LOGISTICS,1017249990,8.78
Department of Health,Salisbury NHS Foundation Trust,07-Apr-17,MEDSURGCONS - OTHER,Musculo-Skeletal,NHS LOGISTICS,1017249990,3.91
Department of Health,Salisbury NHS Foundation Trust,07-Apr-17,TOILETRIES PERSONAL HYGIENE PRODUCTS,Musculo-Skeletal,NHS LOGISTICS,1017249990,4.13
Department of Health,Salisbury NHS Foundation Trust,07-Apr-17,DISPOSABLE THEATRE DRAPES WIPES,Musculo-Skeletal,NHS LOGISTICS,1017249990,6.48
Department of Health,Salisbury NHS Foundation Trust,07-Apr-17,SURGICAL INSTRUMENTS: DISPOSABLE,Surgery,NHS LOGISTICS,1017249990,6
Department of Health,Salisbury NHS Foundation Trust,07-Apr-17,BAGS SACKS - OTHER,Surgery,NHS LOGISTICS,1017249990,6.97
Department of Health,Salisbury NHS Foundation Trust,07-Apr-17,DRESSINGS - PRE STERILE,Surgery,NHS LOGISTICS,1017249990,0.99
Department of Health,Salisbury NHS Foundation Trust,07-Apr-17,DRESSINGS - PRE STERILE,Surgery,NHS LOGISTICS,1017249990,2.06
Department of Health,Salisbury NHS Foundation Trust,07-Apr-17,DRESSINGS - PRE STERILE,Surgery,NHS LOGISTICS,1017249990,1.5
Department of Health,Salisbury NHS Foundation Trust,07-Apr-17,SURGICAL INSTRUMENTS: GENERAL,Surgery,NHS LOGISTICS,1017249990,70.13
Department of Health,Salisbury NHS Foundation Trust,07-Apr-17,DISPOSABLE THEATRE DRAPES WIPES,Surgery,NHS LOGISTICS,1017249990,33.35
Department of Health,Salisbury NHS Foundation Trust,07-Apr-17,DRESSINGS - PRE STERILE,Surgery,NHS LOGISTICS,1017249990,14.63
Department of Health,Salisbury NHS Foundation Trust,07-Apr-17,DRUGS,Surgery,NHS LOGISTICS,1017249990,14.73
Department of Health,Salisbury NHS Foundation Trust,07-Apr-17,DRUGS,Surgery,NHS LOGISTICS,1017249990,57.6
Department of Health,Salisbury NHS Foundation Trust,07-Apr-17,MEDSURGCONS - OTHER,Surgery,NHS LOGISTICS,1017249990,10.24
Department of Health,Salisbury NHS Foundation Trust,07-Apr-17,MEDSURGCONS - OTHER,Surgery,NHS LOGISTICS,1017249990,20.48
Department of Health,Salisbury NHS Foundation Trust,07-Apr-17,MEDSURGCONS - OTHER,Surgery,NHS LOGISTICS,1017249990,10.24
Department of Health,Salisbury NHS Foundation Trust,07-Apr-17,MEDSURGCONS - OTHER,Surgery,NHS LOGISTICS,1017249990,10.24
Department of Health,Salisbury NHS Foundation Trust,07-Apr-17,DISPOSABLE THEATRE DRAPES WIPES,Surgery,NHS LOGISTICS,1017249990,6.48
Department of Health,Salisbury NHS Foundation Trust,07-Apr-17,CLEANING MATERIALS PRODUCTS SUNDRIES,Surgery,NHS LOGISTICS,1017249990,4.6
Department of Health,Salisbury NHS Foundation Trust,07-Apr-17,TISSUES HAND TOWELS & TOILET PAPER,Musculo-Skeletal,NHS LOGISTICS,1017249990,1.85
Department of Health,Salisbury NHS Foundation Trust,07-Apr-17,CLEANING MATERIALS PRODUCTS SUNDRIES,Musculo-Skeletal,NHS LOGISTICS,1017249990,5.53
Department of Health,Salisbury NHS Foundation Trust,07-Apr-17,OTHER MEDICAL SUPPLIES,Musculo-Skeletal,NHS LOGISTICS,1017249990,6.98
Department of Health,Salisbury NHS Foundation Trust,07-Apr-17,TOILETRIES PERSONAL HYGIENE PRODUCTS,Musculo-Skeletal,NHS LOGISTICS,1017249990,4.15
Department of Health,Salisbury NHS Foundation Trust,07-Apr-17,TISSUES HAND TOWELS & TOILET PAPER,Musculo-Skeletal,NHS LOGISTICS,1017249990,1.4
Department of Health,Salisbury NHS Foundation Trust,07-Apr-17,DISPOSABLE THEATRE DRAPES WIPES,Musculo-Skeletal,NHS LOGISTICS,1017249990,3.24
Department of Health,Salisbury NHS Foundation Trust,07-Apr-17,DRESSINGS - PRE STERILE,Musculo-Skeletal,NHS LOGISTICS,1017249990,7.64
Department of Health,Salisbury NHS Foundation Trust,07-Apr-17,DRESSINGS - PRE STERILE,Musculo-Skeletal,NHS LOGISTICS,1017249990,6.16
Department of Health,Salisbury NHS Foundation Trust,07-Apr-17,TISSUES HAND TOWELS & TOILET PAPER,Musculo-Skeletal,NHS LOGISTICS,1017249990,3.7
Department of Health,Salisbury NHS Foundation Trust,07-Apr-17,DRESSINGS - PRE STERILE,Musculo-Skeletal,NHS LOGISTICS,1017249990,2.41
Department of Health,Salisbury NHS Foundation Trust,07-Apr-17,BEVERAGES & AMBIENT FOOD,Medicine,NHS LOGISTICS,1017249990,1.7
Department of Health,Salisbury NHS Foundation Trust,07-Apr-17,CLEANING MATERIALS PRODUCTS SUNDRIES,Medicine,NHS LOGISTICS,1017249990,5.45
Department of Health,Salisbury NHS Foundation Trust,07-Apr-17,CLEANING MATERIALS PRODUCTS SUNDRIES,Medicine,NHS LOGISTICS,1017249990,5.53
Department of Health,Salisbury NHS Foundation Trust,07-Apr-17,NON DISPOSABLE BED LINEN,Medicine,NHS LOGISTICS,1017249990,23.92
Department of Health,Salisbury NHS Foundation Trust,07-Apr-17,OTHER MEDICAL SUPPLIES,Medicine,NHS LOGISTICS,1017249990,5.58
Department of Health,Salisbury NHS Foundation Trust,07-Apr-17,OTHER MEDICAL SUPPLIES,Medicine,NHS LOGISTICS,1017249990,4.65
Department of Health,Salisbury NHS Foundation Trust,07-Apr-17,TISSUES HAND TOWELS & TOILET PAPER,Medicine,NHS LOGISTICS,1017249990,0.35
Department of Health,Salisbury NHS Foundation Trust,07-Apr-17,DISPOSABLE THEATRE DRAPES WIPES,Medicine,NHS LOGISTICS,1017249990,6.48
Department of Health,Salisbury NHS Foundation Trust,07-Apr-17,TISSUES HAND TOWELS & TOILET PAPER,Musculo-Skeletal,NHS LOGISTICS,1017249990,3.7
Department of Health,Salisbury NHS Foundation Trust,07-Apr-17,CLEANING MATERIALS PRODUCTS SUNDRIES,Musculo-Skeletal,NHS LOGISTICS,1017249990,5.53
Department of Health,Salisbury NHS Foundation Trust,07-Apr-17,PATIENT APPLIANCES,Medicine,NHS LOGISTICS,1017249990,3.35
Department of Health,Salisbury NHS Foundation Trust,07-Apr-17,PATIENT APPLIANCES,Medicine,NHS LOGISTICS,1017249990,4.39
Department of Health,Salisbury NHS Foundation Trust,07-Apr-17,PATIENT APPLIANCES,Medicine,NHS LOGISTICS,1017249990,8.78
Department of Health,Salisbury NHS Foundation Trust,07-Apr-17,DISPOSABLE THEATRE DRAPES WIPES,Medicine,NHS LOGISTICS,1017249990,3.24
Department of Health,Salisbury NHS Foundation Trust,07-Apr-17,DRESSINGS - PRE STERILE,Corporate - Finance & Procurement,NHS LOGISTICS,1017249990,478.5
Department of Health,Salisbury NHS Foundation Trust,07-Apr-17,CLEANING MATERIALS PRODUCTS SUNDRIES,Medicine,NHS LOGISTICS,1017249990,5.53
Department of Health,Salisbury NHS Foundation Trust,07-Apr-17,TUBES,Medicine,NHS LOGISTICS,1017249990,20.55
Department of Health,Salisbury NHS Foundation Trust,07-Apr-17,SURGICAL INSTRUMENTS: GENERAL,Medicine,NHS LOGISTICS,1017249990,4.92
Department of Health,Salisbury NHS Foundation Trust,07-Apr-17,OTHER MEDICAL SUPPLIES,Medicine,NHS LOGISTICS,1017249990,2.33
Department of Health,Salisbury NHS Foundation Trust,07-Apr-17,PATIENT APPLIANCES,Medicine,NHS LOGISTICS,1017249990,8.78
Department of Health,Salisbury NHS Foundation Trust,07-Apr-17,PATIENT APPLIANCES,Medicine,NHS LOGISTICS,1017249990,4.39
Department of Health,Salisbury NHS Foundation Trust,07-Apr-17,MEDSURGCONS - OTHER,Medicine,NHS LOGISTICS,1017249990,5.89
Department of Health,Salisbury NHS Foundation Trust,07-Apr-17,MEDSURGCONS - OTHER,Medicine,NHS LOGISTICS,1017249990,3.91
Department of Health,Salisbury NHS Foundation Trust,07-Apr-17,MEDSURGCONS - OTHER,Medicine,NHS LOGISTICS,1017249990,6.82
Department of Health,Salisbury NHS Foundation Trust,07-Apr-17,TISSUES HAND TOWELS & TOILET PAPER,Medicine,NHS LOGISTICS,1017249990,1.4
Department of Health,Salisbury NHS Foundation Trust,07-Apr-17,DISPOSABLE THEATRE DRAPES WIPES,Surgery,NHS LOGISTICS,1017249990,11.38
Department of Health,Salisbury NHS Foundation Trust,07-Apr-17,DRUGS,Surgery,NHS LOGISTICS,1017249990,9.82
Department of Health,Salisbury NHS Foundation Trust,07-Apr-17,OTHER MEDICAL SUPPLIES,Surgery,NHS LOGISTICS,1017249990,9.3
Department of Health,Salisbury NHS Foundation Trust,07-Apr-17,BEVERAGES & AMBIENT FOOD,Surgery,NHS LOGISTICS,1017249990,28.68
Department of Health,Salisbury NHS Foundation Trust,07-Apr-17,BEVERAGES & AMBIENT FOOD,Surgery,NHS LOGISTICS,1017249990,1.39
Department of Health,Salisbury NHS Foundation Trust,07-Apr-17,DISPOSABLE THEATRE DRAPES WIPES,Surgery,NHS LOGISTICS,1017249990,3.24
Department of Health,Salisbury NHS Foundation Trust,07-Apr-17,PATIENTS BEDWEAR UNISEX,Clinical Support,NHS LOGISTICS,1017249990,8
Department of Health,Salisbury NHS Foundation Trust,07-Apr-17,DISPOSABLE THEATRE DRAPES WIPES,Clinical Support,NHS LOGISTICS,1017249990,22.77
Department of Health,Salisbury NHS Foundation Trust,07-Apr-17,DRESSINGS  -  PROCEDURE PACKS,Clinical Support,NHS LOGISTICS,1017249990,241.38
Department of Health,Salisbury NHS Foundation Trust,07-Apr-17,SURGICAL INSTRUMENTS: DISPOSABLE,Clinical Support,NHS LOGISTICS,1017249990,49.41
Department of Health,Salisbury NHS Foundation Trust,07-Apr-17,SERVICES FROM NHS BODIES,Clinical Support,NHS LOGISTICS,1017249990,156.9
Department of Health,Salisbury NHS Foundation Trust,07-Apr-17,BABY TEXTURE MODIFIED FOODS,Clinical Support,NHS LOGISTICS,1017249990,23.23
Department of Health,Salisbury NHS Foundation Trust,07-Apr-17,DRESSINGS - PRE STERILE,Clinical Support,NHS LOGISTICS,1017249990,1.11
Department of Health,Salisbury NHS Foundation Trust,07-Apr-17,MEDSURGCONS - OTHER,Clinical Support,NHS LOGISTICS,1017249990,3.91
Department of Health,Salisbury NHS Foundation Trust,07-Apr-17,BABY TEXTURE MODIFIED FOODS,Clinical Support,NHS LOGISTICS,1017249990,16.66
Department of Health,Salisbury NHS Foundation Trust,07-Apr-17,BABY TEXTURE MODIFIED FOODS,Clinical Support,NHS LOGISTICS,1017249990,66.63
Department of Health,Salisbury NHS Foundation Trust,07-Apr-17,TISSUES HAND TOWELS & TOILET PAPER,Clinical Support,NHS LOGISTICS,1017249990,21.2
Department of Health,Salisbury NHS Foundation Trust,07-Apr-17,DRESSINGS - PRE STERILE,Clinical Support,NHS LOGISTICS,1017249990,0.35
Department of Health,Salisbury NHS Foundation Trust,07-Apr-17,SERVICES FROM NHS BODIES,Clinical Support,NHS LOGISTICS,1017249990,5.4
Department of Health,Salisbury NHS Foundation Trust,07-Apr-17,MEDSURGCONS - OTHER,Medicine,NHS LOGISTICS,1017249990,204.08
Department of Health,Salisbury NHS Foundation Trust,07-Apr-17,MEDSURGCONS - OTHER,Medicine,NHS LOGISTICS,1017249990,27.68
Department of Health,Salisbury NHS Foundation Trust,07-Apr-17,MEDSURGCONS - OTHER,Medicine,NHS LOGISTICS,1017249990,204.08
Department of Health,Salisbury NHS Foundation Trust,07-Apr-17,MEDSURGCONS - OTHER,Medicine,NHS LOGISTICS,1017249990,112.25
Department of Health,Salisbury NHS Foundation Trust,07-Apr-17,MEDSURGCONS - OTHER,Medicine,NHS LOGISTICS,1017249990,204.08
Department of Health,Salisbury NHS Foundation Trust,07-Apr-17,MEDSURGCONS - OTHER,Medicine,NHS LOGISTICS,1017249990,168.38
Department of Health,Salisbury NHS Foundation Trust,07-Apr-17,TUBES,Surgery,NHS LOGISTICS,1017249990,6.85
Department of Health,Salisbury NHS Foundation Trust,07-Apr-17,PATIENT APPLIANCES,Surgery,NHS LOGISTICS,1017249990,3.35
Department of Health,Salisbury NHS Foundation Trust,07-Apr-17,PATIENT APPLIANCES,Surgery,NHS LOGISTICS,1017249990,3.35
Department of Health,Salisbury NHS Foundation Trust,07-Apr-17,PATIENT APPLIANCES,Surgery,NHS LOGISTICS,1017249990,3.35
Department of Health,Salisbury NHS Foundation Trust,07-Apr-17,TISSUES HAND TOWELS & TOILET PAPER,Surgery,NHS LOGISTICS,1017249990,0.7
Department of Health,Salisbury NHS Foundation Trust,07-Apr-17,DISPOSABLE THEATRE DRAPES WIPES,Surgery,NHS LOGISTICS,1017249990,3.24
Department of Health,Salisbury NHS Foundation Trust,07-Apr-17,OTHER MEDICAL SUPPLIES,Medicine,NHS LOGISTICS,1017249990,30.53
Department of Health,Salisbury NHS Foundation Trust,07-Apr-17,STATIONERY SUNDRIES,Medicine,NHS LOGISTICS,1017249990,31.43
Department of Health,Salisbury NHS Foundation Trust,07-Apr-17,BEVERAGES & AMBIENT FOOD,Surgery,NHS LOGISTICS,1017249990,28.68
Department of Health,Salisbury NHS Foundation Trust,07-Apr-17,BEVERAGES & AMBIENT FOOD,Surgery,NHS LOGISTICS,1017249990,2.16
Department of Health,Salisbury NHS Foundation Trust,07-Apr-17,BEVERAGES & AMBIENT FOOD,Surgery,NHS LOGISTICS,1017249990,4.17
Department of Health,Salisbury NHS Foundation Trust,07-Apr-17,OTHER MEDICAL SUPPLIES,Surgery,NHS LOGISTICS,1017249990,2.33
Department of Health,Salisbury NHS Foundation Trust,07-Apr-17,PATIENT APPLIANCES,Surgery,NHS LOGISTICS,1017249990,3.35
Department of Health,Salisbury NHS Foundation Trust,07-Apr-17,PATIENT APPLIANCES,Surgery,NHS LOGISTICS,1017249990,3.35
Department of Health,Salisbury NHS Foundation Trust,07-Apr-17,PATIENT APPLIANCES,Surgery,NHS LOGISTICS,1017249990,3.35
Department of Health,Salisbury NHS Foundation Trust,07-Apr-17,PATIENT APPLIANCES,Surgery,NHS LOGISTICS,1017249990,4.39
Department of Health,Salisbury NHS Foundation Trust,07-Apr-17,PATIENT APPLIANCES,Surgery,NHS LOGISTICS,1017249990,4.39
Department of Health,Salisbury NHS Foundation Trust,07-Apr-17,TISSUES HAND TOWELS & TOILET PAPER,Surgery,NHS LOGISTICS,1017249990,0.7
Department of Health,Salisbury NHS Foundation Trust,07-Apr-17,DISPOSABLE THEATRE DRAPES WIPES,Surgery,NHS LOGISTICS,1017249990,3.24
Department of Health,Salisbury NHS Foundation Trust,07-Apr-17,PATIENT APPLIANCES,Clinical Support,NHS LOGISTICS,1017249990,6.88
Department of Health,Salisbury NHS Foundation Trust,07-Apr-17,TUBES,Clinical Support,NHS LOGISTICS,1017249990,6.85
Department of Health,Salisbury NHS Foundation Trust,07-Apr-17,BABY TEXTURE MODIFIED FOODS,Clinical Support,NHS LOGISTICS,1017249990,10.55
Department of Health,Salisbury NHS Foundation Trust,07-Apr-17,BABY TEXTURE MODIFIED FOODS,Clinical Support,NHS LOGISTICS,1017249990,70.68
Department of Health,Salisbury NHS Foundation Trust,07-Apr-17,MEDSURGCONS - OTHER,Clinical Support,NHS LOGISTICS,1017249990,23.57
Department of Health,Salisbury NHS Foundation Trust,07-Apr-17,BABY TEXTURE MODIFIED FOODS,Clinical Support,NHS LOGISTICS,1017249990,33.32
Department of Health,Salisbury NHS Foundation Trust,07-Apr-17,BABY TEXTURE MODIFIED FOODS,Clinical Support,NHS LOGISTICS,1017249990,16.66
Department of Health,Salisbury NHS Foundation Trust,07-Apr-17,DISPOSABLE THEATRE DRAPES WIPES,Clinical Support,NHS LOGISTICS,1017249990,3.24
Department of Health,Salisbury NHS Foundation Trust,07-Apr-17,TISSUES HAND TOWELS & TOILET PAPER,Medicine,NHS LOGISTICS,1017249990,10.6
Department of Health,Salisbury NHS Foundation Trust,07-Apr-17,TISSUES HAND TOWELS & TOILET PAPER,Clinical Support,NHS LOGISTICS,1017249990,42.4
Department of Health,Salisbury NHS Foundation Trust,07-Apr-17,DRESSINGS - PRE STERILE,Clinical Support,NHS LOGISTICS,1017249990,0.75
Department of Health,Salisbury NHS Foundation Trust,07-Apr-17,DRESSINGS - PRE STERILE,Clinical Support,NHS LOGISTICS,1017249990,0.35
Department of Health,Salisbury NHS Foundation Trust,07-Apr-17,NON DISPOSABLE BED LINEN,Clinical Support,NHS LOGISTICS,1017249990,8.75
Department of Health,Salisbury NHS Foundation Trust,07-Apr-17,DISPOSABLE THEATRE DRAPES WIPES,Clinical Support,NHS LOGISTICS,1017249990,6.48
Department of Health,Salisbury NHS Foundation Trust,07-Apr-17,CLEANING MATERIALS PRODUCTS SUNDRIES,Medicine,NHS LOGISTICS,1017249990,5.53
Department of Health,Salisbury NHS Foundation Trust,07-Apr-17,SURGICAL INSTRUMENTS: GENERAL,Medicine,NHS LOGISTICS,1017249990,9.83
Department of Health,Salisbury NHS Foundation Trust,07-Apr-17,OTHER MEDICAL SUPPLIES,Medicine,NHS LOGISTICS,1017249990,4.65
Department of Health,Salisbury NHS Foundation Trust,07-Apr-17,PATIENT APPLIANCES,Medicine,NHS LOGISTICS,1017249990,6.7
Department of Health,Salisbury NHS Foundation Trust,07-Apr-17,PATIENT APPLIANCES,Medicine,NHS LOGISTICS,1017249990,3.35
Department of Health,Salisbury NHS Foundation Trust,07-Apr-17,TISSUES HAND TOWELS & TOILET PAPER,Medicine,NHS LOGISTICS,1017249990,0.7
Department of Health,Salisbury NHS Foundation Trust,07-Apr-17,MEDSURGCONS - OTHER,Surgery,NHS LOGISTICS,1017249990,12
Department of Health,Salisbury NHS Foundation Trust,07-Apr-17,OTHER MEDICAL SUPPLIES,Surgery,NHS LOGISTICS,1017249990,8.52
Department of Health,Salisbury NHS Foundation Trust,07-Apr-17,OTHER MEDICAL SUPPLIES,Surgery,NHS LOGISTICS,1017249990,9.3
Department of Health,Salisbury NHS Foundation Trust,07-Apr-17,OTHER MEDICAL SUPPLIES,Surgery,NHS LOGISTICS,1017249990,3.1
Department of Health,Salisbury NHS Foundation Trust,07-Apr-17,OTHER MEDICAL SUPPLIES,Surgery,NHS LOGISTICS,1017249990,7.5
Department of Health,Salisbury NHS Foundation Trust,07-Apr-17,DRUGS,Surgery,NHS LOGISTICS,1017249990,14.73
Department of Health,Salisbury NHS Foundation Trust,07-Apr-17,DRUGS,Surgery,NHS LOGISTICS,1017249990,57.6
Department of Health,Salisbury NHS Foundation Trust,07-Apr-17,OTHER MEDICAL SUPPLIES,Surgery,NHS LOGISTICS,1017249990,505.72
Department of Health,Salisbury NHS Foundation Trust,07-Apr-17,DRESSINGS - PRE STERILE,Medicine,NHS LOGISTICS,1017249990,15.28
Department of Health,Salisbury NHS Foundation Trust,07-Apr-17,PATIENT APPLIANCES,Medicine,NHS LOGISTICS,1017249990,32.38
Department of Health,Salisbury NHS Foundation Trust,07-Apr-17,PATIENT APPLIANCES,Medicine,NHS LOGISTICS,1017249990,4.03
Department of Health,Salisbury NHS Foundation Trust,07-Apr-17,PATIENT APPLIANCES,Medicine,NHS LOGISTICS,1017249990,8.05
Department of Health,Salisbury NHS Foundation Trust,07-Apr-17,PATIENT APPLIANCES,Medicine,NHS LOGISTICS,1017249990,16.1
Department of Health,Salisbury NHS Foundation Trust,07-Apr-17,PATIENT APPLIANCES,Medicine,NHS LOGISTICS,1017249990,16.1
Department of Health,Salisbury NHS Foundation Trust,07-Apr-17,PATIENT APPLIANCES,Medicine,NHS LOGISTICS,1017249990,4.03
Department of Health,Salisbury NHS Foundation Trust,07-Apr-17,TUBES,Medicine,NHS LOGISTICS,1017249990,6.85
Department of Health,Salisbury NHS Foundation Trust,07-Apr-17,OTHER MEDICAL SUPPLIES,Medicine,NHS LOGISTICS,1017249990,4.65
Department of Health,Salisbury NHS Foundation Trust,07-Apr-17,MEDSURGCONS - OTHER,Medicine,NHS LOGISTICS,1017249990,59.78
Department of Health,Salisbury NHS Foundation Trust,07-Apr-17,DISPOSABLE THEATRE DRAPES WIPES,Medicine,NHS LOGISTICS,1017249990,6.48
Department of Health,Salisbury NHS Foundation Trust,07-Apr-17,ELECTRICAL EQUIPMENT x,Surgery,NHS LOGISTICS,1017249990,1.67
Department of Health,Salisbury NHS Foundation Trust,07-Apr-17,MEDSURGCONS - OTHER,Surgery,NHS LOGISTICS,1017249990,38.87
Department of Health,Salisbury NHS Foundation Trust,07-Apr-17,OTHER MEDICAL SUPPLIES,Surgery,NHS LOGISTICS,1017249990,70
Department of Health,Salisbury NHS Foundation Trust,07-Apr-17,OTHER MEDICAL SUPPLIES,Surgery,NHS LOGISTICS,1017249990,2.33
Department of Health,Salisbury NHS Foundation Trust,07-Apr-17,TOILETRIES PERSONAL HYGIENE PRODUCTS,Surgery,NHS LOGISTICS,1017249990,4.15
Department of Health,Salisbury NHS Foundation Trust,07-Apr-17,MEDSURGCONS - OTHER,Surgery,NHS LOGISTICS,1017249990,143.48
Department of Health,Salisbury NHS Foundation Trust,07-Apr-17,MEDSURGCONS - OTHER,Surgery,NHS LOGISTICS,1017249990,11.78
Department of Health,Salisbury NHS Foundation Trust,07-Apr-17,MEDSURGCONS - OTHER,Surgery,NHS LOGISTICS,1017249990,6.82
Department of Health,Salisbury NHS Foundation Trust,07-Apr-17,TOILETRIES PERSONAL HYGIENE PRODUCTS,Surgery,NHS LOGISTICS,1017249990,0.93
Department of Health,Salisbury NHS Foundation Trust,07-Apr-17,DISPOSABLE THEATRE DRAPES WIPES,Surgery,NHS LOGISTICS,1017249990,3.24
Department of Health,Salisbury NHS Foundation Trust,07-Apr-17,MEDSURGCONS - OTHER,Surgery,NHS LOGISTICS,1017249990,18.69
Department of Health,Salisbury NHS Foundation Trust,07-Apr-17,M & S EQUIPELECTEQUIPINST - OTHER,Surgery,NHS LOGISTICS,1017249990,10.22
Department of Health,Salisbury NHS Foundation Trust,07-Apr-17,NON DISPOSABLE THEATRE DRAPES WIPES,Surgery,NHS LOGISTICS,1017249990,108.92
Department of Health,Salisbury NHS Foundation Trust,07-Apr-17,OTHER MEDICAL SUPPLIES,Medicine,NHS LOGISTICS,1017249990,110.31
Department of Health,Salisbury NHS Foundation Trust,07-Apr-17,EGGS MILK OTHER DAIRY PRODUCTS,Facilities,NHS LOGISTICS,1017249990,96.87
Department of Health,Salisbury NHS Foundation Trust,07-Apr-17,FRUIT & VEGETABLES,Facilities,NHS LOGISTICS,1017249990,40.16
Department of Health,Salisbury NHS Foundation Trust,07-Apr-17,BEVERAGES & AMBIENT FOOD,Facilities,NHS LOGISTICS,1017249990,33.42
Department of Health,Salisbury NHS Foundation Trust,07-Apr-17,BEVERAGES & AMBIENT FOOD,Facilities,NHS LOGISTICS,1017249990,24.57
Department of Health,Salisbury NHS Foundation Trust,07-Apr-17,BEVERAGES & AMBIENT FOOD,Facilities,NHS LOGISTICS,1017249990,8.86
Department of Health,Salisbury NHS Foundation Trust,07-Apr-17,BEVERAGES & AMBIENT FOOD,Facilities,NHS LOGISTICS,1017249990,27.56
Department of Health,Salisbury NHS Foundation Trust,07-Apr-17,BEVERAGES & AMBIENT FOOD,Facilities,NHS LOGISTICS,1017249990,12.78
Department of Health,Salisbury NHS Foundation Trust,07-Apr-17,BEVERAGES & AMBIENT FOOD,Facilities,NHS LOGISTICS,1017249990,3.57
Department of Health,Salisbury NHS Foundation Trust,07-Apr-17,BEVERAGES & AMBIENT FOOD,Facilities,NHS LOGISTICS,1017249990,9.76
Department of Health,Salisbury NHS Foundation Trust,07-Apr-17,BEVERAGES & AMBIENT FOOD,Facilities,NHS LOGISTICS,1017249990,3.92
Department of Health,Salisbury NHS Foundation Trust,07-Apr-17,BEVERAGES & AMBIENT FOOD,Facilities,NHS LOGISTICS,1017249990,7.64
Department of Health,Salisbury NHS Foundation Trust,07-Apr-17,BEVERAGES & AMBIENT FOOD,Facilities,NHS LOGISTICS,1017249990,18.54
Department of Health,Salisbury NHS Foundation Trust,07-Apr-17,BEVERAGES & AMBIENT FOOD,Facilities,NHS LOGISTICS,1017249990,6.22
Department of Health,Salisbury NHS Foundation Trust,07-Apr-17,BEVERAGES & AMBIENT FOOD,Facilities,NHS LOGISTICS,1017249990,25.38
Department of Health,Salisbury NHS Foundation Trust,07-Apr-17,FLAVOURINGS HERBS SPICES,Facilities,NHS LOGISTICS,1017249990,8.07
Department of Health,Salisbury NHS Foundation Trust,07-Apr-17,COOKING & KITCHEN UTENSILS,Facilities,NHS LOGISTICS,1017249990,24.17
Department of Health,Salisbury NHS Foundation Trust,07-Apr-17,BEVERAGES & AMBIENT FOOD,Facilities,NHS LOGISTICS,1017249990,18.48
Department of Health,Salisbury NHS Foundation Trust,07-Apr-17,BEVERAGES & AMBIENT FOOD,Facilities,NHS LOGISTICS,1017249990,19.68
Department of Health,Salisbury NHS Foundation Trust,07-Apr-17,EGGS MILK OTHER DAIRY PRODUCTS,Facilities,NHS LOGISTICS,1017249990,15.64
Department of Health,Salisbury NHS Foundation Trust,07-Apr-17,EGGS MILK OTHER DAIRY PRODUCTS,Facilities,NHS LOGISTICS,1017249990,23.12
Department of Health,Salisbury NHS Foundation Trust,07-Apr-17,BEVERAGES & AMBIENT FOOD,Facilities,NHS LOGISTICS,1017249990,0.64
Department of Health,Salisbury NHS Foundation Trust,07-Apr-17,FLAVOURINGS HERBS SPICES,Facilities,NHS LOGISTICS,1017249990,45.92
Department of Health,Salisbury NHS Foundation Trust,07-Apr-17,BEVERAGES & AMBIENT FOOD,Facilities,NHS LOGISTICS,1017249990,16.44
Department of Health,Salisbury NHS Foundation Trust,07-Apr-17,MEAT GAME POULTRY FISH,Facilities,NHS LOGISTICS,1017249990,42.48
Department of Health,Salisbury NHS Foundation Trust,07-Apr-17,FRUIT & VEGETABLES,Facilities,NHS LOGISTICS,1017249990,15.66
Department of Health,Salisbury NHS Foundation Trust,07-Apr-17,BEVERAGES & AMBIENT FOOD,Facilities,NHS LOGISTICS,1017249990,94.4
Department of Health,Salisbury NHS Foundation Trust,07-Apr-17,BEVERAGES & AMBIENT FOOD,Facilities,NHS LOGISTICS,1017249990,21.48
Department of Health,Salisbury NHS Foundation Trust,07-Apr-17,FRUIT & VEGETABLES,Facilities,NHS LOGISTICS,1017249990,82.56
Department of Health,Salisbury NHS Foundation Trust,07-Apr-17,FRUIT & VEGETABLES,Facilities,NHS LOGISTICS,1017249990,21.48
Department of Health,Salisbury NHS Foundation Trust,07-Apr-17,FRUIT & VEGETABLES,Facilities,NHS LOGISTICS,1017249990,13.32
Department of Health,Salisbury NHS Foundation Trust,07-Apr-17,FRUIT & VEGETABLES,Facilities,NHS LOGISTICS,1017249990,51.6
Department of Health,Salisbury NHS Foundation Trust,07-Apr-17,FRUIT & VEGETABLES,Facilities,NHS LOGISTICS,1017249990,7.5
Department of Health,Salisbury NHS Foundation Trust,07-Apr-17,FRUIT & VEGETABLES,Facilities,NHS LOGISTICS,1017249990,30.96
Department of Health,Salisbury NHS Foundation Trust,07-Apr-17,FRUIT & VEGETABLES,Facilities,NHS LOGISTICS,1017249990,17.94
Department of Health,Salisbury NHS Foundation Trust,07-Apr-17,FRUIT & VEGETABLES,Facilities,NHS LOGISTICS,1017249990,4.92
Department of Health,Salisbury NHS Foundation Trust,07-Apr-17,LIQUID REFRESHMENTS,Facilities,NHS LOGISTICS,1017249990,9.98
Department of Health,Salisbury NHS Foundation Trust,07-Apr-17,LIQUID REFRESHMENTS,Facilities,NHS LOGISTICS,1017249990,13.98
Department of Health,Salisbury NHS Foundation Trust,07-Apr-17,BEVERAGES & AMBIENT FOOD,Facilities,NHS LOGISTICS,1017249990,6.72
Department of Health,Salisbury NHS Foundation Trust,07-Apr-17,LIQUID REFRESHMENTS,Facilities,NHS LOGISTICS,1017249990,17.35
Department of Health,Salisbury NHS Foundation Trust,07-Apr-17,LIQUID REFRESHMENTS,Facilities,NHS LOGISTICS,1017249990,9.17
Department of Health,Salisbury NHS Foundation Trust,07-Apr-17,LIQUID REFRESHMENTS,Facilities,NHS LOGISTICS,1017249990,13.25
Department of Health,Salisbury NHS Foundation Trust,07-Apr-17,LIQUID REFRESHMENTS,Facilities,NHS LOGISTICS,1017249990,13.25
Department of Health,Salisbury NHS Foundation Trust,07-Apr-17,BEVERAGES & AMBIENT FOOD,Facilities,NHS LOGISTICS,1017249990,33.36
Department of Health,Salisbury NHS Foundation Trust,07-Apr-17,COOKING & KITCHEN UTENSILS,Facilities,NHS LOGISTICS,1017249990,16.8
Department of Health,Salisbury NHS Foundation Trust,07-Apr-17,BEVERAGES & AMBIENT FOOD,Facilities,NHS LOGISTICS,1017249990,24.5
Department of Health,Salisbury NHS Foundation Trust,07-Apr-17,BEVERAGES & AMBIENT FOOD,Facilities,NHS LOGISTICS,1017249990,73.8
Department of Health,Salisbury NHS Foundation Trust,07-Apr-17,BEVERAGES & AMBIENT FOOD,Facilities,NHS LOGISTICS,1017249990,14.04
Department of Health,Salisbury NHS Foundation Trust,07-Apr-17,BEVERAGES & AMBIENT FOOD,Facilities,NHS LOGISTICS,1017249990,6.78
Department of Health,Salisbury NHS Foundation Trust,07-Apr-17,FLAVOURINGS HERBS SPICES,Facilities,NHS LOGISTICS,1017249990,6.78
Department of Health,Salisbury NHS Foundation Trust,07-Apr-17,FLAVOURINGS HERBS SPICES,Facilities,NHS LOGISTICS,1017249990,2.96
Department of Health,Salisbury NHS Foundation Trust,07-Apr-17,BEVERAGES & AMBIENT FOOD,Facilities,NHS LOGISTICS,1017249990,11.6
Department of Health,Salisbury NHS Foundation Trust,07-Apr-17,BEVERAGES & AMBIENT FOOD,Facilities,NHS LOGISTICS,1017249990,6.56
Department of Health,Salisbury NHS Foundation Trust,07-Apr-17,BEVERAGES & AMBIENT FOOD,Facilities,NHS LOGISTICS,1017249990,2.47
Department of Health,Salisbury NHS Foundation Trust,07-Apr-17,FLAVOURINGS HERBS SPICES,Facilities,NHS LOGISTICS,1017249990,1.35
Department of Health,Salisbury NHS Foundation Trust,07-Apr-17,FRUIT & VEGETABLES,Facilities,NHS LOGISTICS,1017249990,1.68
Department of Health,Salisbury NHS Foundation Trust,07-Apr-17,FLAVOURINGS HERBS SPICES,Facilities,NHS LOGISTICS,1017249990,4.92
Department of Health,Salisbury NHS Foundation Trust,07-Apr-17,FLAVOURINGS HERBS SPICES,Facilities,NHS LOGISTICS,1017249990,12.3
Department of Health,Salisbury NHS Foundation Trust,07-Apr-17,BEVERAGES & AMBIENT FOOD,Facilities,NHS LOGISTICS,1017249990,9
Department of Health,Salisbury NHS Foundation Trust,07-Apr-17,BEVERAGES & AMBIENT FOOD,Facilities,NHS LOGISTICS,1017249990,12.42
Department of Health,Salisbury NHS Foundation Trust,07-Apr-17,BEVERAGES & AMBIENT FOOD,Facilities,NHS LOGISTICS,1017249990,9.27
Department of Health,Salisbury NHS Foundation Trust,07-Apr-17,LIQUID REFRESHMENTS,Facilities,NHS LOGISTICS,1017249990,102
Department of Health,Salisbury NHS Foundation Trust,07-Apr-17,BEVERAGES & AMBIENT FOOD,Facilities,NHS LOGISTICS,1017249990,13.2
Department of Health,Salisbury NHS Foundation Trust,07-Apr-17,LIQUID REFRESHMENTS,Facilities,NHS LOGISTICS,1017249990,6.58
Department of Health,Salisbury NHS Foundation Trust,07-Apr-17,LIQUID REFRESHMENTS,Facilities,NHS LOGISTICS,1017249990,6.2
Department of Health,Salisbury NHS Foundation Trust,07-Apr-17,LIQUID REFRESHMENTS,Facilities,NHS LOGISTICS,1017249990,2.53
Department of Health,Salisbury NHS Foundation Trust,07-Apr-17,LIQUID REFRESHMENTS,Facilities,NHS LOGISTICS,1017249990,5.82
Department of Health,Salisbury NHS Foundation Trust,07-Apr-17,BABY TEXTURE MODIFIED FOODS,Facilities,NHS LOGISTICS,1017249990,56.07
Department of Health,Salisbury NHS Foundation Trust,07-Apr-17,BEVERAGES & AMBIENT FOOD,Facilities,NHS LOGISTICS,1017249990,70.32
Department of Health,Salisbury NHS Foundation Trust,07-Apr-17,COOKING & KITCHEN UTENSILS,Facilities,NHS LOGISTICS,1017249990,19.5
Department of Health,Salisbury NHS Foundation Trust,07-Apr-17,COOKING & KITCHEN UTENSILS,Facilities,NHS LOGISTICS,1017249990,19.5
Department of Health,Salisbury NHS Foundation Trust,07-Apr-17,COOKING & KITCHEN UTENSILS,Facilities,NHS LOGISTICS,1017249990,19.5
Department of Health,Salisbury NHS Foundation Trust,07-Apr-17,COOKING & KITCHEN UTENSILS,Facilities,NHS LOGISTICS,1017249990,8.22
Department of Health,Salisbury NHS Foundation Trust,07-Apr-17,TISSUES HAND TOWELS & TOILET PAPER,Facilities,NHS LOGISTICS,1017249990,10.6
Department of Health,Salisbury NHS Foundation Trust,07-Apr-17,FRUIT & VEGETABLES,Facilities,NHS LOGISTICS,1017249990,7.32
Department of Health,Salisbury NHS Foundation Trust,07-Apr-17,FRUIT & VEGETABLES,Facilities,NHS LOGISTICS,1017249990,30.6
Department of Health,Salisbury NHS Foundation Trust,07-Apr-17,FRUIT & VEGETABLES,Facilities,NHS LOGISTICS,1017249990,8.19
Department of Health,Salisbury NHS Foundation Trust,07-Apr-17,FRUIT & VEGETABLES,Facilities,NHS LOGISTICS,1017249990,35.1
Department of Health,Salisbury NHS Foundation Trust,07-Apr-17,FRUIT & VEGETABLES,Facilities,NHS LOGISTICS,1017249990,21.54
Department of Health,Salisbury NHS Foundation Trust,07-Apr-17,FRUIT & VEGETABLES,Facilities,NHS LOGISTICS,1017249990,56.34
Department of Health,Salisbury NHS Foundation Trust,07-Apr-17,FRUIT & VEGETABLES,Facilities,NHS LOGISTICS,1017249990,39.72
Department of Health,Salisbury NHS Foundation Trust,07-Apr-17,FRUIT & VEGETABLES,Facilities,NHS LOGISTICS,1017249990,11.16
Department of Health,Salisbury NHS Foundation Trust,07-Apr-17,BEVERAGES & AMBIENT FOOD,Facilities,NHS LOGISTICS,1017249990,16.26
Department of Health,Salisbury NHS Foundation Trust,07-Apr-17,BEVERAGES & AMBIENT FOOD,Facilities,NHS LOGISTICS,1017249990,8.47
Department of Health,Salisbury NHS Foundation Trust,07-Apr-17,BEVERAGES & AMBIENT FOOD,Facilities,NHS LOGISTICS,1017249990,8.64
Department of Health,Salisbury NHS Foundation Trust,07-Apr-17,BEVERAGES & AMBIENT FOOD,Facilities,NHS LOGISTICS,1017249990,8.74
Department of Health,Salisbury NHS Foundation Trust,07-Apr-17,LIQUID REFRESHMENTS,Facilities,NHS LOGISTICS,1017249990,7.43
Department of Health,Salisbury NHS Foundation Trust,07-Apr-17,HEARING AIDS SPARES,Surgery,NHS LOGISTICS,1017249990,85.03
Department of Health,Salisbury NHS Foundation Trust,07-Apr-17,SEATING GENERAL,Capital Projects,NHS LOGISTICS,1017249990,2474.23
Department of Health,Salisbury NHS Foundation Trust,07-Apr-17,HEARING AIDS SPARES,Surgery,NHS LOGISTICS,1017249990,4.25
Department of Health,Salisbury NHS Foundation Trust,07-Apr-17,ADULTS HEARING AIDS,Surgery,NHS LOGISTICS,1017249990,14.79
Department of Health,Salisbury NHS Foundation Trust,07-Apr-17,MED SURG EQUIP REP MAINT CLEANING,Musculo-Skeletal,NHS LOGISTICS,1017249990,8.54
Department of Health,Salisbury NHS Foundation Trust,07-Apr-17,LAB EQUIP-LABORATORY APPARATUS,Clinical Support,NHS LOGISTICS,1017249990,10.92
Department of Health,Salisbury NHS Foundation Trust,07-Apr-17,OTHER MEDICAL SUPPLIES,Quality,NHS LOGISTICS,1017249990,0.94
Department of Health,Salisbury NHS Foundation Trust,07-Apr-17,DRESSINGS - PRE STERILE,Medicine,NHS LOGISTICS,1017249990,1.53
Department of Health,Salisbury NHS Foundation Trust,07-Apr-17,TISSUES HAND TOWELS & TOILET PAPER,Medicine,NHS LOGISTICS,1017249990,0.74
Department of Health,Salisbury NHS Foundation Trust,07-Apr-17,CLEANING MATERIALS PRODUCTS SUNDRIES,Medicine,NHS LOGISTICS,1017249990,1.09
Department of Health,Salisbury NHS Foundation Trust,07-Apr-17,OTHER MEDICAL SUPPLIES,Medicine,NHS LOGISTICS,1017249990,0.93
Department of Health,Salisbury NHS Foundation Trust,07-Apr-17,PATIENT APPLIANCES,Medicine,NHS LOGISTICS,1017249990,0.88
Department of Health,Salisbury NHS Foundation Trust,07-Apr-17,DISPOSABLE THEATRE DRAPES WIPES,Medicine,NHS LOGISTICS,1017249990,0.65
Department of Health,Salisbury NHS Foundation Trust,07-Apr-17,DRESSINGS - PRE STERILE,Surgery,NHS LOGISTICS,1017249990,6.22
Department of Health,Salisbury NHS Foundation Trust,07-Apr-17,OTHER MEDICAL SUPPLIES,Surgery,NHS LOGISTICS,1017249990,12.9
Department of Health,Salisbury NHS Foundation Trust,07-Apr-17,SERVICES FROM NHS BODIES,Clinical Support,NHS LOGISTICS,1017249990,6.59
Department of Health,Salisbury NHS Foundation Trust,07-Apr-17,HEARING AIDS SPARES,Surgery,NHS LOGISTICS,1017249990,47.23
Department of Health,Salisbury NHS Foundation Trust,07-Apr-17,MEDSURGCONS - OTHER,Musculo-Skeletal,NHS LOGISTICS,1017249990,31.05
Department of Health,Salisbury NHS Foundation Trust,07-Apr-17,BAGS SACKS - OTHER,Clinical Support,NHS LOGISTICS,1017249990,10.25
Department of Health,Salisbury NHS Foundation Trust,07-Apr-17,DISPOSABLE THEATRE DRAPES WIPES,Clinical Support,NHS LOGISTICS,1017249990,4.98
Department of Health,Salisbury NHS Foundation Trust,07-Apr-17,TOILETRIES PERSONAL HYGIENE PRODUCTS,Clinical Support,NHS LOGISTICS,1017249990,1.45
Department of Health,Salisbury NHS Foundation Trust,07-Apr-17,DRESSINGS - PRE STERILE,Musculo-Skeletal,NHS LOGISTICS,1017249990,9.52
Department of Health,Salisbury NHS Foundation Trust,07-Apr-17,MED SURG EQUIP REP MAINT CLEANING,Medicine,NHS LOGISTICS,1017249990,8.54
Department of Health,Salisbury NHS Foundation Trust,07-Apr-17,DRESSINGS - PRE STERILE,Musculo-Skeletal,NHS LOGISTICS,1017249990,31.65
Department of Health,Salisbury NHS Foundation Trust,07-Apr-17,ELECTRICAL EQUIPMENT x,Surgery,NHS LOGISTICS,1017249990,3.13
Department of Health,Salisbury NHS Foundation Trust,07-Apr-17,SURGICAL INSTRUMENTS: GENERAL,Surgery,NHS LOGISTICS,1017249990,17.22
Department of Health,Salisbury NHS Foundation Trust,07-Apr-17,SURGICAL INSTRUMENTS: GENERAL,Surgery,NHS LOGISTICS,1017249990,12.56
Department of Health,Salisbury NHS Foundation Trust,07-Apr-17,OTHER MEDICAL SUPPLIES,Clinical Support,NHS LOGISTICS,1017249990,12.21
Department of Health,Salisbury NHS Foundation Trust,07-Apr-17,DRUGS,Medicine,NHS LOGISTICS,1017249990,1.67
Department of Health,Salisbury NHS Foundation Trust,07-Apr-17,ADULTS HEARING AIDS,Surgery,NHS LOGISTICS,1017249990,31.63
Department of Health,Salisbury NHS Foundation Trust,07-Apr-17,BAGS SACKS - OTHER,Clinical Support,NHS LOGISTICS,1017249990,1.44
Department of Health,Salisbury NHS Foundation Trust,07-Apr-17,ADULTS HEARING AIDS,Surgery,NHS LOGISTICS,1017249990,747.48
Department of Health,Salisbury NHS Foundation Trust,07-Apr-17,ADULTS HEARING AIDS,Surgery,NHS LOGISTICS,1017249990,533.92
Department of Health,Salisbury NHS Foundation Trust,07-Apr-17,ADULTS HEARING AIDS,Surgery,NHS LOGISTICS,1017249990,154.87
Department of Health,Salisbury NHS Foundation Trust,07-Apr-17,MED SURG EQUIP REP MAINT CLEANING,Clinical Support,NHS LOGISTICS,1017249990,22.08
Department of Health,Salisbury NHS Foundation Trust,07-Apr-17,OTHER MEDICAL SUPPLIES,Clinical Support,NHS LOGISTICS,1017249990,81.25
Department of Health,Salisbury NHS Foundation Trust,07-Apr-17,DISPOSABLE THEATRE DRAPES WIPES,Clinical Support,NHS LOGISTICS,1017249990,24.68
Department of Health,Salisbury NHS Foundation Trust,07-Apr-17,MEDSURGCONS-LAPAROSCOPIC EQUIPMENT,Surgery,NHS LOGISTICS,1017249990,53.61
Department of Health,Salisbury NHS Foundation Trust,07-Apr-17,OTHER MEDICAL SUPPLIES,Surgery,NHS LOGISTICS,1017249990,1.8
Department of Health,Salisbury NHS Foundation Trust,07-Apr-17,OTHER MEDICAL SUPPLIES,Clinical Support,NHS LOGISTICS,1017249990,0.47
Department of Health,Salisbury NHS Foundation Trust,07-Apr-17,TISSUES HAND TOWELS & TOILET PAPER,Surgery,NHS LOGISTICS,1017249990,0.08
Department of Health,Salisbury NHS Foundation Trust,07-Apr-17,DRESSINGS - PRE STERILE,Surgery,NHS LOGISTICS,1017249990,0.22
Department of Health,Salisbury NHS Foundation Trust,07-Apr-17,PATIENTS BEDWEAR UNISEX,Surgery,NHS LOGISTICS,1017249990,11.65
Department of Health,Salisbury NHS Foundation Trust,07-Apr-17,LAB EQUIP-LABORATORY APPARATUS,Clinical Support,NHS LOGISTICS,1017249990,7.57
Department of Health,Salisbury NHS Foundation Trust,07-Apr-17,LAB EQUIP-LABORATORY APPARATUS,Clinical Support,NHS LOGISTICS,1017249990,59.33
Department of Health,Salisbury NHS Foundation Trust,07-Apr-17,LAB EQUIP-ANALYSERS,Clinical Support,NHS LOGISTICS,1017249990,5.08
Department of Health,Salisbury NHS Foundation Trust,07-Apr-17,LAB EQUIP-LABORATORY APPARATUS,Clinical Support,NHS LOGISTICS,1017249990,5.17
Department of Health,Salisbury NHS Foundation Trust,07-Apr-17,LAB EQUIP-LABORATORY APPARATUS,Clinical Support,NHS LOGISTICS,1017249990,149.73
Department of Health,Salisbury NHS Foundation Trust,07-Apr-17,LAB EQUIP-LABORATORY APPARATUS,Clinical Support,NHS LOGISTICS,1017249990,5.13
Department of Health,Salisbury NHS Foundation Trust,07-Apr-17,LAB EQUIP-LABORATORY APPARATUS,Clinical Support,NHS LOGISTICS,1017249990,10.27
Department of Health,Salisbury NHS Foundation Trust,07-Apr-17,DRESSINGS  -  PROCEDURE PACKS,Clinical Support,NHS LOGISTICS,1017249990,8.51
Department of Health,Salisbury NHS Foundation Trust,07-Apr-17,COOKING & KITCHEN UTENSILS,Clinical Support,NHS LOGISTICS,1017249990,1.96
